{"text_format":"3","workbook":"xlsx","n_sheets":2,"sheets":["Gantt","Info"],"not_rendered":{"defined_names":5},"read":"whole","date_system":"1900"}

{"sheet":"Gantt","index":0,"n_rows":33,"n_cols":63,"rows_kept":33,"merged":[[1,2,1,3],[1,4,1,5],[2,2,2,3],[3,2,3,3]]}
["Erstellen Sie auf diesem Arbeitsblatt ein Gantt-Diagramm.\nGeben Sie den Titel dieses Projekts in Zelle B1 ein. \nInformationen zur Verwendung dieses Arbeitsblatts, einschließlich Anweisungen für die Sprachausgabe und den Verfasser dieser Arbeitsmappe, finden Sie auf dem Arbeitsblatt \"Info\".\nNavigieren Sie weiterhin in Spalte A abwärts, um weitere Anweisungen zu hören.","PROJEKTTITEL"]
["Geben Sie den Firmennamen in Zelle B2 ein.\nGeben Sie das Projektanfangsdatum in Zelle E2 ein, oder erlauben Sie es der Beispielformel, den kleinsten Datumswert in der Gantt-Datentabelle zu suchen. Projektanfangsdatum: Die Bezeichnung steht in Zelle C2.","Firmenname","Projektanfangsdatum:",null,{"$f":"IFERROR(IF(MIN(Meilensteine[Start])=0,TODAY(),MIN(Meilensteine[Start])),TODAY())","v":"2018-09-16"}]
["Geben Sie den Namen des Projektleiters in Zelle B3 ein. \nDie Scrollschrittweite ist in Zelle E3 angegeben. Die Scrollleiste befindet sich in den Zellen H3 bis M3. Durch das Erhöhen der Scrollschrittweite oder das Verwenden der Scrollleiste wird die Zeitachse des Gantt-Diagramms erweitert. \nDer Wert 0 in Zelle E3 setzt die Diagrammerstellung an den Anfang des Projekts zurück.","Projektleiter","Scrollschrittweite:",null,0]
["Um den Standardtyp der Meilensteinmarkierung zu ändern, geben Sie in Zelle E5 eine 0, 1 oder 2 ein. Die entsprechende Markierung wird in Zelle F5 angezeigt. Um die Markierungen zu ändern, bearbeiten Sie das bedingte Format für die betreffende Zelle und die Tabelle unten.\nDie Monate für die Datumswerte in Zeile 5 werden beginnend mit Zelle H4 bis hin zur Zelle BK4 angezeigt.\nÄndern Sie diese Zellen nicht. Sie werden auf der Grundlage des Projektanfangsdatums und der Scrollleisten-Schrittweite automatisch aktualisiert.\nScrollschrittweite: Die Bezeichnung befindet sich in Zelle C4.",null,"Meilensteinmarkierung:",null,1,{"$f":"Meilenstein_Markierung","v":1},null,{"$f":"TEXT(H5,\"MMMM\")","v":"September"},{"$nulls":6},{"$f":"IF(TEXT(O5,\"MMMM\")=H4,\"\",TEXT(O5,\"MMMM\"))","v":""},{"$nulls":6},{"$f":"IF(OR(TEXT(V5,\"MMMM\")=O4,TEXT(V5,\"MMMM\")=H4),\"\",TEXT(V5,\"MMMM\"))","v":""},{"$nulls":6},{"$f":"IF(OR(TEXT(AC5,\"MMMM\")=V4,TEXT(AC5,\"MMMM\")=O4,TEXT(AC5,\"MMMM\")=H4),\"\",TEXT(AC5,\"MMMM\"))","v":"October"},{"$nulls":6},{"$f":"IF(OR(TEXT(AJ5,\"MMMM\")=AC4,TEXT(AJ5,\"MMMM\")=V4,TEXT(AJ5,\"MMMM\")=O4,TEXT(AJ5,\"MMMM\")=H4),\"\",TEXT(AJ5,\"MMMM\"))","v":""},{"$nulls":6},{"$f":"IF(OR(TEXT(AQ5,\"MMMM\")=AJ4,TEXT(AQ5,\"MMMM\")=AC4,TEXT(AQ5,\"MMMM\")=V4,TEXT(AQ5,\"MMMM\")=O4),\"\",TEXT(AQ5,\"MMMM\"))","v":""},{"$nulls":6},{"$f":"IF(OR(TEXT(AX5,\"MMMM\")=AQ4,TEXT(AX5,\"MMMM\")=AJ4,TEXT(AX5,\"MMMM\")=AC4,TEXT(AX5,\"MMMM\")=V4),\"\",TEXT(AX5,\"MMMM\"))","v":""},{"$nulls":6},{"$f":"IF(OR(TEXT(BE5,\"MMMM\")=AX4,TEXT(BE5,\"MMMM\")=AQ4,TEXT(BE5,\"MMMM\")=AJ4,TEXT(BE5,\"MMMM\")=AC4),\"\",TEXT(BE5,\"MMMM\"))","v":"November"}]
["Die Zellen H5 bis BK5 enthalten die Tagesnummer des Monats für den im Zellenblock oberhalb der einzelnen Datumszellen angezeigten Monat und werden automatisch berechnet.\nÄndern Sie diese Zellen nicht.\nDatumswerte vor dem aktuellen Datum werden grau dargestellt.",{"$nulls":6},{"$f":"IFERROR(Projekt_Start+Scroll_Schrittweite,TODAY())","v":"2018-09-16"},{"$f":"H5+1","v":"2018-09-17"},{"$f":"I5+1","v":"2018-09-18"},{"$f":"J5+1","v":"2018-09-19"},"2018-09-20","2018-09-21","2018-09-22",{"$f":"N5+1","v":"2018-09-23"},{"$f":"O5+1","v":"2018-09-24"},"2018-09-25","2018-09-26","2018-09-27","2018-09-28","2018-09-29",{"$f":"U5+1","v":"2018-09-30"},{"$f":"V5+1","v":"2018-10-01"},"2018-10-02","2018-10-03","2018-10-04","2018-10-05","2018-10-06",{"$f":"AB5+1","v":"2018-10-07"},{"$f":"AC5+1","v":"2018-10-08"},"2018-10-09","2018-10-10","2018-10-11","2018-10-12","2018-10-13",{"$f":"AI5+1","v":"2018-10-14"},{"$f":"AJ5+1","v":"2018-10-15"},"2018-10-16","2018-10-17","2018-10-18","2018-10-19","2018-10-20",{"$f":"AP5+1","v":"2018-10-21"},{"$f":"AQ5+1","v":"2018-10-22"},"2018-10-23","2018-10-24","2018-10-25","2018-10-26","2018-10-27",{"$f":"AW5+1","v":"2018-10-28"},{"$f":"AX5+1","v":"2018-10-29"},{"$f":"AY5+1","v":"2018-10-30"},"2018-10-31","2018-11-01","2018-11-02","2018-11-03",{"$f":"BD5+1","v":"2018-11-04"},{"$f":"BE5+1","v":"2018-11-05"},{"$f":"BF5+1","v":"2018-11-06"},"2018-11-07","2018-11-08","2018-11-09","2018-11-10"]
["Diese Zeile enthält Überschriften für den Projektzeitplan, der darunter dargestellt ist. \nNavigieren Sie von B7 bis BK7, um sich die Inhalte vorsprechen zu lassen. Der erste Buchstabe jedes Tags der Woche für das Datum oberhalb der Überschrift, beginnend in Zelle H7 und fortlaufend bis Zelle BK7.\nDie gesamte Diagrammerstellung entlang der Projektzeitachse erfolgt automatisch auf der Grundlage der Kategorie, des Anfangsdatums und der Anzahl der Tage, die in der Meilensteintabelle eingegeben wurden.\nFormeln in diesen Zellen unterstützen Aussehen und Verhalten des Gantt-Diagramms. Ändern Sie diese Zellen nicht.","Meilensteinbeschreibung","Zugewiesen an","Fortschritt","Start","Anzahl Tage",null,{"$f":"LEFT(TEXT(H5,\"TTT\"),1)","v":"T"},"T","T","T","T","T","T","T","T","T","T","T","T","T","T","T","T","T","T","T","T","T","T","T","T","T","T","T","T","T","T","T",{"$f":"LEFT(TEXT(AN5,\"TTT\"),1)","v":"T"},"T","T","T","T","T","T","T","T","T","T","T","T","T","T","T","T","T","T","T","T","T","T","T"]
["Löschen Sie diese Zeile nicht. Diese Zeile ist ausgeblendet, um eine Formel zu schützen, die zum Hervorheben des aktuellen Tags im Projektzeitplan verwendet wird. "]
["Geben Sie Projektinformationen ab Zelle B8 durchlaufend bis zu Zelle F8 ein. \nBeispieldaten befinden sich in den Zellen B8 bis G32.\nGeben Sie die Beschreibung des Meilensteins ein, weisen Sie dem Element eine Person zu, geben Sie den Status der Aufgabe als Prozentsatz der Fertigstellung ein, und geben Sie ein Anfangsdatum und die Aufgabendauer in Tagen ein.\nDas Gantt-Diagramm wird bei Eingabe der Daten automatisch aktualisiert.\nDie nächste Anweisung finden Sie in Zelle A33.","Titel 1",{"$nulls":5},{"$f":"IFERROR(IF(LEN(Meilensteine[[#This Row],[Anzahl Tage]])=0,\"\",IF(AND(H$5=$E8,$F8=1),Meilenstein_Markierung,\"\")),\"\")","v":""},{"$f":"IFERROR(IF(LEN(Meilensteine[[#This Row],[Anzahl Tage]])=0,\"\",IF(AND(I$5=$E8,$F8=1),Meilenstein_Markierung,\"\")),\"\")","v":""},{"$f":"IFERROR(IF(LEN(Meilensteine[[#This Row],[Anzahl Tage]])=0,\"\",IF(AND(J$5=$E8,$F8=1),Meilenstein_Markierung,\"\")),\"\")","v":""},{"$f":"IFERROR(IF(LEN(Meilensteine[[#This Row],[Anzahl Tage]])=0,\"\",IF(AND(K$5=$E8,$F8=1),Meilenstein_Markierung,\"\")),\"\")","v":""},{"$f":"IFERROR(IF(LEN(Meilensteine[[#This Row],[Anzahl Tage]])=0,\"\",IF(AND(L$5=$E8,$F8=1),Meilenstein_Markierung,\"\")),\"\")","v":""},{"$f":"IFERROR(IF(LEN(Meilensteine[[#This Row],[Anzahl Tage]])=0,\"\",IF(AND(M$5=$E8,$F8=1),Meilenstein_Markierung,\"\")),\"\")","v":""},{"$f":"IFERROR(IF(LEN(Meilensteine[[#This Row],[Anzahl Tage]])=0,\"\",IF(AND(N$5=$E8,$F8=1),Meilenstein_Markierung,\"\")),\"\")","v":""},{"$f":"IFERROR(IF(LEN(Meilensteine[[#This Row],[Anzahl Tage]])=0,\"\",IF(AND(O$5=$E8,$F8=1),Meilenstein_Markierung,\"\")),\"\")","v":""},{"$f":"IFERROR(IF(LEN(Meilensteine[[#This Row],[Anzahl Tage]])=0,\"\",IF(AND(P$5=$E8,$F8=1),Meilenstein_Markierung,\"\")),\"\")","v":""},{"$f":"IFERROR(IF(LEN(Meilensteine[[#This Row],[Anzahl Tage]])=0,\"\",IF(AND(Q$5=$E8,$F8=1),Meilenstein_Markierung,\"\")),\"\")","v":""},{"$f":"IFERROR(IF(LEN(Meilensteine[[#This Row],[Anzahl Tage]])=0,\"\",IF(AND(R$5=$E8,$F8=1),Meilenstein_Markierung,\"\")),\"\")","v":""},{"$f":"IFERROR(IF(LEN(Meilensteine[[#This Row],[Anzahl Tage]])=0,\"\",IF(AND(S$5=$E8,$F8=1),Meilenstein_Markierung,\"\")),\"\")","v":""},{"$f":"IFERROR(IF(LEN(Meilensteine[[#This Row],[Anzahl Tage]])=0,\"\",IF(AND(T$5=$E8,$F8=1),Meilenstein_Markierung,\"\")),\"\")","v":""},{"$f":"IFERROR(IF(LEN(Meilensteine[[#This Row],[Anzahl Tage]])=0,\"\",IF(AND(U$5=$E8,$F8=1),Meilenstein_Markierung,\"\")),\"\")","v":""},{"$f":"IFERROR(IF(LEN(Meilensteine[[#This Row],[Anzahl Tage]])=0,\"\",IF(AND(V$5=$E8,$F8=1),Meilenstein_Markierung,\"\")),\"\")","v":""},{"$f":"IFERROR(IF(LEN(Meilensteine[[#This Row],[Anzahl Tage]])=0,\"\",IF(AND(W$5=$E8,$F8=1),Meilenstein_Markierung,\"\")),\"\")","v":""},{"$f":"IFERROR(IF(LEN(Meilensteine[[#This Row],[Anzahl Tage]])=0,\"\",IF(AND(X$5=$E8,$F8=1),Meilenstein_Markierung,\"\")),\"\")","v":""},{"$f":"IFERROR(IF(LEN(Meilensteine[[#This Row],[Anzahl Tage]])=0,\"\",IF(AND(Y$5=$E8,$F8=1),Meilenstein_Markierung,\"\")),\"\")","v":""},{"$f":"IFERROR(IF(LEN(Meilensteine[[#This Row],[Anzahl Tage]])=0,\"\",IF(AND(Z$5=$E8,$F8=1),Meilenstein_Markierung,\"\")),\"\")","v":""},{"$f":"IFERROR(IF(LEN(Meilensteine[[#This Row],[Anzahl Tage]])=0,\"\",IF(AND(AA$5=$E8,$F8=1),Meilenstein_Markierung,\"\")),\"\")","v":""},{"$f":"IFERROR(IF(LEN(Meilensteine[[#This Row],[Anzahl Tage]])=0,\"\",IF(AND(AB$5=$E8,$F8=1),Meilenstein_Markierung,\"\")),\"\")","v":""},{"$f":"IFERROR(IF(LEN(Meilensteine[[#This Row],[Anzahl Tage]])=0,\"\",IF(AND(AC$5=$E8,$F8=1),Meilenstein_Markierung,\"\")),\"\")","v":""},{"$f":"IFERROR(IF(LEN(Meilensteine[[#This Row],[Anzahl Tage]])=0,\"\",IF(AND(AD$5=$E8,$F8=1),Meilenstein_Markierung,\"\")),\"\")","v":""},{"$f":"IFERROR(IF(LEN(Meilensteine[[#This Row],[Anzahl Tage]])=0,\"\",IF(AND(AE$5=$E8,$F8=1),Meilenstein_Markierung,\"\")),\"\")","v":""},{"$f":"IFERROR(IF(LEN(Meilensteine[[#This Row],[Anzahl Tage]])=0,\"\",IF(AND(AF$5=$E8,$F8=1),Meilenstein_Markierung,\"\")),\"\")","v":""},{"$f":"IFERROR(IF(LEN(Meilensteine[[#This Row],[Anzahl Tage]])=0,\"\",IF(AND(AG$5=$E8,$F8=1),Meilenstein_Markierung,\"\")),\"\")","v":""},{"$f":"IFERROR(IF(LEN(Meilensteine[[#This Row],[Anzahl Tage]])=0,\"\",IF(AND(AH$5=$E8,$F8=1),Meilenstein_Markierung,\"\")),\"\")","v":""},{"$f":"IFERROR(IF(LEN(Meilensteine[[#This Row],[Anzahl Tage]])=0,\"\",IF(AND(AI$5=$E8,$F8=1),Meilenstein_Markierung,\"\")),\"\")","v":""},{"$f":"IFERROR(IF(LEN(Meilensteine[[#This Row],[Anzahl Tage]])=0,\"\",IF(AND(AJ$5=$E8,$F8=1),Meilenstein_Markierung,\"\")),\"\")","v":""},{"$f":"IFERROR(IF(LEN(Meilensteine[[#This Row],[Anzahl Tage]])=0,\"\",IF(AND(AK$5=$E8,$F8=1),Meilenstein_Markierung,\"\")),\"\")","v":""},{"$f":"IFERROR(IF(LEN(Meilensteine[[#This Row],[Anzahl Tage]])=0,\"\",IF(AND(AL$5=$E8,$F8=1),Meilenstein_Markierung,\"\")),\"\")","v":""},{"$f":"IFERROR(IF(LEN(Meilensteine[[#This Row],[Anzahl Tage]])=0,\"\",IF(AND(AM$5=$E8,$F8=1),Meilenstein_Markierung,\"\")),\"\")","v":""},{"$f":"IFERROR(IF(LEN(Meilensteine[[#This Row],[Anzahl Tage]])=0,\"\",IF(AND(AN$5=$E8,$F8=1),Meilenstein_Markierung,\"\")),\"\")","v":""},{"$f":"IFERROR(IF(LEN(Meilensteine[[#This Row],[Anzahl Tage]])=0,\"\",IF(AND(AO$5=$E8,$F8=1),Meilenstein_Markierung,\"\")),\"\")","v":""},{"$f":"IFERROR(IF(LEN(Meilensteine[[#This Row],[Anzahl Tage]])=0,\"\",IF(AND(AP$5=$E8,$F8=1),Meilenstein_Markierung,\"\")),\"\")","v":""},{"$f":"IFERROR(IF(LEN(Meilensteine[[#This Row],[Anzahl Tage]])=0,\"\",IF(AND(AQ$5=$E8,$F8=1),Meilenstein_Markierung,\"\")),\"\")","v":""},{"$f":"IFERROR(IF(LEN(Meilensteine[[#This Row],[Anzahl Tage]])=0,\"\",IF(AND(AR$5=$E8,$F8=1),Meilenstein_Markierung,\"\")),\"\")","v":""},{"$f":"IFERROR(IF(LEN(Meilensteine[[#This Row],[Anzahl Tage]])=0,\"\",IF(AND(AS$5=$E8,$F8=1),Meilenstein_Markierung,\"\")),\"\")","v":""},{"$f":"IFERROR(IF(LEN(Meilensteine[[#This Row],[Anzahl Tage]])=0,\"\",IF(AND(AT$5=$E8,$F8=1),Meilenstein_Markierung,\"\")),\"\")","v":""},{"$f":"IFERROR(IF(LEN(Meilensteine[[#This Row],[Anzahl Tage]])=0,\"\",IF(AND(AU$5=$E8,$F8=1),Meilenstein_Markierung,\"\")),\"\")","v":""},{"$f":"IFERROR(IF(LEN(Meilensteine[[#This Row],[Anzahl Tage]])=0,\"\",IF(AND(AV$5=$E8,$F8=1),Meilenstein_Markierung,\"\")),\"\")","v":""},{"$f":"IFERROR(IF(LEN(Meilensteine[[#This Row],[Anzahl Tage]])=0,\"\",IF(AND(AW$5=$E8,$F8=1),Meilenstein_Markierung,\"\")),\"\")","v":""},{"$f":"IFERROR(IF(LEN(Meilensteine[[#This Row],[Anzahl Tage]])=0,\"\",IF(AND(AX$5=$E8,$F8=1),Meilenstein_Markierung,\"\")),\"\")","v":""},{"$f":"IFERROR(IF(LEN(Meilensteine[[#This Row],[Anzahl Tage]])=0,\"\",IF(AND(AY$5=$E8,$F8=1),Meilenstein_Markierung,\"\")),\"\")","v":""},{"$f":"IFERROR(IF(LEN(Meilensteine[[#This Row],[Anzahl Tage]])=0,\"\",IF(AND(AZ$5=$E8,$F8=1),Meilenstein_Markierung,\"\")),\"\")","v":""},{"$f":"IFERROR(IF(LEN(Meilensteine[[#This Row],[Anzahl Tage]])=0,\"\",IF(AND(BA$5=$E8,$F8=1),Meilenstein_Markierung,\"\")),\"\")","v":""},{"$f":"IFERROR(IF(LEN(Meilensteine[[#This Row],[Anzahl Tage]])=0,\"\",IF(AND(BB$5=$E8,$F8=1),Meilenstein_Markierung,\"\")),\"\")","v":""},{"$f":"IFERROR(IF(LEN(Meilensteine[[#This Row],[Anzahl Tage]])=0,\"\",IF(AND(BC$5=$E8,$F8=1),Meilenstein_Markierung,\"\")),\"\")","v":""},{"$f":"IFERROR(IF(LEN(Meilensteine[[#This Row],[Anzahl Tage]])=0,\"\",IF(AND(BD$5=$E8,$F8=1),Meilenstein_Markierung,\"\")),\"\")","v":""},{"$f":"IFERROR(IF(LEN(Meilensteine[[#This Row],[Anzahl Tage]])=0,\"\",IF(AND(BE$5=$E8,$F8=1),Meilenstein_Markierung,\"\")),\"\")","v":""},{"$f":"IFERROR(IF(LEN(Meilensteine[[#This Row],[Anzahl Tage]])=0,\"\",IF(AND(BF$5=$E8,$F8=1),Meilenstein_Markierung,\"\")),\"\")","v":""},{"$f":"IFERROR(IF(LEN(Meilensteine[[#This Row],[Anzahl Tage]])=0,\"\",IF(AND(BG$5=$E8,$F8=1),Meilenstein_Markierung,\"\")),\"\")","v":""},{"$f":"IFERROR(IF(LEN(Meilensteine[[#This Row],[Anzahl Tage]])=0,\"\",IF(AND(BH$5=$E8,$F8=1),Meilenstein_Markierung,\"\")),\"\")","v":""},{"$f":"IFERROR(IF(LEN(Meilensteine[[#This Row],[Anzahl Tage]])=0,\"\",IF(AND(BI$5=$E8,$F8=1),Meilenstein_Markierung,\"\")),\"\")","v":""},{"$f":"IFERROR(IF(LEN(Meilensteine[[#This Row],[Anzahl Tage]])=0,\"\",IF(AND(BJ$5=$E8,$F8=1),Meilenstein_Markierung,\"\")),\"\")","v":""},{"$f":"IFERROR(IF(LEN(Meilensteine[[#This Row],[Anzahl Tage]])=0,\"\",IF(AND(BK$5=$E8,$F8=1),Meilenstein_Markierung,\"\")),\"\")","v":""}]
[null,"Aufgabe 1","Name",{"v":0.25,"d":"25%"},{"$f":"TODAY()","v":"2018-09-19"},3,null,{"$f":"IFERROR(IF(LEN(Meilensteine[[#This Row],[Anzahl Tage]])=0,\"\",IF(AND(H$5=$E9,$F9=1),Meilenstein_Markierung,\"\")),\"\")","v":""},{"$f":"IFERROR(IF(LEN(Meilensteine[[#This Row],[Anzahl Tage]])=0,\"\",IF(AND(I$5=$E9,$F9=1),Meilenstein_Markierung,\"\")),\"\")","v":""},{"$f":"IFERROR(IF(LEN(Meilensteine[[#This Row],[Anzahl Tage]])=0,\"\",IF(AND(J$5=$E9,$F9=1),Meilenstein_Markierung,\"\")),\"\")","v":""},{"$f":"IFERROR(IF(LEN(Meilensteine[[#This Row],[Anzahl Tage]])=0,\"\",IF(AND(K$5=$E9,$F9=1),Meilenstein_Markierung,\"\")),\"\")","v":""},{"$f":"IFERROR(IF(LEN(Meilensteine[[#This Row],[Anzahl Tage]])=0,\"\",IF(AND(L$5=$E9,$F9=1),Meilenstein_Markierung,\"\")),\"\")","v":""},{"$f":"IFERROR(IF(LEN(Meilensteine[[#This Row],[Anzahl Tage]])=0,\"\",IF(AND(M$5=$E9,$F9=1),Meilenstein_Markierung,\"\")),\"\")","v":""},{"$f":"IFERROR(IF(LEN(Meilensteine[[#This Row],[Anzahl Tage]])=0,\"\",IF(AND(N$5=$E9,$F9=1),Meilenstein_Markierung,\"\")),\"\")","v":""},{"$f":"IFERROR(IF(LEN(Meilensteine[[#This Row],[Anzahl Tage]])=0,\"\",IF(AND(O$5=$E9,$F9=1),Meilenstein_Markierung,\"\")),\"\")","v":""},{"$f":"IFERROR(IF(LEN(Meilensteine[[#This Row],[Anzahl Tage]])=0,\"\",IF(AND(P$5=$E9,$F9=1),Meilenstein_Markierung,\"\")),\"\")","v":""},{"$f":"IFERROR(IF(LEN(Meilensteine[[#This Row],[Anzahl Tage]])=0,\"\",IF(AND(Q$5=$E9,$F9=1),Meilenstein_Markierung,\"\")),\"\")","v":""},{"$f":"IFERROR(IF(LEN(Meilensteine[[#This Row],[Anzahl Tage]])=0,\"\",IF(AND(R$5=$E9,$F9=1),Meilenstein_Markierung,\"\")),\"\")","v":""},{"$f":"IFERROR(IF(LEN(Meilensteine[[#This Row],[Anzahl Tage]])=0,\"\",IF(AND(S$5=$E9,$F9=1),Meilenstein_Markierung,\"\")),\"\")","v":""},{"$f":"IFERROR(IF(LEN(Meilensteine[[#This Row],[Anzahl Tage]])=0,\"\",IF(AND(T$5=$E9,$F9=1),Meilenstein_Markierung,\"\")),\"\")","v":""},{"$f":"IFERROR(IF(LEN(Meilensteine[[#This Row],[Anzahl Tage]])=0,\"\",IF(AND(U$5=$E9,$F9=1),Meilenstein_Markierung,\"\")),\"\")","v":""},{"$f":"IFERROR(IF(LEN(Meilensteine[[#This Row],[Anzahl Tage]])=0,\"\",IF(AND(V$5=$E9,$F9=1),Meilenstein_Markierung,\"\")),\"\")","v":""},{"$f":"IFERROR(IF(LEN(Meilensteine[[#This Row],[Anzahl Tage]])=0,\"\",IF(AND(W$5=$E9,$F9=1),Meilenstein_Markierung,\"\")),\"\")","v":""},{"$f":"IFERROR(IF(LEN(Meilensteine[[#This Row],[Anzahl Tage]])=0,\"\",IF(AND(X$5=$E9,$F9=1),Meilenstein_Markierung,\"\")),\"\")","v":""},{"$f":"IFERROR(IF(LEN(Meilensteine[[#This Row],[Anzahl Tage]])=0,\"\",IF(AND(Y$5=$E9,$F9=1),Meilenstein_Markierung,\"\")),\"\")","v":""},{"$f":"IFERROR(IF(LEN(Meilensteine[[#This Row],[Anzahl Tage]])=0,\"\",IF(AND(Z$5=$E9,$F9=1),Meilenstein_Markierung,\"\")),\"\")","v":""},{"$f":"IFERROR(IF(LEN(Meilensteine[[#This Row],[Anzahl Tage]])=0,\"\",IF(AND(AA$5=$E9,$F9=1),Meilenstein_Markierung,\"\")),\"\")","v":""},{"$f":"IFERROR(IF(LEN(Meilensteine[[#This Row],[Anzahl Tage]])=0,\"\",IF(AND(AB$5=$E9,$F9=1),Meilenstein_Markierung,\"\")),\"\")","v":""},{"$f":"IFERROR(IF(LEN(Meilensteine[[#This Row],[Anzahl Tage]])=0,\"\",IF(AND(AC$5=$E9,$F9=1),Meilenstein_Markierung,\"\")),\"\")","v":""},{"$f":"IFERROR(IF(LEN(Meilensteine[[#This Row],[Anzahl Tage]])=0,\"\",IF(AND(AD$5=$E9,$F9=1),Meilenstein_Markierung,\"\")),\"\")","v":""},{"$f":"IFERROR(IF(LEN(Meilensteine[[#This Row],[Anzahl Tage]])=0,\"\",IF(AND(AE$5=$E9,$F9=1),Meilenstein_Markierung,\"\")),\"\")","v":""},{"$f":"IFERROR(IF(LEN(Meilensteine[[#This Row],[Anzahl Tage]])=0,\"\",IF(AND(AF$5=$E9,$F9=1),Meilenstein_Markierung,\"\")),\"\")","v":""},{"$f":"IFERROR(IF(LEN(Meilensteine[[#This Row],[Anzahl Tage]])=0,\"\",IF(AND(AG$5=$E9,$F9=1),Meilenstein_Markierung,\"\")),\"\")","v":""},{"$f":"IFERROR(IF(LEN(Meilensteine[[#This Row],[Anzahl Tage]])=0,\"\",IF(AND(AH$5=$E9,$F9=1),Meilenstein_Markierung,\"\")),\"\")","v":""},{"$f":"IFERROR(IF(LEN(Meilensteine[[#This Row],[Anzahl Tage]])=0,\"\",IF(AND(AI$5=$E9,$F9=1),Meilenstein_Markierung,\"\")),\"\")","v":""},{"$f":"IFERROR(IF(LEN(Meilensteine[[#This Row],[Anzahl Tage]])=0,\"\",IF(AND(AJ$5=$E9,$F9=1),Meilenstein_Markierung,\"\")),\"\")","v":""},{"$f":"IFERROR(IF(LEN(Meilensteine[[#This Row],[Anzahl Tage]])=0,\"\",IF(AND(AK$5=$E9,$F9=1),Meilenstein_Markierung,\"\")),\"\")","v":""},{"$f":"IFERROR(IF(LEN(Meilensteine[[#This Row],[Anzahl Tage]])=0,\"\",IF(AND(AL$5=$E9,$F9=1),Meilenstein_Markierung,\"\")),\"\")","v":""},{"$f":"IFERROR(IF(LEN(Meilensteine[[#This Row],[Anzahl Tage]])=0,\"\",IF(AND(AM$5=$E9,$F9=1),Meilenstein_Markierung,\"\")),\"\")","v":""},{"$f":"IFERROR(IF(LEN(Meilensteine[[#This Row],[Anzahl Tage]])=0,\"\",IF(AND(AN$5=$E9,$F9=1),Meilenstein_Markierung,\"\")),\"\")","v":""},{"$f":"IFERROR(IF(LEN(Meilensteine[[#This Row],[Anzahl Tage]])=0,\"\",IF(AND(AO$5=$E9,$F9=1),Meilenstein_Markierung,\"\")),\"\")","v":""},{"$f":"IFERROR(IF(LEN(Meilensteine[[#This Row],[Anzahl Tage]])=0,\"\",IF(AND(AP$5=$E9,$F9=1),Meilenstein_Markierung,\"\")),\"\")","v":""},{"$f":"IFERROR(IF(LEN(Meilensteine[[#This Row],[Anzahl Tage]])=0,\"\",IF(AND(AQ$5=$E9,$F9=1),Meilenstein_Markierung,\"\")),\"\")","v":""},{"$f":"IFERROR(IF(LEN(Meilensteine[[#This Row],[Anzahl Tage]])=0,\"\",IF(AND(AR$5=$E9,$F9=1),Meilenstein_Markierung,\"\")),\"\")","v":""},{"$f":"IFERROR(IF(LEN(Meilensteine[[#This Row],[Anzahl Tage]])=0,\"\",IF(AND(AS$5=$E9,$F9=1),Meilenstein_Markierung,\"\")),\"\")","v":""},{"$f":"IFERROR(IF(LEN(Meilensteine[[#This Row],[Anzahl Tage]])=0,\"\",IF(AND(AT$5=$E9,$F9=1),Meilenstein_Markierung,\"\")),\"\")","v":""},{"$f":"IFERROR(IF(LEN(Meilensteine[[#This Row],[Anzahl Tage]])=0,\"\",IF(AND(AU$5=$E9,$F9=1),Meilenstein_Markierung,\"\")),\"\")","v":""},{"$f":"IFERROR(IF(LEN(Meilensteine[[#This Row],[Anzahl Tage]])=0,\"\",IF(AND(AV$5=$E9,$F9=1),Meilenstein_Markierung,\"\")),\"\")","v":""},{"$f":"IFERROR(IF(LEN(Meilensteine[[#This Row],[Anzahl Tage]])=0,\"\",IF(AND(AW$5=$E9,$F9=1),Meilenstein_Markierung,\"\")),\"\")","v":""},{"$f":"IFERROR(IF(LEN(Meilensteine[[#This Row],[Anzahl Tage]])=0,\"\",IF(AND(AX$5=$E9,$F9=1),Meilenstein_Markierung,\"\")),\"\")","v":""},{"$f":"IFERROR(IF(LEN(Meilensteine[[#This Row],[Anzahl Tage]])=0,\"\",IF(AND(AY$5=$E9,$F9=1),Meilenstein_Markierung,\"\")),\"\")","v":""},{"$f":"IFERROR(IF(LEN(Meilensteine[[#This Row],[Anzahl Tage]])=0,\"\",IF(AND(AZ$5=$E9,$F9=1),Meilenstein_Markierung,\"\")),\"\")","v":""},{"$f":"IFERROR(IF(LEN(Meilensteine[[#This Row],[Anzahl Tage]])=0,\"\",IF(AND(BA$5=$E9,$F9=1),Meilenstein_Markierung,\"\")),\"\")","v":""},{"$f":"IFERROR(IF(LEN(Meilensteine[[#This Row],[Anzahl Tage]])=0,\"\",IF(AND(BB$5=$E9,$F9=1),Meilenstein_Markierung,\"\")),\"\")","v":""},{"$f":"IFERROR(IF(LEN(Meilensteine[[#This Row],[Anzahl Tage]])=0,\"\",IF(AND(BC$5=$E9,$F9=1),Meilenstein_Markierung,\"\")),\"\")","v":""},{"$f":"IFERROR(IF(LEN(Meilensteine[[#This Row],[Anzahl Tage]])=0,\"\",IF(AND(BD$5=$E9,$F9=1),Meilenstein_Markierung,\"\")),\"\")","v":""},{"$f":"IFERROR(IF(LEN(Meilensteine[[#This Row],[Anzahl Tage]])=0,\"\",IF(AND(BE$5=$E9,$F9=1),Meilenstein_Markierung,\"\")),\"\")","v":""},{"$f":"IFERROR(IF(LEN(Meilensteine[[#This Row],[Anzahl Tage]])=0,\"\",IF(AND(BF$5=$E9,$F9=1),Meilenstein_Markierung,\"\")),\"\")","v":""},{"$f":"IFERROR(IF(LEN(Meilensteine[[#This Row],[Anzahl Tage]])=0,\"\",IF(AND(BG$5=$E9,$F9=1),Meilenstein_Markierung,\"\")),\"\")","v":""},{"$f":"IFERROR(IF(LEN(Meilensteine[[#This Row],[Anzahl Tage]])=0,\"\",IF(AND(BH$5=$E9,$F9=1),Meilenstein_Markierung,\"\")),\"\")","v":""},{"$f":"IFERROR(IF(LEN(Meilensteine[[#This Row],[Anzahl Tage]])=0,\"\",IF(AND(BI$5=$E9,$F9=1),Meilenstein_Markierung,\"\")),\"\")","v":""},{"$f":"IFERROR(IF(LEN(Meilensteine[[#This Row],[Anzahl Tage]])=0,\"\",IF(AND(BJ$5=$E9,$F9=1),Meilenstein_Markierung,\"\")),\"\")","v":""},{"$f":"IFERROR(IF(LEN(Meilensteine[[#This Row],[Anzahl Tage]])=0,\"\",IF(AND(BK$5=$E9,$F9=1),Meilenstein_Markierung,\"\")),\"\")","v":""}]
[null,"Aufgabe 2",null,null,{"$f":"TODAY()+5","v":"2018-09-24"},1,null,{"$f":"IFERROR(IF(LEN(Meilensteine[[#This Row],[Anzahl Tage]])=0,\"\",IF(AND(H$5=$E10,$F10=1),Meilenstein_Markierung,\"\")),\"\")","v":""},{"$f":"IFERROR(IF(LEN(Meilensteine[[#This Row],[Anzahl Tage]])=0,\"\",IF(AND(I$5=$E10,$F10=1),Meilenstein_Markierung,\"\")),\"\")","v":""},{"$f":"IFERROR(IF(LEN(Meilensteine[[#This Row],[Anzahl Tage]])=0,\"\",IF(AND(J$5=$E10,$F10=1),Meilenstein_Markierung,\"\")),\"\")","v":""},{"$f":"IFERROR(IF(LEN(Meilensteine[[#This Row],[Anzahl Tage]])=0,\"\",IF(AND(K$5=$E10,$F10=1),Meilenstein_Markierung,\"\")),\"\")","v":""},{"$f":"IFERROR(IF(LEN(Meilensteine[[#This Row],[Anzahl Tage]])=0,\"\",IF(AND(L$5=$E10,$F10=1),Meilenstein_Markierung,\"\")),\"\")","v":""},{"$f":"IFERROR(IF(LEN(Meilensteine[[#This Row],[Anzahl Tage]])=0,\"\",IF(AND(M$5=$E10,$F10=1),Meilenstein_Markierung,\"\")),\"\")","v":""},{"$f":"IFERROR(IF(LEN(Meilensteine[[#This Row],[Anzahl Tage]])=0,\"\",IF(AND(N$5=$E10,$F10=1),Meilenstein_Markierung,\"\")),\"\")","v":""},{"$f":"IFERROR(IF(LEN(Meilensteine[[#This Row],[Anzahl Tage]])=0,\"\",IF(AND(O$5=$E10,$F10=1),Meilenstein_Markierung,\"\")),\"\")","v":""},{"$f":"IFERROR(IF(LEN(Meilensteine[[#This Row],[Anzahl Tage]])=0,\"\",IF(AND(P$5=$E10,$F10=1),Meilenstein_Markierung,\"\")),\"\")","v":1},{"$f":"IFERROR(IF(LEN(Meilensteine[[#This Row],[Anzahl Tage]])=0,\"\",IF(AND(Q$5=$E10,$F10=1),Meilenstein_Markierung,\"\")),\"\")","v":""},{"$f":"IFERROR(IF(LEN(Meilensteine[[#This Row],[Anzahl Tage]])=0,\"\",IF(AND(R$5=$E10,$F10=1),Meilenstein_Markierung,\"\")),\"\")","v":""},{"$f":"IFERROR(IF(LEN(Meilensteine[[#This Row],[Anzahl Tage]])=0,\"\",IF(AND(S$5=$E10,$F10=1),Meilenstein_Markierung,\"\")),\"\")","v":""},{"$f":"IFERROR(IF(LEN(Meilensteine[[#This Row],[Anzahl Tage]])=0,\"\",IF(AND(T$5=$E10,$F10=1),Meilenstein_Markierung,\"\")),\"\")","v":""},{"$f":"IFERROR(IF(LEN(Meilensteine[[#This Row],[Anzahl Tage]])=0,\"\",IF(AND(U$5=$E10,$F10=1),Meilenstein_Markierung,\"\")),\"\")","v":""},{"$f":"IFERROR(IF(LEN(Meilensteine[[#This Row],[Anzahl Tage]])=0,\"\",IF(AND(V$5=$E10,$F10=1),Meilenstein_Markierung,\"\")),\"\")","v":""},{"$f":"IFERROR(IF(LEN(Meilensteine[[#This Row],[Anzahl Tage]])=0,\"\",IF(AND(W$5=$E10,$F10=1),Meilenstein_Markierung,\"\")),\"\")","v":""},{"$f":"IFERROR(IF(LEN(Meilensteine[[#This Row],[Anzahl Tage]])=0,\"\",IF(AND(X$5=$E10,$F10=1),Meilenstein_Markierung,\"\")),\"\")","v":""},{"$f":"IFERROR(IF(LEN(Meilensteine[[#This Row],[Anzahl Tage]])=0,\"\",IF(AND(Y$5=$E10,$F10=1),Meilenstein_Markierung,\"\")),\"\")","v":""},{"$f":"IFERROR(IF(LEN(Meilensteine[[#This Row],[Anzahl Tage]])=0,\"\",IF(AND(Z$5=$E10,$F10=1),Meilenstein_Markierung,\"\")),\"\")","v":""},{"$f":"IFERROR(IF(LEN(Meilensteine[[#This Row],[Anzahl Tage]])=0,\"\",IF(AND(AA$5=$E10,$F10=1),Meilenstein_Markierung,\"\")),\"\")","v":""},{"$f":"IFERROR(IF(LEN(Meilensteine[[#This Row],[Anzahl Tage]])=0,\"\",IF(AND(AB$5=$E10,$F10=1),Meilenstein_Markierung,\"\")),\"\")","v":""},{"$f":"IFERROR(IF(LEN(Meilensteine[[#This Row],[Anzahl Tage]])=0,\"\",IF(AND(AC$5=$E10,$F10=1),Meilenstein_Markierung,\"\")),\"\")","v":""},{"$f":"IFERROR(IF(LEN(Meilensteine[[#This Row],[Anzahl Tage]])=0,\"\",IF(AND(AD$5=$E10,$F10=1),Meilenstein_Markierung,\"\")),\"\")","v":""},{"$f":"IFERROR(IF(LEN(Meilensteine[[#This Row],[Anzahl Tage]])=0,\"\",IF(AND(AE$5=$E10,$F10=1),Meilenstein_Markierung,\"\")),\"\")","v":""},{"$f":"IFERROR(IF(LEN(Meilensteine[[#This Row],[Anzahl Tage]])=0,\"\",IF(AND(AF$5=$E10,$F10=1),Meilenstein_Markierung,\"\")),\"\")","v":""},{"$f":"IFERROR(IF(LEN(Meilensteine[[#This Row],[Anzahl Tage]])=0,\"\",IF(AND(AG$5=$E10,$F10=1),Meilenstein_Markierung,\"\")),\"\")","v":""},{"$f":"IFERROR(IF(LEN(Meilensteine[[#This Row],[Anzahl Tage]])=0,\"\",IF(AND(AH$5=$E10,$F10=1),Meilenstein_Markierung,\"\")),\"\")","v":""},{"$f":"IFERROR(IF(LEN(Meilensteine[[#This Row],[Anzahl Tage]])=0,\"\",IF(AND(AI$5=$E10,$F10=1),Meilenstein_Markierung,\"\")),\"\")","v":""},{"$f":"IFERROR(IF(LEN(Meilensteine[[#This Row],[Anzahl Tage]])=0,\"\",IF(AND(AJ$5=$E10,$F10=1),Meilenstein_Markierung,\"\")),\"\")","v":""},{"$f":"IFERROR(IF(LEN(Meilensteine[[#This Row],[Anzahl Tage]])=0,\"\",IF(AND(AK$5=$E10,$F10=1),Meilenstein_Markierung,\"\")),\"\")","v":""},{"$f":"IFERROR(IF(LEN(Meilensteine[[#This Row],[Anzahl Tage]])=0,\"\",IF(AND(AL$5=$E10,$F10=1),Meilenstein_Markierung,\"\")),\"\")","v":""},{"$f":"IFERROR(IF(LEN(Meilensteine[[#This Row],[Anzahl Tage]])=0,\"\",IF(AND(AM$5=$E10,$F10=1),Meilenstein_Markierung,\"\")),\"\")","v":""},{"$f":"IFERROR(IF(LEN(Meilensteine[[#This Row],[Anzahl Tage]])=0,\"\",IF(AND(AN$5=$E10,$F10=1),Meilenstein_Markierung,\"\")),\"\")","v":""},{"$f":"IFERROR(IF(LEN(Meilensteine[[#This Row],[Anzahl Tage]])=0,\"\",IF(AND(AO$5=$E10,$F10=1),Meilenstein_Markierung,\"\")),\"\")","v":""},{"$f":"IFERROR(IF(LEN(Meilensteine[[#This Row],[Anzahl Tage]])=0,\"\",IF(AND(AP$5=$E10,$F10=1),Meilenstein_Markierung,\"\")),\"\")","v":""},{"$f":"IFERROR(IF(LEN(Meilensteine[[#This Row],[Anzahl Tage]])=0,\"\",IF(AND(AQ$5=$E10,$F10=1),Meilenstein_Markierung,\"\")),\"\")","v":""},{"$f":"IFERROR(IF(LEN(Meilensteine[[#This Row],[Anzahl Tage]])=0,\"\",IF(AND(AR$5=$E10,$F10=1),Meilenstein_Markierung,\"\")),\"\")","v":""},{"$f":"IFERROR(IF(LEN(Meilensteine[[#This Row],[Anzahl Tage]])=0,\"\",IF(AND(AS$5=$E10,$F10=1),Meilenstein_Markierung,\"\")),\"\")","v":""},{"$f":"IFERROR(IF(LEN(Meilensteine[[#This Row],[Anzahl Tage]])=0,\"\",IF(AND(AT$5=$E10,$F10=1),Meilenstein_Markierung,\"\")),\"\")","v":""},{"$f":"IFERROR(IF(LEN(Meilensteine[[#This Row],[Anzahl Tage]])=0,\"\",IF(AND(AU$5=$E10,$F10=1),Meilenstein_Markierung,\"\")),\"\")","v":""},{"$f":"IFERROR(IF(LEN(Meilensteine[[#This Row],[Anzahl Tage]])=0,\"\",IF(AND(AV$5=$E10,$F10=1),Meilenstein_Markierung,\"\")),\"\")","v":""},{"$f":"IFERROR(IF(LEN(Meilensteine[[#This Row],[Anzahl Tage]])=0,\"\",IF(AND(AW$5=$E10,$F10=1),Meilenstein_Markierung,\"\")),\"\")","v":""},{"$f":"IFERROR(IF(LEN(Meilensteine[[#This Row],[Anzahl Tage]])=0,\"\",IF(AND(AX$5=$E10,$F10=1),Meilenstein_Markierung,\"\")),\"\")","v":""},{"$f":"IFERROR(IF(LEN(Meilensteine[[#This Row],[Anzahl Tage]])=0,\"\",IF(AND(AY$5=$E10,$F10=1),Meilenstein_Markierung,\"\")),\"\")","v":""},{"$f":"IFERROR(IF(LEN(Meilensteine[[#This Row],[Anzahl Tage]])=0,\"\",IF(AND(AZ$5=$E10,$F10=1),Meilenstein_Markierung,\"\")),\"\")","v":""},{"$f":"IFERROR(IF(LEN(Meilensteine[[#This Row],[Anzahl Tage]])=0,\"\",IF(AND(BA$5=$E10,$F10=1),Meilenstein_Markierung,\"\")),\"\")","v":""},{"$f":"IFERROR(IF(LEN(Meilensteine[[#This Row],[Anzahl Tage]])=0,\"\",IF(AND(BB$5=$E10,$F10=1),Meilenstein_Markierung,\"\")),\"\")","v":""},{"$f":"IFERROR(IF(LEN(Meilensteine[[#This Row],[Anzahl Tage]])=0,\"\",IF(AND(BC$5=$E10,$F10=1),Meilenstein_Markierung,\"\")),\"\")","v":""},{"$f":"IFERROR(IF(LEN(Meilensteine[[#This Row],[Anzahl Tage]])=0,\"\",IF(AND(BD$5=$E10,$F10=1),Meilenstein_Markierung,\"\")),\"\")","v":""},{"$f":"IFERROR(IF(LEN(Meilensteine[[#This Row],[Anzahl Tage]])=0,\"\",IF(AND(BE$5=$E10,$F10=1),Meilenstein_Markierung,\"\")),\"\")","v":""},{"$f":"IFERROR(IF(LEN(Meilensteine[[#This Row],[Anzahl Tage]])=0,\"\",IF(AND(BF$5=$E10,$F10=1),Meilenstein_Markierung,\"\")),\"\")","v":""},{"$f":"IFERROR(IF(LEN(Meilensteine[[#This Row],[Anzahl Tage]])=0,\"\",IF(AND(BG$5=$E10,$F10=1),Meilenstein_Markierung,\"\")),\"\")","v":""},{"$f":"IFERROR(IF(LEN(Meilensteine[[#This Row],[Anzahl Tage]])=0,\"\",IF(AND(BH$5=$E10,$F10=1),Meilenstein_Markierung,\"\")),\"\")","v":""},{"$f":"IFERROR(IF(LEN(Meilensteine[[#This Row],[Anzahl Tage]])=0,\"\",IF(AND(BI$5=$E10,$F10=1),Meilenstein_Markierung,\"\")),\"\")","v":""},{"$f":"IFERROR(IF(LEN(Meilensteine[[#This Row],[Anzahl Tage]])=0,\"\",IF(AND(BJ$5=$E10,$F10=1),Meilenstein_Markierung,\"\")),\"\")","v":""},{"$f":"IFERROR(IF(LEN(Meilensteine[[#This Row],[Anzahl Tage]])=0,\"\",IF(AND(BK$5=$E10,$F10=1),Meilenstein_Markierung,\"\")),\"\")","v":""}]
[null,"Aufgabe 3",null,{"v":0.5,"d":"50%"},{"$f":"TODAY()-3","v":"2018-09-16"},10,null,{"$f":"IFERROR(IF(LEN(Meilensteine[[#This Row],[Anzahl Tage]])=0,\"\",IF(AND(H$5=$E11,$F11=1),Meilenstein_Markierung,\"\")),\"\")","v":""},{"$f":"IFERROR(IF(LEN(Meilensteine[[#This Row],[Anzahl Tage]])=0,\"\",IF(AND(I$5=$E11,$F11=1),Meilenstein_Markierung,\"\")),\"\")","v":""},{"$f":"IFERROR(IF(LEN(Meilensteine[[#This Row],[Anzahl Tage]])=0,\"\",IF(AND(J$5=$E11,$F11=1),Meilenstein_Markierung,\"\")),\"\")","v":""},{"$f":"IFERROR(IF(LEN(Meilensteine[[#This Row],[Anzahl Tage]])=0,\"\",IF(AND(K$5=$E11,$F11=1),Meilenstein_Markierung,\"\")),\"\")","v":""},{"$f":"IFERROR(IF(LEN(Meilensteine[[#This Row],[Anzahl Tage]])=0,\"\",IF(AND(L$5=$E11,$F11=1),Meilenstein_Markierung,\"\")),\"\")","v":""},{"$f":"IFERROR(IF(LEN(Meilensteine[[#This Row],[Anzahl Tage]])=0,\"\",IF(AND(M$5=$E11,$F11=1),Meilenstein_Markierung,\"\")),\"\")","v":""},{"$f":"IFERROR(IF(LEN(Meilensteine[[#This Row],[Anzahl Tage]])=0,\"\",IF(AND(N$5=$E11,$F11=1),Meilenstein_Markierung,\"\")),\"\")","v":""},{"$f":"IFERROR(IF(LEN(Meilensteine[[#This Row],[Anzahl Tage]])=0,\"\",IF(AND(O$5=$E11,$F11=1),Meilenstein_Markierung,\"\")),\"\")","v":""},{"$f":"IFERROR(IF(LEN(Meilensteine[[#This Row],[Anzahl Tage]])=0,\"\",IF(AND(P$5=$E11,$F11=1),Meilenstein_Markierung,\"\")),\"\")","v":""},{"$f":"IFERROR(IF(LEN(Meilensteine[[#This Row],[Anzahl Tage]])=0,\"\",IF(AND(Q$5=$E11,$F11=1),Meilenstein_Markierung,\"\")),\"\")","v":""},{"$f":"IFERROR(IF(LEN(Meilensteine[[#This Row],[Anzahl Tage]])=0,\"\",IF(AND(R$5=$E11,$F11=1),Meilenstein_Markierung,\"\")),\"\")","v":""},{"$f":"IFERROR(IF(LEN(Meilensteine[[#This Row],[Anzahl Tage]])=0,\"\",IF(AND(S$5=$E11,$F11=1),Meilenstein_Markierung,\"\")),\"\")","v":""},{"$f":"IFERROR(IF(LEN(Meilensteine[[#This Row],[Anzahl Tage]])=0,\"\",IF(AND(T$5=$E11,$F11=1),Meilenstein_Markierung,\"\")),\"\")","v":""},{"$f":"IFERROR(IF(LEN(Meilensteine[[#This Row],[Anzahl Tage]])=0,\"\",IF(AND(U$5=$E11,$F11=1),Meilenstein_Markierung,\"\")),\"\")","v":""},{"$f":"IFERROR(IF(LEN(Meilensteine[[#This Row],[Anzahl Tage]])=0,\"\",IF(AND(V$5=$E11,$F11=1),Meilenstein_Markierung,\"\")),\"\")","v":""},{"$f":"IFERROR(IF(LEN(Meilensteine[[#This Row],[Anzahl Tage]])=0,\"\",IF(AND(W$5=$E11,$F11=1),Meilenstein_Markierung,\"\")),\"\")","v":""},{"$f":"IFERROR(IF(LEN(Meilensteine[[#This Row],[Anzahl Tage]])=0,\"\",IF(AND(X$5=$E11,$F11=1),Meilenstein_Markierung,\"\")),\"\")","v":""},{"$f":"IFERROR(IF(LEN(Meilensteine[[#This Row],[Anzahl Tage]])=0,\"\",IF(AND(Y$5=$E11,$F11=1),Meilenstein_Markierung,\"\")),\"\")","v":""},{"$f":"IFERROR(IF(LEN(Meilensteine[[#This Row],[Anzahl Tage]])=0,\"\",IF(AND(Z$5=$E11,$F11=1),Meilenstein_Markierung,\"\")),\"\")","v":""},{"$f":"IFERROR(IF(LEN(Meilensteine[[#This Row],[Anzahl Tage]])=0,\"\",IF(AND(AA$5=$E11,$F11=1),Meilenstein_Markierung,\"\")),\"\")","v":""},{"$f":"IFERROR(IF(LEN(Meilensteine[[#This Row],[Anzahl Tage]])=0,\"\",IF(AND(AB$5=$E11,$F11=1),Meilenstein_Markierung,\"\")),\"\")","v":""},{"$f":"IFERROR(IF(LEN(Meilensteine[[#This Row],[Anzahl Tage]])=0,\"\",IF(AND(AC$5=$E11,$F11=1),Meilenstein_Markierung,\"\")),\"\")","v":""},{"$f":"IFERROR(IF(LEN(Meilensteine[[#This Row],[Anzahl Tage]])=0,\"\",IF(AND(AD$5=$E11,$F11=1),Meilenstein_Markierung,\"\")),\"\")","v":""},{"$f":"IFERROR(IF(LEN(Meilensteine[[#This Row],[Anzahl Tage]])=0,\"\",IF(AND(AE$5=$E11,$F11=1),Meilenstein_Markierung,\"\")),\"\")","v":""},{"$f":"IFERROR(IF(LEN(Meilensteine[[#This Row],[Anzahl Tage]])=0,\"\",IF(AND(AF$5=$E11,$F11=1),Meilenstein_Markierung,\"\")),\"\")","v":""},{"$f":"IFERROR(IF(LEN(Meilensteine[[#This Row],[Anzahl Tage]])=0,\"\",IF(AND(AG$5=$E11,$F11=1),Meilenstein_Markierung,\"\")),\"\")","v":""},{"$f":"IFERROR(IF(LEN(Meilensteine[[#This Row],[Anzahl Tage]])=0,\"\",IF(AND(AH$5=$E11,$F11=1),Meilenstein_Markierung,\"\")),\"\")","v":""},{"$f":"IFERROR(IF(LEN(Meilensteine[[#This Row],[Anzahl Tage]])=0,\"\",IF(AND(AI$5=$E11,$F11=1),Meilenstein_Markierung,\"\")),\"\")","v":""},{"$f":"IFERROR(IF(LEN(Meilensteine[[#This Row],[Anzahl Tage]])=0,\"\",IF(AND(AJ$5=$E11,$F11=1),Meilenstein_Markierung,\"\")),\"\")","v":""},{"$f":"IFERROR(IF(LEN(Meilensteine[[#This Row],[Anzahl Tage]])=0,\"\",IF(AND(AK$5=$E11,$F11=1),Meilenstein_Markierung,\"\")),\"\")","v":""},{"$f":"IFERROR(IF(LEN(Meilensteine[[#This Row],[Anzahl Tage]])=0,\"\",IF(AND(AL$5=$E11,$F11=1),Meilenstein_Markierung,\"\")),\"\")","v":""},{"$f":"IFERROR(IF(LEN(Meilensteine[[#This Row],[Anzahl Tage]])=0,\"\",IF(AND(AM$5=$E11,$F11=1),Meilenstein_Markierung,\"\")),\"\")","v":""},{"$f":"IFERROR(IF(LEN(Meilensteine[[#This Row],[Anzahl Tage]])=0,\"\",IF(AND(AN$5=$E11,$F11=1),Meilenstein_Markierung,\"\")),\"\")","v":""},{"$f":"IFERROR(IF(LEN(Meilensteine[[#This Row],[Anzahl Tage]])=0,\"\",IF(AND(AO$5=$E11,$F11=1),Meilenstein_Markierung,\"\")),\"\")","v":""},{"$f":"IFERROR(IF(LEN(Meilensteine[[#This Row],[Anzahl Tage]])=0,\"\",IF(AND(AP$5=$E11,$F11=1),Meilenstein_Markierung,\"\")),\"\")","v":""},{"$f":"IFERROR(IF(LEN(Meilensteine[[#This Row],[Anzahl Tage]])=0,\"\",IF(AND(AQ$5=$E11,$F11=1),Meilenstein_Markierung,\"\")),\"\")","v":""},{"$f":"IFERROR(IF(LEN(Meilensteine[[#This Row],[Anzahl Tage]])=0,\"\",IF(AND(AR$5=$E11,$F11=1),Meilenstein_Markierung,\"\")),\"\")","v":""},{"$f":"IFERROR(IF(LEN(Meilensteine[[#This Row],[Anzahl Tage]])=0,\"\",IF(AND(AS$5=$E11,$F11=1),Meilenstein_Markierung,\"\")),\"\")","v":""},{"$f":"IFERROR(IF(LEN(Meilensteine[[#This Row],[Anzahl Tage]])=0,\"\",IF(AND(AT$5=$E11,$F11=1),Meilenstein_Markierung,\"\")),\"\")","v":""},{"$f":"IFERROR(IF(LEN(Meilensteine[[#This Row],[Anzahl Tage]])=0,\"\",IF(AND(AU$5=$E11,$F11=1),Meilenstein_Markierung,\"\")),\"\")","v":""},{"$f":"IFERROR(IF(LEN(Meilensteine[[#This Row],[Anzahl Tage]])=0,\"\",IF(AND(AV$5=$E11,$F11=1),Meilenstein_Markierung,\"\")),\"\")","v":""},{"$f":"IFERROR(IF(LEN(Meilensteine[[#This Row],[Anzahl Tage]])=0,\"\",IF(AND(AW$5=$E11,$F11=1),Meilenstein_Markierung,\"\")),\"\")","v":""},{"$f":"IFERROR(IF(LEN(Meilensteine[[#This Row],[Anzahl Tage]])=0,\"\",IF(AND(AX$5=$E11,$F11=1),Meilenstein_Markierung,\"\")),\"\")","v":""},{"$f":"IFERROR(IF(LEN(Meilensteine[[#This Row],[Anzahl Tage]])=0,\"\",IF(AND(AY$5=$E11,$F11=1),Meilenstein_Markierung,\"\")),\"\")","v":""},{"$f":"IFERROR(IF(LEN(Meilensteine[[#This Row],[Anzahl Tage]])=0,\"\",IF(AND(AZ$5=$E11,$F11=1),Meilenstein_Markierung,\"\")),\"\")","v":""},{"$f":"IFERROR(IF(LEN(Meilensteine[[#This Row],[Anzahl Tage]])=0,\"\",IF(AND(BA$5=$E11,$F11=1),Meilenstein_Markierung,\"\")),\"\")","v":""},{"$f":"IFERROR(IF(LEN(Meilensteine[[#This Row],[Anzahl Tage]])=0,\"\",IF(AND(BB$5=$E11,$F11=1),Meilenstein_Markierung,\"\")),\"\")","v":""},{"$f":"IFERROR(IF(LEN(Meilensteine[[#This Row],[Anzahl Tage]])=0,\"\",IF(AND(BC$5=$E11,$F11=1),Meilenstein_Markierung,\"\")),\"\")","v":""},{"$f":"IFERROR(IF(LEN(Meilensteine[[#This Row],[Anzahl Tage]])=0,\"\",IF(AND(BD$5=$E11,$F11=1),Meilenstein_Markierung,\"\")),\"\")","v":""},{"$f":"IFERROR(IF(LEN(Meilensteine[[#This Row],[Anzahl Tage]])=0,\"\",IF(AND(BE$5=$E11,$F11=1),Meilenstein_Markierung,\"\")),\"\")","v":""},{"$f":"IFERROR(IF(LEN(Meilensteine[[#This Row],[Anzahl Tage]])=0,\"\",IF(AND(BF$5=$E11,$F11=1),Meilenstein_Markierung,\"\")),\"\")","v":""},{"$f":"IFERROR(IF(LEN(Meilensteine[[#This Row],[Anzahl Tage]])=0,\"\",IF(AND(BG$5=$E11,$F11=1),Meilenstein_Markierung,\"\")),\"\")","v":""},{"$f":"IFERROR(IF(LEN(Meilensteine[[#This Row],[Anzahl Tage]])=0,\"\",IF(AND(BH$5=$E11,$F11=1),Meilenstein_Markierung,\"\")),\"\")","v":""},{"$f":"IFERROR(IF(LEN(Meilensteine[[#This Row],[Anzahl Tage]])=0,\"\",IF(AND(BI$5=$E11,$F11=1),Meilenstein_Markierung,\"\")),\"\")","v":""},{"$f":"IFERROR(IF(LEN(Meilensteine[[#This Row],[Anzahl Tage]])=0,\"\",IF(AND(BJ$5=$E11,$F11=1),Meilenstein_Markierung,\"\")),\"\")","v":""},{"$f":"IFERROR(IF(LEN(Meilensteine[[#This Row],[Anzahl Tage]])=0,\"\",IF(AND(BK$5=$E11,$F11=1),Meilenstein_Markierung,\"\")),\"\")","v":""}]
[null,"Aufgabe 4",null,null,{"$f":"TODAY()+20","v":"2018-10-09"},1,null,{"$f":"IFERROR(IF(LEN(Meilensteine[[#This Row],[Anzahl Tage]])=0,\"\",IF(AND(H$5=$E12,$F12=1),Meilenstein_Markierung,\"\")),\"\")","v":""},{"$f":"IFERROR(IF(LEN(Meilensteine[[#This Row],[Anzahl Tage]])=0,\"\",IF(AND(I$5=$E12,$F12=1),Meilenstein_Markierung,\"\")),\"\")","v":""},{"$f":"IFERROR(IF(LEN(Meilensteine[[#This Row],[Anzahl Tage]])=0,\"\",IF(AND(J$5=$E12,$F12=1),Meilenstein_Markierung,\"\")),\"\")","v":""},{"$f":"IFERROR(IF(LEN(Meilensteine[[#This Row],[Anzahl Tage]])=0,\"\",IF(AND(K$5=$E12,$F12=1),Meilenstein_Markierung,\"\")),\"\")","v":""},{"$f":"IFERROR(IF(LEN(Meilensteine[[#This Row],[Anzahl Tage]])=0,\"\",IF(AND(L$5=$E12,$F12=1),Meilenstein_Markierung,\"\")),\"\")","v":""},{"$f":"IFERROR(IF(LEN(Meilensteine[[#This Row],[Anzahl Tage]])=0,\"\",IF(AND(M$5=$E12,$F12=1),Meilenstein_Markierung,\"\")),\"\")","v":""},{"$f":"IFERROR(IF(LEN(Meilensteine[[#This Row],[Anzahl Tage]])=0,\"\",IF(AND(N$5=$E12,$F12=1),Meilenstein_Markierung,\"\")),\"\")","v":""},{"$f":"IFERROR(IF(LEN(Meilensteine[[#This Row],[Anzahl Tage]])=0,\"\",IF(AND(O$5=$E12,$F12=1),Meilenstein_Markierung,\"\")),\"\")","v":""},{"$f":"IFERROR(IF(LEN(Meilensteine[[#This Row],[Anzahl Tage]])=0,\"\",IF(AND(P$5=$E12,$F12=1),Meilenstein_Markierung,\"\")),\"\")","v":""},{"$f":"IFERROR(IF(LEN(Meilensteine[[#This Row],[Anzahl Tage]])=0,\"\",IF(AND(Q$5=$E12,$F12=1),Meilenstein_Markierung,\"\")),\"\")","v":""},{"$f":"IFERROR(IF(LEN(Meilensteine[[#This Row],[Anzahl Tage]])=0,\"\",IF(AND(R$5=$E12,$F12=1),Meilenstein_Markierung,\"\")),\"\")","v":""},{"$f":"IFERROR(IF(LEN(Meilensteine[[#This Row],[Anzahl Tage]])=0,\"\",IF(AND(S$5=$E12,$F12=1),Meilenstein_Markierung,\"\")),\"\")","v":""},{"$f":"IFERROR(IF(LEN(Meilensteine[[#This Row],[Anzahl Tage]])=0,\"\",IF(AND(T$5=$E12,$F12=1),Meilenstein_Markierung,\"\")),\"\")","v":""},{"$f":"IFERROR(IF(LEN(Meilensteine[[#This Row],[Anzahl Tage]])=0,\"\",IF(AND(U$5=$E12,$F12=1),Meilenstein_Markierung,\"\")),\"\")","v":""},{"$f":"IFERROR(IF(LEN(Meilensteine[[#This Row],[Anzahl Tage]])=0,\"\",IF(AND(V$5=$E12,$F12=1),Meilenstein_Markierung,\"\")),\"\")","v":""},{"$f":"IFERROR(IF(LEN(Meilensteine[[#This Row],[Anzahl Tage]])=0,\"\",IF(AND(W$5=$E12,$F12=1),Meilenstein_Markierung,\"\")),\"\")","v":""},{"$f":"IFERROR(IF(LEN(Meilensteine[[#This Row],[Anzahl Tage]])=0,\"\",IF(AND(X$5=$E12,$F12=1),Meilenstein_Markierung,\"\")),\"\")","v":""},{"$f":"IFERROR(IF(LEN(Meilensteine[[#This Row],[Anzahl Tage]])=0,\"\",IF(AND(Y$5=$E12,$F12=1),Meilenstein_Markierung,\"\")),\"\")","v":""},{"$f":"IFERROR(IF(LEN(Meilensteine[[#This Row],[Anzahl Tage]])=0,\"\",IF(AND(Z$5=$E12,$F12=1),Meilenstein_Markierung,\"\")),\"\")","v":""},{"$f":"IFERROR(IF(LEN(Meilensteine[[#This Row],[Anzahl Tage]])=0,\"\",IF(AND(AA$5=$E12,$F12=1),Meilenstein_Markierung,\"\")),\"\")","v":""},{"$f":"IFERROR(IF(LEN(Meilensteine[[#This Row],[Anzahl Tage]])=0,\"\",IF(AND(AB$5=$E12,$F12=1),Meilenstein_Markierung,\"\")),\"\")","v":""},{"$f":"IFERROR(IF(LEN(Meilensteine[[#This Row],[Anzahl Tage]])=0,\"\",IF(AND(AC$5=$E12,$F12=1),Meilenstein_Markierung,\"\")),\"\")","v":""},{"$f":"IFERROR(IF(LEN(Meilensteine[[#This Row],[Anzahl Tage]])=0,\"\",IF(AND(AD$5=$E12,$F12=1),Meilenstein_Markierung,\"\")),\"\")","v":""},{"$f":"IFERROR(IF(LEN(Meilensteine[[#This Row],[Anzahl Tage]])=0,\"\",IF(AND(AE$5=$E12,$F12=1),Meilenstein_Markierung,\"\")),\"\")","v":1},{"$f":"IFERROR(IF(LEN(Meilensteine[[#This Row],[Anzahl Tage]])=0,\"\",IF(AND(AF$5=$E12,$F12=1),Meilenstein_Markierung,\"\")),\"\")","v":""},{"$f":"IFERROR(IF(LEN(Meilensteine[[#This Row],[Anzahl Tage]])=0,\"\",IF(AND(AG$5=$E12,$F12=1),Meilenstein_Markierung,\"\")),\"\")","v":""},{"$f":"IFERROR(IF(LEN(Meilensteine[[#This Row],[Anzahl Tage]])=0,\"\",IF(AND(AH$5=$E12,$F12=1),Meilenstein_Markierung,\"\")),\"\")","v":""},{"$f":"IFERROR(IF(LEN(Meilensteine[[#This Row],[Anzahl Tage]])=0,\"\",IF(AND(AI$5=$E12,$F12=1),Meilenstein_Markierung,\"\")),\"\")","v":""},{"$f":"IFERROR(IF(LEN(Meilensteine[[#This Row],[Anzahl Tage]])=0,\"\",IF(AND(AJ$5=$E12,$F12=1),Meilenstein_Markierung,\"\")),\"\")","v":""},{"$f":"IFERROR(IF(LEN(Meilensteine[[#This Row],[Anzahl Tage]])=0,\"\",IF(AND(AK$5=$E12,$F12=1),Meilenstein_Markierung,\"\")),\"\")","v":""},{"$f":"IFERROR(IF(LEN(Meilensteine[[#This Row],[Anzahl Tage]])=0,\"\",IF(AND(AL$5=$E12,$F12=1),Meilenstein_Markierung,\"\")),\"\")","v":""},{"$f":"IFERROR(IF(LEN(Meilensteine[[#This Row],[Anzahl Tage]])=0,\"\",IF(AND(AM$5=$E12,$F12=1),Meilenstein_Markierung,\"\")),\"\")","v":""},{"$f":"IFERROR(IF(LEN(Meilensteine[[#This Row],[Anzahl Tage]])=0,\"\",IF(AND(AN$5=$E12,$F12=1),Meilenstein_Markierung,\"\")),\"\")","v":""},{"$f":"IFERROR(IF(LEN(Meilensteine[[#This Row],[Anzahl Tage]])=0,\"\",IF(AND(AO$5=$E12,$F12=1),Meilenstein_Markierung,\"\")),\"\")","v":""},{"$f":"IFERROR(IF(LEN(Meilensteine[[#This Row],[Anzahl Tage]])=0,\"\",IF(AND(AP$5=$E12,$F12=1),Meilenstein_Markierung,\"\")),\"\")","v":""},{"$f":"IFERROR(IF(LEN(Meilensteine[[#This Row],[Anzahl Tage]])=0,\"\",IF(AND(AQ$5=$E12,$F12=1),Meilenstein_Markierung,\"\")),\"\")","v":""},{"$f":"IFERROR(IF(LEN(Meilensteine[[#This Row],[Anzahl Tage]])=0,\"\",IF(AND(AR$5=$E12,$F12=1),Meilenstein_Markierung,\"\")),\"\")","v":""},{"$f":"IFERROR(IF(LEN(Meilensteine[[#This Row],[Anzahl Tage]])=0,\"\",IF(AND(AS$5=$E12,$F12=1),Meilenstein_Markierung,\"\")),\"\")","v":""},{"$f":"IFERROR(IF(LEN(Meilensteine[[#This Row],[Anzahl Tage]])=0,\"\",IF(AND(AT$5=$E12,$F12=1),Meilenstein_Markierung,\"\")),\"\")","v":""},{"$f":"IFERROR(IF(LEN(Meilensteine[[#This Row],[Anzahl Tage]])=0,\"\",IF(AND(AU$5=$E12,$F12=1),Meilenstein_Markierung,\"\")),\"\")","v":""},{"$f":"IFERROR(IF(LEN(Meilensteine[[#This Row],[Anzahl Tage]])=0,\"\",IF(AND(AV$5=$E12,$F12=1),Meilenstein_Markierung,\"\")),\"\")","v":""},{"$f":"IFERROR(IF(LEN(Meilensteine[[#This Row],[Anzahl Tage]])=0,\"\",IF(AND(AW$5=$E12,$F12=1),Meilenstein_Markierung,\"\")),\"\")","v":""},{"$f":"IFERROR(IF(LEN(Meilensteine[[#This Row],[Anzahl Tage]])=0,\"\",IF(AND(AX$5=$E12,$F12=1),Meilenstein_Markierung,\"\")),\"\")","v":""},{"$f":"IFERROR(IF(LEN(Meilensteine[[#This Row],[Anzahl Tage]])=0,\"\",IF(AND(AY$5=$E12,$F12=1),Meilenstein_Markierung,\"\")),\"\")","v":""},{"$f":"IFERROR(IF(LEN(Meilensteine[[#This Row],[Anzahl Tage]])=0,\"\",IF(AND(AZ$5=$E12,$F12=1),Meilenstein_Markierung,\"\")),\"\")","v":""},{"$f":"IFERROR(IF(LEN(Meilensteine[[#This Row],[Anzahl Tage]])=0,\"\",IF(AND(BA$5=$E12,$F12=1),Meilenstein_Markierung,\"\")),\"\")","v":""},{"$f":"IFERROR(IF(LEN(Meilensteine[[#This Row],[Anzahl Tage]])=0,\"\",IF(AND(BB$5=$E12,$F12=1),Meilenstein_Markierung,\"\")),\"\")","v":""},{"$f":"IFERROR(IF(LEN(Meilensteine[[#This Row],[Anzahl Tage]])=0,\"\",IF(AND(BC$5=$E12,$F12=1),Meilenstein_Markierung,\"\")),\"\")","v":""},{"$f":"IFERROR(IF(LEN(Meilensteine[[#This Row],[Anzahl Tage]])=0,\"\",IF(AND(BD$5=$E12,$F12=1),Meilenstein_Markierung,\"\")),\"\")","v":""},{"$f":"IFERROR(IF(LEN(Meilensteine[[#This Row],[Anzahl Tage]])=0,\"\",IF(AND(BE$5=$E12,$F12=1),Meilenstein_Markierung,\"\")),\"\")","v":""},{"$f":"IFERROR(IF(LEN(Meilensteine[[#This Row],[Anzahl Tage]])=0,\"\",IF(AND(BF$5=$E12,$F12=1),Meilenstein_Markierung,\"\")),\"\")","v":""},{"$f":"IFERROR(IF(LEN(Meilensteine[[#This Row],[Anzahl Tage]])=0,\"\",IF(AND(BG$5=$E12,$F12=1),Meilenstein_Markierung,\"\")),\"\")","v":""},{"$f":"IFERROR(IF(LEN(Meilensteine[[#This Row],[Anzahl Tage]])=0,\"\",IF(AND(BH$5=$E12,$F12=1),Meilenstein_Markierung,\"\")),\"\")","v":""},{"$f":"IFERROR(IF(LEN(Meilensteine[[#This Row],[Anzahl Tage]])=0,\"\",IF(AND(BI$5=$E12,$F12=1),Meilenstein_Markierung,\"\")),\"\")","v":""},{"$f":"IFERROR(IF(LEN(Meilensteine[[#This Row],[Anzahl Tage]])=0,\"\",IF(AND(BJ$5=$E12,$F12=1),Meilenstein_Markierung,\"\")),\"\")","v":""},{"$f":"IFERROR(IF(LEN(Meilensteine[[#This Row],[Anzahl Tage]])=0,\"\",IF(AND(BK$5=$E12,$F12=1),Meilenstein_Markierung,\"\")),\"\")","v":""}]
[null,"Aufgabe 5",null,{"v":0.1,"d":"10%"},{"$f":"TODAY()+6","v":"2018-09-25"},6,null,{"$f":"IFERROR(IF(LEN(Meilensteine[[#This Row],[Anzahl Tage]])=0,\"\",IF(AND(H$5=$E13,$F13=1),Meilenstein_Markierung,\"\")),\"\")","v":""},{"$f":"IFERROR(IF(LEN(Meilensteine[[#This Row],[Anzahl Tage]])=0,\"\",IF(AND(I$5=$E13,$F13=1),Meilenstein_Markierung,\"\")),\"\")","v":""},{"$f":"IFERROR(IF(LEN(Meilensteine[[#This Row],[Anzahl Tage]])=0,\"\",IF(AND(J$5=$E13,$F13=1),Meilenstein_Markierung,\"\")),\"\")","v":""},{"$f":"IFERROR(IF(LEN(Meilensteine[[#This Row],[Anzahl Tage]])=0,\"\",IF(AND(K$5=$E13,$F13=1),Meilenstein_Markierung,\"\")),\"\")","v":""},{"$f":"IFERROR(IF(LEN(Meilensteine[[#This Row],[Anzahl Tage]])=0,\"\",IF(AND(L$5=$E13,$F13=1),Meilenstein_Markierung,\"\")),\"\")","v":""},{"$f":"IFERROR(IF(LEN(Meilensteine[[#This Row],[Anzahl Tage]])=0,\"\",IF(AND(M$5=$E13,$F13=1),Meilenstein_Markierung,\"\")),\"\")","v":""},{"$f":"IFERROR(IF(LEN(Meilensteine[[#This Row],[Anzahl Tage]])=0,\"\",IF(AND(N$5=$E13,$F13=1),Meilenstein_Markierung,\"\")),\"\")","v":""},{"$f":"IFERROR(IF(LEN(Meilensteine[[#This Row],[Anzahl Tage]])=0,\"\",IF(AND(O$5=$E13,$F13=1),Meilenstein_Markierung,\"\")),\"\")","v":""},{"$f":"IFERROR(IF(LEN(Meilensteine[[#This Row],[Anzahl Tage]])=0,\"\",IF(AND(P$5=$E13,$F13=1),Meilenstein_Markierung,\"\")),\"\")","v":""},{"$f":"IFERROR(IF(LEN(Meilensteine[[#This Row],[Anzahl Tage]])=0,\"\",IF(AND(Q$5=$E13,$F13=1),Meilenstein_Markierung,\"\")),\"\")","v":""},{"$f":"IFERROR(IF(LEN(Meilensteine[[#This Row],[Anzahl Tage]])=0,\"\",IF(AND(R$5=$E13,$F13=1),Meilenstein_Markierung,\"\")),\"\")","v":""},{"$f":"IFERROR(IF(LEN(Meilensteine[[#This Row],[Anzahl Tage]])=0,\"\",IF(AND(S$5=$E13,$F13=1),Meilenstein_Markierung,\"\")),\"\")","v":""},{"$f":"IFERROR(IF(LEN(Meilensteine[[#This Row],[Anzahl Tage]])=0,\"\",IF(AND(T$5=$E13,$F13=1),Meilenstein_Markierung,\"\")),\"\")","v":""},{"$f":"IFERROR(IF(LEN(Meilensteine[[#This Row],[Anzahl Tage]])=0,\"\",IF(AND(U$5=$E13,$F13=1),Meilenstein_Markierung,\"\")),\"\")","v":""},{"$f":"IFERROR(IF(LEN(Meilensteine[[#This Row],[Anzahl Tage]])=0,\"\",IF(AND(V$5=$E13,$F13=1),Meilenstein_Markierung,\"\")),\"\")","v":""},{"$f":"IFERROR(IF(LEN(Meilensteine[[#This Row],[Anzahl Tage]])=0,\"\",IF(AND(W$5=$E13,$F13=1),Meilenstein_Markierung,\"\")),\"\")","v":""},{"$f":"IFERROR(IF(LEN(Meilensteine[[#This Row],[Anzahl Tage]])=0,\"\",IF(AND(X$5=$E13,$F13=1),Meilenstein_Markierung,\"\")),\"\")","v":""},{"$f":"IFERROR(IF(LEN(Meilensteine[[#This Row],[Anzahl Tage]])=0,\"\",IF(AND(Y$5=$E13,$F13=1),Meilenstein_Markierung,\"\")),\"\")","v":""},{"$f":"IFERROR(IF(LEN(Meilensteine[[#This Row],[Anzahl Tage]])=0,\"\",IF(AND(Z$5=$E13,$F13=1),Meilenstein_Markierung,\"\")),\"\")","v":""},{"$f":"IFERROR(IF(LEN(Meilensteine[[#This Row],[Anzahl Tage]])=0,\"\",IF(AND(AA$5=$E13,$F13=1),Meilenstein_Markierung,\"\")),\"\")","v":""},{"$f":"IFERROR(IF(LEN(Meilensteine[[#This Row],[Anzahl Tage]])=0,\"\",IF(AND(AB$5=$E13,$F13=1),Meilenstein_Markierung,\"\")),\"\")","v":""},{"$f":"IFERROR(IF(LEN(Meilensteine[[#This Row],[Anzahl Tage]])=0,\"\",IF(AND(AC$5=$E13,$F13=1),Meilenstein_Markierung,\"\")),\"\")","v":""},{"$f":"IFERROR(IF(LEN(Meilensteine[[#This Row],[Anzahl Tage]])=0,\"\",IF(AND(AD$5=$E13,$F13=1),Meilenstein_Markierung,\"\")),\"\")","v":""},{"$f":"IFERROR(IF(LEN(Meilensteine[[#This Row],[Anzahl Tage]])=0,\"\",IF(AND(AE$5=$E13,$F13=1),Meilenstein_Markierung,\"\")),\"\")","v":""},{"$f":"IFERROR(IF(LEN(Meilensteine[[#This Row],[Anzahl Tage]])=0,\"\",IF(AND(AF$5=$E13,$F13=1),Meilenstein_Markierung,\"\")),\"\")","v":""},{"$f":"IFERROR(IF(LEN(Meilensteine[[#This Row],[Anzahl Tage]])=0,\"\",IF(AND(AG$5=$E13,$F13=1),Meilenstein_Markierung,\"\")),\"\")","v":""},{"$f":"IFERROR(IF(LEN(Meilensteine[[#This Row],[Anzahl Tage]])=0,\"\",IF(AND(AH$5=$E13,$F13=1),Meilenstein_Markierung,\"\")),\"\")","v":""},{"$f":"IFERROR(IF(LEN(Meilensteine[[#This Row],[Anzahl Tage]])=0,\"\",IF(AND(AI$5=$E13,$F13=1),Meilenstein_Markierung,\"\")),\"\")","v":""},{"$f":"IFERROR(IF(LEN(Meilensteine[[#This Row],[Anzahl Tage]])=0,\"\",IF(AND(AJ$5=$E13,$F13=1),Meilenstein_Markierung,\"\")),\"\")","v":""},{"$f":"IFERROR(IF(LEN(Meilensteine[[#This Row],[Anzahl Tage]])=0,\"\",IF(AND(AK$5=$E13,$F13=1),Meilenstein_Markierung,\"\")),\"\")","v":""},{"$f":"IFERROR(IF(LEN(Meilensteine[[#This Row],[Anzahl Tage]])=0,\"\",IF(AND(AL$5=$E13,$F13=1),Meilenstein_Markierung,\"\")),\"\")","v":""},{"$f":"IFERROR(IF(LEN(Meilensteine[[#This Row],[Anzahl Tage]])=0,\"\",IF(AND(AM$5=$E13,$F13=1),Meilenstein_Markierung,\"\")),\"\")","v":""},{"$f":"IFERROR(IF(LEN(Meilensteine[[#This Row],[Anzahl Tage]])=0,\"\",IF(AND(AN$5=$E13,$F13=1),Meilenstein_Markierung,\"\")),\"\")","v":""},{"$f":"IFERROR(IF(LEN(Meilensteine[[#This Row],[Anzahl Tage]])=0,\"\",IF(AND(AO$5=$E13,$F13=1),Meilenstein_Markierung,\"\")),\"\")","v":""},{"$f":"IFERROR(IF(LEN(Meilensteine[[#This Row],[Anzahl Tage]])=0,\"\",IF(AND(AP$5=$E13,$F13=1),Meilenstein_Markierung,\"\")),\"\")","v":""},{"$f":"IFERROR(IF(LEN(Meilensteine[[#This Row],[Anzahl Tage]])=0,\"\",IF(AND(AQ$5=$E13,$F13=1),Meilenstein_Markierung,\"\")),\"\")","v":""},{"$f":"IFERROR(IF(LEN(Meilensteine[[#This Row],[Anzahl Tage]])=0,\"\",IF(AND(AR$5=$E13,$F13=1),Meilenstein_Markierung,\"\")),\"\")","v":""},{"$f":"IFERROR(IF(LEN(Meilensteine[[#This Row],[Anzahl Tage]])=0,\"\",IF(AND(AS$5=$E13,$F13=1),Meilenstein_Markierung,\"\")),\"\")","v":""},{"$f":"IFERROR(IF(LEN(Meilensteine[[#This Row],[Anzahl Tage]])=0,\"\",IF(AND(AT$5=$E13,$F13=1),Meilenstein_Markierung,\"\")),\"\")","v":""},{"$f":"IFERROR(IF(LEN(Meilensteine[[#This Row],[Anzahl Tage]])=0,\"\",IF(AND(AU$5=$E13,$F13=1),Meilenstein_Markierung,\"\")),\"\")","v":""},{"$f":"IFERROR(IF(LEN(Meilensteine[[#This Row],[Anzahl Tage]])=0,\"\",IF(AND(AV$5=$E13,$F13=1),Meilenstein_Markierung,\"\")),\"\")","v":""},{"$f":"IFERROR(IF(LEN(Meilensteine[[#This Row],[Anzahl Tage]])=0,\"\",IF(AND(AW$5=$E13,$F13=1),Meilenstein_Markierung,\"\")),\"\")","v":""},{"$f":"IFERROR(IF(LEN(Meilensteine[[#This Row],[Anzahl Tage]])=0,\"\",IF(AND(AX$5=$E13,$F13=1),Meilenstein_Markierung,\"\")),\"\")","v":""},{"$f":"IFERROR(IF(LEN(Meilensteine[[#This Row],[Anzahl Tage]])=0,\"\",IF(AND(AY$5=$E13,$F13=1),Meilenstein_Markierung,\"\")),\"\")","v":""},{"$f":"IFERROR(IF(LEN(Meilensteine[[#This Row],[Anzahl Tage]])=0,\"\",IF(AND(AZ$5=$E13,$F13=1),Meilenstein_Markierung,\"\")),\"\")","v":""},{"$f":"IFERROR(IF(LEN(Meilensteine[[#This Row],[Anzahl Tage]])=0,\"\",IF(AND(BA$5=$E13,$F13=1),Meilenstein_Markierung,\"\")),\"\")","v":""},{"$f":"IFERROR(IF(LEN(Meilensteine[[#This Row],[Anzahl Tage]])=0,\"\",IF(AND(BB$5=$E13,$F13=1),Meilenstein_Markierung,\"\")),\"\")","v":""},{"$f":"IFERROR(IF(LEN(Meilensteine[[#This Row],[Anzahl Tage]])=0,\"\",IF(AND(BC$5=$E13,$F13=1),Meilenstein_Markierung,\"\")),\"\")","v":""},{"$f":"IFERROR(IF(LEN(Meilensteine[[#This Row],[Anzahl Tage]])=0,\"\",IF(AND(BD$5=$E13,$F13=1),Meilenstein_Markierung,\"\")),\"\")","v":""},{"$f":"IFERROR(IF(LEN(Meilensteine[[#This Row],[Anzahl Tage]])=0,\"\",IF(AND(BE$5=$E13,$F13=1),Meilenstein_Markierung,\"\")),\"\")","v":""},{"$f":"IFERROR(IF(LEN(Meilensteine[[#This Row],[Anzahl Tage]])=0,\"\",IF(AND(BF$5=$E13,$F13=1),Meilenstein_Markierung,\"\")),\"\")","v":""},{"$f":"IFERROR(IF(LEN(Meilensteine[[#This Row],[Anzahl Tage]])=0,\"\",IF(AND(BG$5=$E13,$F13=1),Meilenstein_Markierung,\"\")),\"\")","v":""},{"$f":"IFERROR(IF(LEN(Meilensteine[[#This Row],[Anzahl Tage]])=0,\"\",IF(AND(BH$5=$E13,$F13=1),Meilenstein_Markierung,\"\")),\"\")","v":""},{"$f":"IFERROR(IF(LEN(Meilensteine[[#This Row],[Anzahl Tage]])=0,\"\",IF(AND(BI$5=$E13,$F13=1),Meilenstein_Markierung,\"\")),\"\")","v":""},{"$f":"IFERROR(IF(LEN(Meilensteine[[#This Row],[Anzahl Tage]])=0,\"\",IF(AND(BJ$5=$E13,$F13=1),Meilenstein_Markierung,\"\")),\"\")","v":""},{"$f":"IFERROR(IF(LEN(Meilensteine[[#This Row],[Anzahl Tage]])=0,\"\",IF(AND(BK$5=$E13,$F13=1),Meilenstein_Markierung,\"\")),\"\")","v":""}]
[null,"Titel 2",{"$nulls":5},{"$f":"IFERROR(IF(LEN(Meilensteine[[#This Row],[Anzahl Tage]])=0,\"\",IF(AND(H$5=$E14,$F14=1),Meilenstein_Markierung,\"\")),\"\")","v":""},{"$f":"IFERROR(IF(LEN(Meilensteine[[#This Row],[Anzahl Tage]])=0,\"\",IF(AND(I$5=$E14,$F14=1),Meilenstein_Markierung,\"\")),\"\")","v":""},{"$f":"IFERROR(IF(LEN(Meilensteine[[#This Row],[Anzahl Tage]])=0,\"\",IF(AND(J$5=$E14,$F14=1),Meilenstein_Markierung,\"\")),\"\")","v":""},{"$f":"IFERROR(IF(LEN(Meilensteine[[#This Row],[Anzahl Tage]])=0,\"\",IF(AND(K$5=$E14,$F14=1),Meilenstein_Markierung,\"\")),\"\")","v":""},{"$f":"IFERROR(IF(LEN(Meilensteine[[#This Row],[Anzahl Tage]])=0,\"\",IF(AND(L$5=$E14,$F14=1),Meilenstein_Markierung,\"\")),\"\")","v":""},{"$f":"IFERROR(IF(LEN(Meilensteine[[#This Row],[Anzahl Tage]])=0,\"\",IF(AND(M$5=$E14,$F14=1),Meilenstein_Markierung,\"\")),\"\")","v":""},{"$f":"IFERROR(IF(LEN(Meilensteine[[#This Row],[Anzahl Tage]])=0,\"\",IF(AND(N$5=$E14,$F14=1),Meilenstein_Markierung,\"\")),\"\")","v":""},{"$f":"IFERROR(IF(LEN(Meilensteine[[#This Row],[Anzahl Tage]])=0,\"\",IF(AND(O$5=$E14,$F14=1),Meilenstein_Markierung,\"\")),\"\")","v":""},{"$f":"IFERROR(IF(LEN(Meilensteine[[#This Row],[Anzahl Tage]])=0,\"\",IF(AND(P$5=$E14,$F14=1),Meilenstein_Markierung,\"\")),\"\")","v":""},{"$f":"IFERROR(IF(LEN(Meilensteine[[#This Row],[Anzahl Tage]])=0,\"\",IF(AND(Q$5=$E14,$F14=1),Meilenstein_Markierung,\"\")),\"\")","v":""},{"$f":"IFERROR(IF(LEN(Meilensteine[[#This Row],[Anzahl Tage]])=0,\"\",IF(AND(R$5=$E14,$F14=1),Meilenstein_Markierung,\"\")),\"\")","v":""},{"$f":"IFERROR(IF(LEN(Meilensteine[[#This Row],[Anzahl Tage]])=0,\"\",IF(AND(S$5=$E14,$F14=1),Meilenstein_Markierung,\"\")),\"\")","v":""},{"$f":"IFERROR(IF(LEN(Meilensteine[[#This Row],[Anzahl Tage]])=0,\"\",IF(AND(T$5=$E14,$F14=1),Meilenstein_Markierung,\"\")),\"\")","v":""},{"$f":"IFERROR(IF(LEN(Meilensteine[[#This Row],[Anzahl Tage]])=0,\"\",IF(AND(U$5=$E14,$F14=1),Meilenstein_Markierung,\"\")),\"\")","v":""},{"$f":"IFERROR(IF(LEN(Meilensteine[[#This Row],[Anzahl Tage]])=0,\"\",IF(AND(V$5=$E14,$F14=1),Meilenstein_Markierung,\"\")),\"\")","v":""},{"$f":"IFERROR(IF(LEN(Meilensteine[[#This Row],[Anzahl Tage]])=0,\"\",IF(AND(W$5=$E14,$F14=1),Meilenstein_Markierung,\"\")),\"\")","v":""},{"$f":"IFERROR(IF(LEN(Meilensteine[[#This Row],[Anzahl Tage]])=0,\"\",IF(AND(X$5=$E14,$F14=1),Meilenstein_Markierung,\"\")),\"\")","v":""},{"$f":"IFERROR(IF(LEN(Meilensteine[[#This Row],[Anzahl Tage]])=0,\"\",IF(AND(Y$5=$E14,$F14=1),Meilenstein_Markierung,\"\")),\"\")","v":""},{"$f":"IFERROR(IF(LEN(Meilensteine[[#This Row],[Anzahl Tage]])=0,\"\",IF(AND(Z$5=$E14,$F14=1),Meilenstein_Markierung,\"\")),\"\")","v":""},{"$f":"IFERROR(IF(LEN(Meilensteine[[#This Row],[Anzahl Tage]])=0,\"\",IF(AND(AA$5=$E14,$F14=1),Meilenstein_Markierung,\"\")),\"\")","v":""},{"$f":"IFERROR(IF(LEN(Meilensteine[[#This Row],[Anzahl Tage]])=0,\"\",IF(AND(AB$5=$E14,$F14=1),Meilenstein_Markierung,\"\")),\"\")","v":""},{"$f":"IFERROR(IF(LEN(Meilensteine[[#This Row],[Anzahl Tage]])=0,\"\",IF(AND(AC$5=$E14,$F14=1),Meilenstein_Markierung,\"\")),\"\")","v":""},{"$f":"IFERROR(IF(LEN(Meilensteine[[#This Row],[Anzahl Tage]])=0,\"\",IF(AND(AD$5=$E14,$F14=1),Meilenstein_Markierung,\"\")),\"\")","v":""},{"$f":"IFERROR(IF(LEN(Meilensteine[[#This Row],[Anzahl Tage]])=0,\"\",IF(AND(AE$5=$E14,$F14=1),Meilenstein_Markierung,\"\")),\"\")","v":""},{"$f":"IFERROR(IF(LEN(Meilensteine[[#This Row],[Anzahl Tage]])=0,\"\",IF(AND(AF$5=$E14,$F14=1),Meilenstein_Markierung,\"\")),\"\")","v":""},{"$f":"IFERROR(IF(LEN(Meilensteine[[#This Row],[Anzahl Tage]])=0,\"\",IF(AND(AG$5=$E14,$F14=1),Meilenstein_Markierung,\"\")),\"\")","v":""},{"$f":"IFERROR(IF(LEN(Meilensteine[[#This Row],[Anzahl Tage]])=0,\"\",IF(AND(AH$5=$E14,$F14=1),Meilenstein_Markierung,\"\")),\"\")","v":""},{"$f":"IFERROR(IF(LEN(Meilensteine[[#This Row],[Anzahl Tage]])=0,\"\",IF(AND(AI$5=$E14,$F14=1),Meilenstein_Markierung,\"\")),\"\")","v":""},{"$f":"IFERROR(IF(LEN(Meilensteine[[#This Row],[Anzahl Tage]])=0,\"\",IF(AND(AJ$5=$E14,$F14=1),Meilenstein_Markierung,\"\")),\"\")","v":""},{"$f":"IFERROR(IF(LEN(Meilensteine[[#This Row],[Anzahl Tage]])=0,\"\",IF(AND(AK$5=$E14,$F14=1),Meilenstein_Markierung,\"\")),\"\")","v":""},{"$f":"IFERROR(IF(LEN(Meilensteine[[#This Row],[Anzahl Tage]])=0,\"\",IF(AND(AL$5=$E14,$F14=1),Meilenstein_Markierung,\"\")),\"\")","v":""},{"$f":"IFERROR(IF(LEN(Meilensteine[[#This Row],[Anzahl Tage]])=0,\"\",IF(AND(AM$5=$E14,$F14=1),Meilenstein_Markierung,\"\")),\"\")","v":""},{"$f":"IFERROR(IF(LEN(Meilensteine[[#This Row],[Anzahl Tage]])=0,\"\",IF(AND(AN$5=$E14,$F14=1),Meilenstein_Markierung,\"\")),\"\")","v":""},{"$f":"IFERROR(IF(LEN(Meilensteine[[#This Row],[Anzahl Tage]])=0,\"\",IF(AND(AO$5=$E14,$F14=1),Meilenstein_Markierung,\"\")),\"\")","v":""},{"$f":"IFERROR(IF(LEN(Meilensteine[[#This Row],[Anzahl Tage]])=0,\"\",IF(AND(AP$5=$E14,$F14=1),Meilenstein_Markierung,\"\")),\"\")","v":""},{"$f":"IFERROR(IF(LEN(Meilensteine[[#This Row],[Anzahl Tage]])=0,\"\",IF(AND(AQ$5=$E14,$F14=1),Meilenstein_Markierung,\"\")),\"\")","v":""},{"$f":"IFERROR(IF(LEN(Meilensteine[[#This Row],[Anzahl Tage]])=0,\"\",IF(AND(AR$5=$E14,$F14=1),Meilenstein_Markierung,\"\")),\"\")","v":""},{"$f":"IFERROR(IF(LEN(Meilensteine[[#This Row],[Anzahl Tage]])=0,\"\",IF(AND(AS$5=$E14,$F14=1),Meilenstein_Markierung,\"\")),\"\")","v":""},{"$f":"IFERROR(IF(LEN(Meilensteine[[#This Row],[Anzahl Tage]])=0,\"\",IF(AND(AT$5=$E14,$F14=1),Meilenstein_Markierung,\"\")),\"\")","v":""},{"$f":"IFERROR(IF(LEN(Meilensteine[[#This Row],[Anzahl Tage]])=0,\"\",IF(AND(AU$5=$E14,$F14=1),Meilenstein_Markierung,\"\")),\"\")","v":""},{"$f":"IFERROR(IF(LEN(Meilensteine[[#This Row],[Anzahl Tage]])=0,\"\",IF(AND(AV$5=$E14,$F14=1),Meilenstein_Markierung,\"\")),\"\")","v":""},{"$f":"IFERROR(IF(LEN(Meilensteine[[#This Row],[Anzahl Tage]])=0,\"\",IF(AND(AW$5=$E14,$F14=1),Meilenstein_Markierung,\"\")),\"\")","v":""},{"$f":"IFERROR(IF(LEN(Meilensteine[[#This Row],[Anzahl Tage]])=0,\"\",IF(AND(AX$5=$E14,$F14=1),Meilenstein_Markierung,\"\")),\"\")","v":""},{"$f":"IFERROR(IF(LEN(Meilensteine[[#This Row],[Anzahl Tage]])=0,\"\",IF(AND(AY$5=$E14,$F14=1),Meilenstein_Markierung,\"\")),\"\")","v":""},{"$f":"IFERROR(IF(LEN(Meilensteine[[#This Row],[Anzahl Tage]])=0,\"\",IF(AND(AZ$5=$E14,$F14=1),Meilenstein_Markierung,\"\")),\"\")","v":""},{"$f":"IFERROR(IF(LEN(Meilensteine[[#This Row],[Anzahl Tage]])=0,\"\",IF(AND(BA$5=$E14,$F14=1),Meilenstein_Markierung,\"\")),\"\")","v":""},{"$f":"IFERROR(IF(LEN(Meilensteine[[#This Row],[Anzahl Tage]])=0,\"\",IF(AND(BB$5=$E14,$F14=1),Meilenstein_Markierung,\"\")),\"\")","v":""},{"$f":"IFERROR(IF(LEN(Meilensteine[[#This Row],[Anzahl Tage]])=0,\"\",IF(AND(BC$5=$E14,$F14=1),Meilenstein_Markierung,\"\")),\"\")","v":""},{"$f":"IFERROR(IF(LEN(Meilensteine[[#This Row],[Anzahl Tage]])=0,\"\",IF(AND(BD$5=$E14,$F14=1),Meilenstein_Markierung,\"\")),\"\")","v":""},{"$f":"IFERROR(IF(LEN(Meilensteine[[#This Row],[Anzahl Tage]])=0,\"\",IF(AND(BE$5=$E14,$F14=1),Meilenstein_Markierung,\"\")),\"\")","v":""},{"$f":"IFERROR(IF(LEN(Meilensteine[[#This Row],[Anzahl Tage]])=0,\"\",IF(AND(BF$5=$E14,$F14=1),Meilenstein_Markierung,\"\")),\"\")","v":""},{"$f":"IFERROR(IF(LEN(Meilensteine[[#This Row],[Anzahl Tage]])=0,\"\",IF(AND(BG$5=$E14,$F14=1),Meilenstein_Markierung,\"\")),\"\")","v":""},{"$f":"IFERROR(IF(LEN(Meilensteine[[#This Row],[Anzahl Tage]])=0,\"\",IF(AND(BH$5=$E14,$F14=1),Meilenstein_Markierung,\"\")),\"\")","v":""},{"$f":"IFERROR(IF(LEN(Meilensteine[[#This Row],[Anzahl Tage]])=0,\"\",IF(AND(BI$5=$E14,$F14=1),Meilenstein_Markierung,\"\")),\"\")","v":""},{"$f":"IFERROR(IF(LEN(Meilensteine[[#This Row],[Anzahl Tage]])=0,\"\",IF(AND(BJ$5=$E14,$F14=1),Meilenstein_Markierung,\"\")),\"\")","v":""},{"$f":"IFERROR(IF(LEN(Meilensteine[[#This Row],[Anzahl Tage]])=0,\"\",IF(AND(BK$5=$E14,$F14=1),Meilenstein_Markierung,\"\")),\"\")","v":""}]
[null,"Aufgabe 1",null,{"v":0.6,"d":"60%"},{"$f":"TODAY()+6","v":"2018-09-25"},13,null,{"$f":"IFERROR(IF(LEN(Meilensteine[[#This Row],[Anzahl Tage]])=0,\"\",IF(AND(H$5=$E15,$F15=1),Meilenstein_Markierung,\"\")),\"\")","v":""},{"$f":"IFERROR(IF(LEN(Meilensteine[[#This Row],[Anzahl Tage]])=0,\"\",IF(AND(I$5=$E15,$F15=1),Meilenstein_Markierung,\"\")),\"\")","v":""},{"$f":"IFERROR(IF(LEN(Meilensteine[[#This Row],[Anzahl Tage]])=0,\"\",IF(AND(J$5=$E15,$F15=1),Meilenstein_Markierung,\"\")),\"\")","v":""},{"$f":"IFERROR(IF(LEN(Meilensteine[[#This Row],[Anzahl Tage]])=0,\"\",IF(AND(K$5=$E15,$F15=1),Meilenstein_Markierung,\"\")),\"\")","v":""},{"$f":"IFERROR(IF(LEN(Meilensteine[[#This Row],[Anzahl Tage]])=0,\"\",IF(AND(L$5=$E15,$F15=1),Meilenstein_Markierung,\"\")),\"\")","v":""},{"$f":"IFERROR(IF(LEN(Meilensteine[[#This Row],[Anzahl Tage]])=0,\"\",IF(AND(M$5=$E15,$F15=1),Meilenstein_Markierung,\"\")),\"\")","v":""},{"$f":"IFERROR(IF(LEN(Meilensteine[[#This Row],[Anzahl Tage]])=0,\"\",IF(AND(N$5=$E15,$F15=1),Meilenstein_Markierung,\"\")),\"\")","v":""},{"$f":"IFERROR(IF(LEN(Meilensteine[[#This Row],[Anzahl Tage]])=0,\"\",IF(AND(O$5=$E15,$F15=1),Meilenstein_Markierung,\"\")),\"\")","v":""},{"$f":"IFERROR(IF(LEN(Meilensteine[[#This Row],[Anzahl Tage]])=0,\"\",IF(AND(P$5=$E15,$F15=1),Meilenstein_Markierung,\"\")),\"\")","v":""},{"$f":"IFERROR(IF(LEN(Meilensteine[[#This Row],[Anzahl Tage]])=0,\"\",IF(AND(Q$5=$E15,$F15=1),Meilenstein_Markierung,\"\")),\"\")","v":""},{"$f":"IFERROR(IF(LEN(Meilensteine[[#This Row],[Anzahl Tage]])=0,\"\",IF(AND(R$5=$E15,$F15=1),Meilenstein_Markierung,\"\")),\"\")","v":""},{"$f":"IFERROR(IF(LEN(Meilensteine[[#This Row],[Anzahl Tage]])=0,\"\",IF(AND(S$5=$E15,$F15=1),Meilenstein_Markierung,\"\")),\"\")","v":""},{"$f":"IFERROR(IF(LEN(Meilensteine[[#This Row],[Anzahl Tage]])=0,\"\",IF(AND(T$5=$E15,$F15=1),Meilenstein_Markierung,\"\")),\"\")","v":""},{"$f":"IFERROR(IF(LEN(Meilensteine[[#This Row],[Anzahl Tage]])=0,\"\",IF(AND(U$5=$E15,$F15=1),Meilenstein_Markierung,\"\")),\"\")","v":""},{"$f":"IFERROR(IF(LEN(Meilensteine[[#This Row],[Anzahl Tage]])=0,\"\",IF(AND(V$5=$E15,$F15=1),Meilenstein_Markierung,\"\")),\"\")","v":""},{"$f":"IFERROR(IF(LEN(Meilensteine[[#This Row],[Anzahl Tage]])=0,\"\",IF(AND(W$5=$E15,$F15=1),Meilenstein_Markierung,\"\")),\"\")","v":""},{"$f":"IFERROR(IF(LEN(Meilensteine[[#This Row],[Anzahl Tage]])=0,\"\",IF(AND(X$5=$E15,$F15=1),Meilenstein_Markierung,\"\")),\"\")","v":""},{"$f":"IFERROR(IF(LEN(Meilensteine[[#This Row],[Anzahl Tage]])=0,\"\",IF(AND(Y$5=$E15,$F15=1),Meilenstein_Markierung,\"\")),\"\")","v":""},{"$f":"IFERROR(IF(LEN(Meilensteine[[#This Row],[Anzahl Tage]])=0,\"\",IF(AND(Z$5=$E15,$F15=1),Meilenstein_Markierung,\"\")),\"\")","v":""},{"$f":"IFERROR(IF(LEN(Meilensteine[[#This Row],[Anzahl Tage]])=0,\"\",IF(AND(AA$5=$E15,$F15=1),Meilenstein_Markierung,\"\")),\"\")","v":""},{"$f":"IFERROR(IF(LEN(Meilensteine[[#This Row],[Anzahl Tage]])=0,\"\",IF(AND(AB$5=$E15,$F15=1),Meilenstein_Markierung,\"\")),\"\")","v":""},{"$f":"IFERROR(IF(LEN(Meilensteine[[#This Row],[Anzahl Tage]])=0,\"\",IF(AND(AC$5=$E15,$F15=1),Meilenstein_Markierung,\"\")),\"\")","v":""},{"$f":"IFERROR(IF(LEN(Meilensteine[[#This Row],[Anzahl Tage]])=0,\"\",IF(AND(AD$5=$E15,$F15=1),Meilenstein_Markierung,\"\")),\"\")","v":""},{"$f":"IFERROR(IF(LEN(Meilensteine[[#This Row],[Anzahl Tage]])=0,\"\",IF(AND(AE$5=$E15,$F15=1),Meilenstein_Markierung,\"\")),\"\")","v":""},{"$f":"IFERROR(IF(LEN(Meilensteine[[#This Row],[Anzahl Tage]])=0,\"\",IF(AND(AF$5=$E15,$F15=1),Meilenstein_Markierung,\"\")),\"\")","v":""},{"$f":"IFERROR(IF(LEN(Meilensteine[[#This Row],[Anzahl Tage]])=0,\"\",IF(AND(AG$5=$E15,$F15=1),Meilenstein_Markierung,\"\")),\"\")","v":""},{"$f":"IFERROR(IF(LEN(Meilensteine[[#This Row],[Anzahl Tage]])=0,\"\",IF(AND(AH$5=$E15,$F15=1),Meilenstein_Markierung,\"\")),\"\")","v":""},{"$f":"IFERROR(IF(LEN(Meilensteine[[#This Row],[Anzahl Tage]])=0,\"\",IF(AND(AI$5=$E15,$F15=1),Meilenstein_Markierung,\"\")),\"\")","v":""},{"$f":"IFERROR(IF(LEN(Meilensteine[[#This Row],[Anzahl Tage]])=0,\"\",IF(AND(AJ$5=$E15,$F15=1),Meilenstein_Markierung,\"\")),\"\")","v":""},{"$f":"IFERROR(IF(LEN(Meilensteine[[#This Row],[Anzahl Tage]])=0,\"\",IF(AND(AK$5=$E15,$F15=1),Meilenstein_Markierung,\"\")),\"\")","v":""},{"$f":"IFERROR(IF(LEN(Meilensteine[[#This Row],[Anzahl Tage]])=0,\"\",IF(AND(AL$5=$E15,$F15=1),Meilenstein_Markierung,\"\")),\"\")","v":""},{"$f":"IFERROR(IF(LEN(Meilensteine[[#This Row],[Anzahl Tage]])=0,\"\",IF(AND(AM$5=$E15,$F15=1),Meilenstein_Markierung,\"\")),\"\")","v":""},{"$f":"IFERROR(IF(LEN(Meilensteine[[#This Row],[Anzahl Tage]])=0,\"\",IF(AND(AN$5=$E15,$F15=1),Meilenstein_Markierung,\"\")),\"\")","v":""},{"$f":"IFERROR(IF(LEN(Meilensteine[[#This Row],[Anzahl Tage]])=0,\"\",IF(AND(AO$5=$E15,$F15=1),Meilenstein_Markierung,\"\")),\"\")","v":""},{"$f":"IFERROR(IF(LEN(Meilensteine[[#This Row],[Anzahl Tage]])=0,\"\",IF(AND(AP$5=$E15,$F15=1),Meilenstein_Markierung,\"\")),\"\")","v":""},{"$f":"IFERROR(IF(LEN(Meilensteine[[#This Row],[Anzahl Tage]])=0,\"\",IF(AND(AQ$5=$E15,$F15=1),Meilenstein_Markierung,\"\")),\"\")","v":""},{"$f":"IFERROR(IF(LEN(Meilensteine[[#This Row],[Anzahl Tage]])=0,\"\",IF(AND(AR$5=$E15,$F15=1),Meilenstein_Markierung,\"\")),\"\")","v":""},{"$f":"IFERROR(IF(LEN(Meilensteine[[#This Row],[Anzahl Tage]])=0,\"\",IF(AND(AS$5=$E15,$F15=1),Meilenstein_Markierung,\"\")),\"\")","v":""},{"$f":"IFERROR(IF(LEN(Meilensteine[[#This Row],[Anzahl Tage]])=0,\"\",IF(AND(AT$5=$E15,$F15=1),Meilenstein_Markierung,\"\")),\"\")","v":""},{"$f":"IFERROR(IF(LEN(Meilensteine[[#This Row],[Anzahl Tage]])=0,\"\",IF(AND(AU$5=$E15,$F15=1),Meilenstein_Markierung,\"\")),\"\")","v":""},{"$f":"IFERROR(IF(LEN(Meilensteine[[#This Row],[Anzahl Tage]])=0,\"\",IF(AND(AV$5=$E15,$F15=1),Meilenstein_Markierung,\"\")),\"\")","v":""},{"$f":"IFERROR(IF(LEN(Meilensteine[[#This Row],[Anzahl Tage]])=0,\"\",IF(AND(AW$5=$E15,$F15=1),Meilenstein_Markierung,\"\")),\"\")","v":""},{"$f":"IFERROR(IF(LEN(Meilensteine[[#This Row],[Anzahl Tage]])=0,\"\",IF(AND(AX$5=$E15,$F15=1),Meilenstein_Markierung,\"\")),\"\")","v":""},{"$f":"IFERROR(IF(LEN(Meilensteine[[#This Row],[Anzahl Tage]])=0,\"\",IF(AND(AY$5=$E15,$F15=1),Meilenstein_Markierung,\"\")),\"\")","v":""},{"$f":"IFERROR(IF(LEN(Meilensteine[[#This Row],[Anzahl Tage]])=0,\"\",IF(AND(AZ$5=$E15,$F15=1),Meilenstein_Markierung,\"\")),\"\")","v":""},{"$f":"IFERROR(IF(LEN(Meilensteine[[#This Row],[Anzahl Tage]])=0,\"\",IF(AND(BA$5=$E15,$F15=1),Meilenstein_Markierung,\"\")),\"\")","v":""},{"$f":"IFERROR(IF(LEN(Meilensteine[[#This Row],[Anzahl Tage]])=0,\"\",IF(AND(BB$5=$E15,$F15=1),Meilenstein_Markierung,\"\")),\"\")","v":""},{"$f":"IFERROR(IF(LEN(Meilensteine[[#This Row],[Anzahl Tage]])=0,\"\",IF(AND(BC$5=$E15,$F15=1),Meilenstein_Markierung,\"\")),\"\")","v":""},{"$f":"IFERROR(IF(LEN(Meilensteine[[#This Row],[Anzahl Tage]])=0,\"\",IF(AND(BD$5=$E15,$F15=1),Meilenstein_Markierung,\"\")),\"\")","v":""},{"$f":"IFERROR(IF(LEN(Meilensteine[[#This Row],[Anzahl Tage]])=0,\"\",IF(AND(BE$5=$E15,$F15=1),Meilenstein_Markierung,\"\")),\"\")","v":""},{"$f":"IFERROR(IF(LEN(Meilensteine[[#This Row],[Anzahl Tage]])=0,\"\",IF(AND(BF$5=$E15,$F15=1),Meilenstein_Markierung,\"\")),\"\")","v":""},{"$f":"IFERROR(IF(LEN(Meilensteine[[#This Row],[Anzahl Tage]])=0,\"\",IF(AND(BG$5=$E15,$F15=1),Meilenstein_Markierung,\"\")),\"\")","v":""},{"$f":"IFERROR(IF(LEN(Meilensteine[[#This Row],[Anzahl Tage]])=0,\"\",IF(AND(BH$5=$E15,$F15=1),Meilenstein_Markierung,\"\")),\"\")","v":""},{"$f":"IFERROR(IF(LEN(Meilensteine[[#This Row],[Anzahl Tage]])=0,\"\",IF(AND(BI$5=$E15,$F15=1),Meilenstein_Markierung,\"\")),\"\")","v":""},{"$f":"IFERROR(IF(LEN(Meilensteine[[#This Row],[Anzahl Tage]])=0,\"\",IF(AND(BJ$5=$E15,$F15=1),Meilenstein_Markierung,\"\")),\"\")","v":""},{"$f":"IFERROR(IF(LEN(Meilensteine[[#This Row],[Anzahl Tage]])=0,\"\",IF(AND(BK$5=$E15,$F15=1),Meilenstein_Markierung,\"\")),\"\")","v":""}]
[null,"Aufgabe 2",null,{"v":0.5,"d":"50%"},{"$f":"TODAY()+7","v":"2018-09-26"},9,null,{"$f":"IFERROR(IF(LEN(Meilensteine[[#This Row],[Anzahl Tage]])=0,\"\",IF(AND(H$5=$E16,$F16=1),Meilenstein_Markierung,\"\")),\"\")","v":""},{"$f":"IFERROR(IF(LEN(Meilensteine[[#This Row],[Anzahl Tage]])=0,\"\",IF(AND(I$5=$E16,$F16=1),Meilenstein_Markierung,\"\")),\"\")","v":""},{"$f":"IFERROR(IF(LEN(Meilensteine[[#This Row],[Anzahl Tage]])=0,\"\",IF(AND(J$5=$E16,$F16=1),Meilenstein_Markierung,\"\")),\"\")","v":""},{"$f":"IFERROR(IF(LEN(Meilensteine[[#This Row],[Anzahl Tage]])=0,\"\",IF(AND(K$5=$E16,$F16=1),Meilenstein_Markierung,\"\")),\"\")","v":""},{"$f":"IFERROR(IF(LEN(Meilensteine[[#This Row],[Anzahl Tage]])=0,\"\",IF(AND(L$5=$E16,$F16=1),Meilenstein_Markierung,\"\")),\"\")","v":""},{"$f":"IFERROR(IF(LEN(Meilensteine[[#This Row],[Anzahl Tage]])=0,\"\",IF(AND(M$5=$E16,$F16=1),Meilenstein_Markierung,\"\")),\"\")","v":""},{"$f":"IFERROR(IF(LEN(Meilensteine[[#This Row],[Anzahl Tage]])=0,\"\",IF(AND(N$5=$E16,$F16=1),Meilenstein_Markierung,\"\")),\"\")","v":""},{"$f":"IFERROR(IF(LEN(Meilensteine[[#This Row],[Anzahl Tage]])=0,\"\",IF(AND(O$5=$E16,$F16=1),Meilenstein_Markierung,\"\")),\"\")","v":""},{"$f":"IFERROR(IF(LEN(Meilensteine[[#This Row],[Anzahl Tage]])=0,\"\",IF(AND(P$5=$E16,$F16=1),Meilenstein_Markierung,\"\")),\"\")","v":""},{"$f":"IFERROR(IF(LEN(Meilensteine[[#This Row],[Anzahl Tage]])=0,\"\",IF(AND(Q$5=$E16,$F16=1),Meilenstein_Markierung,\"\")),\"\")","v":""},{"$f":"IFERROR(IF(LEN(Meilensteine[[#This Row],[Anzahl Tage]])=0,\"\",IF(AND(R$5=$E16,$F16=1),Meilenstein_Markierung,\"\")),\"\")","v":""},{"$f":"IFERROR(IF(LEN(Meilensteine[[#This Row],[Anzahl Tage]])=0,\"\",IF(AND(S$5=$E16,$F16=1),Meilenstein_Markierung,\"\")),\"\")","v":""},{"$f":"IFERROR(IF(LEN(Meilensteine[[#This Row],[Anzahl Tage]])=0,\"\",IF(AND(T$5=$E16,$F16=1),Meilenstein_Markierung,\"\")),\"\")","v":""},{"$f":"IFERROR(IF(LEN(Meilensteine[[#This Row],[Anzahl Tage]])=0,\"\",IF(AND(U$5=$E16,$F16=1),Meilenstein_Markierung,\"\")),\"\")","v":""},{"$f":"IFERROR(IF(LEN(Meilensteine[[#This Row],[Anzahl Tage]])=0,\"\",IF(AND(V$5=$E16,$F16=1),Meilenstein_Markierung,\"\")),\"\")","v":""},{"$f":"IFERROR(IF(LEN(Meilensteine[[#This Row],[Anzahl Tage]])=0,\"\",IF(AND(W$5=$E16,$F16=1),Meilenstein_Markierung,\"\")),\"\")","v":""},{"$f":"IFERROR(IF(LEN(Meilensteine[[#This Row],[Anzahl Tage]])=0,\"\",IF(AND(X$5=$E16,$F16=1),Meilenstein_Markierung,\"\")),\"\")","v":""},{"$f":"IFERROR(IF(LEN(Meilensteine[[#This Row],[Anzahl Tage]])=0,\"\",IF(AND(Y$5=$E16,$F16=1),Meilenstein_Markierung,\"\")),\"\")","v":""},{"$f":"IFERROR(IF(LEN(Meilensteine[[#This Row],[Anzahl Tage]])=0,\"\",IF(AND(Z$5=$E16,$F16=1),Meilenstein_Markierung,\"\")),\"\")","v":""},{"$f":"IFERROR(IF(LEN(Meilensteine[[#This Row],[Anzahl Tage]])=0,\"\",IF(AND(AA$5=$E16,$F16=1),Meilenstein_Markierung,\"\")),\"\")","v":""},{"$f":"IFERROR(IF(LEN(Meilensteine[[#This Row],[Anzahl Tage]])=0,\"\",IF(AND(AB$5=$E16,$F16=1),Meilenstein_Markierung,\"\")),\"\")","v":""},{"$f":"IFERROR(IF(LEN(Meilensteine[[#This Row],[Anzahl Tage]])=0,\"\",IF(AND(AC$5=$E16,$F16=1),Meilenstein_Markierung,\"\")),\"\")","v":""},{"$f":"IFERROR(IF(LEN(Meilensteine[[#This Row],[Anzahl Tage]])=0,\"\",IF(AND(AD$5=$E16,$F16=1),Meilenstein_Markierung,\"\")),\"\")","v":""},{"$f":"IFERROR(IF(LEN(Meilensteine[[#This Row],[Anzahl Tage]])=0,\"\",IF(AND(AE$5=$E16,$F16=1),Meilenstein_Markierung,\"\")),\"\")","v":""},{"$f":"IFERROR(IF(LEN(Meilensteine[[#This Row],[Anzahl Tage]])=0,\"\",IF(AND(AF$5=$E16,$F16=1),Meilenstein_Markierung,\"\")),\"\")","v":""},{"$f":"IFERROR(IF(LEN(Meilensteine[[#This Row],[Anzahl Tage]])=0,\"\",IF(AND(AG$5=$E16,$F16=1),Meilenstein_Markierung,\"\")),\"\")","v":""},{"$f":"IFERROR(IF(LEN(Meilensteine[[#This Row],[Anzahl Tage]])=0,\"\",IF(AND(AH$5=$E16,$F16=1),Meilenstein_Markierung,\"\")),\"\")","v":""},{"$f":"IFERROR(IF(LEN(Meilensteine[[#This Row],[Anzahl Tage]])=0,\"\",IF(AND(AI$5=$E16,$F16=1),Meilenstein_Markierung,\"\")),\"\")","v":""},{"$f":"IFERROR(IF(LEN(Meilensteine[[#This Row],[Anzahl Tage]])=0,\"\",IF(AND(AJ$5=$E16,$F16=1),Meilenstein_Markierung,\"\")),\"\")","v":""},{"$f":"IFERROR(IF(LEN(Meilensteine[[#This Row],[Anzahl Tage]])=0,\"\",IF(AND(AK$5=$E16,$F16=1),Meilenstein_Markierung,\"\")),\"\")","v":""},{"$f":"IFERROR(IF(LEN(Meilensteine[[#This Row],[Anzahl Tage]])=0,\"\",IF(AND(AL$5=$E16,$F16=1),Meilenstein_Markierung,\"\")),\"\")","v":""},{"$f":"IFERROR(IF(LEN(Meilensteine[[#This Row],[Anzahl Tage]])=0,\"\",IF(AND(AM$5=$E16,$F16=1),Meilenstein_Markierung,\"\")),\"\")","v":""},{"$f":"IFERROR(IF(LEN(Meilensteine[[#This Row],[Anzahl Tage]])=0,\"\",IF(AND(AN$5=$E16,$F16=1),Meilenstein_Markierung,\"\")),\"\")","v":""},{"$f":"IFERROR(IF(LEN(Meilensteine[[#This Row],[Anzahl Tage]])=0,\"\",IF(AND(AO$5=$E16,$F16=1),Meilenstein_Markierung,\"\")),\"\")","v":""},{"$f":"IFERROR(IF(LEN(Meilensteine[[#This Row],[Anzahl Tage]])=0,\"\",IF(AND(AP$5=$E16,$F16=1),Meilenstein_Markierung,\"\")),\"\")","v":""},{"$f":"IFERROR(IF(LEN(Meilensteine[[#This Row],[Anzahl Tage]])=0,\"\",IF(AND(AQ$5=$E16,$F16=1),Meilenstein_Markierung,\"\")),\"\")","v":""},{"$f":"IFERROR(IF(LEN(Meilensteine[[#This Row],[Anzahl Tage]])=0,\"\",IF(AND(AR$5=$E16,$F16=1),Meilenstein_Markierung,\"\")),\"\")","v":""},{"$f":"IFERROR(IF(LEN(Meilensteine[[#This Row],[Anzahl Tage]])=0,\"\",IF(AND(AS$5=$E16,$F16=1),Meilenstein_Markierung,\"\")),\"\")","v":""},{"$f":"IFERROR(IF(LEN(Meilensteine[[#This Row],[Anzahl Tage]])=0,\"\",IF(AND(AT$5=$E16,$F16=1),Meilenstein_Markierung,\"\")),\"\")","v":""},{"$f":"IFERROR(IF(LEN(Meilensteine[[#This Row],[Anzahl Tage]])=0,\"\",IF(AND(AU$5=$E16,$F16=1),Meilenstein_Markierung,\"\")),\"\")","v":""},{"$f":"IFERROR(IF(LEN(Meilensteine[[#This Row],[Anzahl Tage]])=0,\"\",IF(AND(AV$5=$E16,$F16=1),Meilenstein_Markierung,\"\")),\"\")","v":""},{"$f":"IFERROR(IF(LEN(Meilensteine[[#This Row],[Anzahl Tage]])=0,\"\",IF(AND(AW$5=$E16,$F16=1),Meilenstein_Markierung,\"\")),\"\")","v":""},{"$f":"IFERROR(IF(LEN(Meilensteine[[#This Row],[Anzahl Tage]])=0,\"\",IF(AND(AX$5=$E16,$F16=1),Meilenstein_Markierung,\"\")),\"\")","v":""},{"$f":"IFERROR(IF(LEN(Meilensteine[[#This Row],[Anzahl Tage]])=0,\"\",IF(AND(AY$5=$E16,$F16=1),Meilenstein_Markierung,\"\")),\"\")","v":""},{"$f":"IFERROR(IF(LEN(Meilensteine[[#This Row],[Anzahl Tage]])=0,\"\",IF(AND(AZ$5=$E16,$F16=1),Meilenstein_Markierung,\"\")),\"\")","v":""},{"$f":"IFERROR(IF(LEN(Meilensteine[[#This Row],[Anzahl Tage]])=0,\"\",IF(AND(BA$5=$E16,$F16=1),Meilenstein_Markierung,\"\")),\"\")","v":""},{"$f":"IFERROR(IF(LEN(Meilensteine[[#This Row],[Anzahl Tage]])=0,\"\",IF(AND(BB$5=$E16,$F16=1),Meilenstein_Markierung,\"\")),\"\")","v":""},{"$f":"IFERROR(IF(LEN(Meilensteine[[#This Row],[Anzahl Tage]])=0,\"\",IF(AND(BC$5=$E16,$F16=1),Meilenstein_Markierung,\"\")),\"\")","v":""},{"$f":"IFERROR(IF(LEN(Meilensteine[[#This Row],[Anzahl Tage]])=0,\"\",IF(AND(BD$5=$E16,$F16=1),Meilenstein_Markierung,\"\")),\"\")","v":""},{"$f":"IFERROR(IF(LEN(Meilensteine[[#This Row],[Anzahl Tage]])=0,\"\",IF(AND(BE$5=$E16,$F16=1),Meilenstein_Markierung,\"\")),\"\")","v":""},{"$f":"IFERROR(IF(LEN(Meilensteine[[#This Row],[Anzahl Tage]])=0,\"\",IF(AND(BF$5=$E16,$F16=1),Meilenstein_Markierung,\"\")),\"\")","v":""},{"$f":"IFERROR(IF(LEN(Meilensteine[[#This Row],[Anzahl Tage]])=0,\"\",IF(AND(BG$5=$E16,$F16=1),Meilenstein_Markierung,\"\")),\"\")","v":""},{"$f":"IFERROR(IF(LEN(Meilensteine[[#This Row],[Anzahl Tage]])=0,\"\",IF(AND(BH$5=$E16,$F16=1),Meilenstein_Markierung,\"\")),\"\")","v":""},{"$f":"IFERROR(IF(LEN(Meilensteine[[#This Row],[Anzahl Tage]])=0,\"\",IF(AND(BI$5=$E16,$F16=1),Meilenstein_Markierung,\"\")),\"\")","v":""},{"$f":"IFERROR(IF(LEN(Meilensteine[[#This Row],[Anzahl Tage]])=0,\"\",IF(AND(BJ$5=$E16,$F16=1),Meilenstein_Markierung,\"\")),\"\")","v":""},{"$f":"IFERROR(IF(LEN(Meilensteine[[#This Row],[Anzahl Tage]])=0,\"\",IF(AND(BK$5=$E16,$F16=1),Meilenstein_Markierung,\"\")),\"\")","v":""}]
[null,"Aufgabe 3",null,{"v":0.33,"d":"33%"},{"$f":"TODAY()+15","v":"2018-10-04"},11,null,{"$f":"IFERROR(IF(LEN(Meilensteine[[#This Row],[Anzahl Tage]])=0,\"\",IF(AND(H$5=$E17,$F17=1),Meilenstein_Markierung,\"\")),\"\")","v":""},{"$f":"IFERROR(IF(LEN(Meilensteine[[#This Row],[Anzahl Tage]])=0,\"\",IF(AND(I$5=$E17,$F17=1),Meilenstein_Markierung,\"\")),\"\")","v":""},{"$f":"IFERROR(IF(LEN(Meilensteine[[#This Row],[Anzahl Tage]])=0,\"\",IF(AND(J$5=$E17,$F17=1),Meilenstein_Markierung,\"\")),\"\")","v":""},{"$f":"IFERROR(IF(LEN(Meilensteine[[#This Row],[Anzahl Tage]])=0,\"\",IF(AND(K$5=$E17,$F17=1),Meilenstein_Markierung,\"\")),\"\")","v":""},{"$f":"IFERROR(IF(LEN(Meilensteine[[#This Row],[Anzahl Tage]])=0,\"\",IF(AND(L$5=$E17,$F17=1),Meilenstein_Markierung,\"\")),\"\")","v":""},{"$f":"IFERROR(IF(LEN(Meilensteine[[#This Row],[Anzahl Tage]])=0,\"\",IF(AND(M$5=$E17,$F17=1),Meilenstein_Markierung,\"\")),\"\")","v":""},{"$f":"IFERROR(IF(LEN(Meilensteine[[#This Row],[Anzahl Tage]])=0,\"\",IF(AND(N$5=$E17,$F17=1),Meilenstein_Markierung,\"\")),\"\")","v":""},{"$f":"IFERROR(IF(LEN(Meilensteine[[#This Row],[Anzahl Tage]])=0,\"\",IF(AND(O$5=$E17,$F17=1),Meilenstein_Markierung,\"\")),\"\")","v":""},{"$f":"IFERROR(IF(LEN(Meilensteine[[#This Row],[Anzahl Tage]])=0,\"\",IF(AND(P$5=$E17,$F17=1),Meilenstein_Markierung,\"\")),\"\")","v":""},{"$f":"IFERROR(IF(LEN(Meilensteine[[#This Row],[Anzahl Tage]])=0,\"\",IF(AND(Q$5=$E17,$F17=1),Meilenstein_Markierung,\"\")),\"\")","v":""},{"$f":"IFERROR(IF(LEN(Meilensteine[[#This Row],[Anzahl Tage]])=0,\"\",IF(AND(R$5=$E17,$F17=1),Meilenstein_Markierung,\"\")),\"\")","v":""},{"$f":"IFERROR(IF(LEN(Meilensteine[[#This Row],[Anzahl Tage]])=0,\"\",IF(AND(S$5=$E17,$F17=1),Meilenstein_Markierung,\"\")),\"\")","v":""},{"$f":"IFERROR(IF(LEN(Meilensteine[[#This Row],[Anzahl Tage]])=0,\"\",IF(AND(T$5=$E17,$F17=1),Meilenstein_Markierung,\"\")),\"\")","v":""},{"$f":"IFERROR(IF(LEN(Meilensteine[[#This Row],[Anzahl Tage]])=0,\"\",IF(AND(U$5=$E17,$F17=1),Meilenstein_Markierung,\"\")),\"\")","v":""},{"$f":"IFERROR(IF(LEN(Meilensteine[[#This Row],[Anzahl Tage]])=0,\"\",IF(AND(V$5=$E17,$F17=1),Meilenstein_Markierung,\"\")),\"\")","v":""},{"$f":"IFERROR(IF(LEN(Meilensteine[[#This Row],[Anzahl Tage]])=0,\"\",IF(AND(W$5=$E17,$F17=1),Meilenstein_Markierung,\"\")),\"\")","v":""},{"$f":"IFERROR(IF(LEN(Meilensteine[[#This Row],[Anzahl Tage]])=0,\"\",IF(AND(X$5=$E17,$F17=1),Meilenstein_Markierung,\"\")),\"\")","v":""},{"$f":"IFERROR(IF(LEN(Meilensteine[[#This Row],[Anzahl Tage]])=0,\"\",IF(AND(Y$5=$E17,$F17=1),Meilenstein_Markierung,\"\")),\"\")","v":""},{"$f":"IFERROR(IF(LEN(Meilensteine[[#This Row],[Anzahl Tage]])=0,\"\",IF(AND(Z$5=$E17,$F17=1),Meilenstein_Markierung,\"\")),\"\")","v":""},{"$f":"IFERROR(IF(LEN(Meilensteine[[#This Row],[Anzahl Tage]])=0,\"\",IF(AND(AA$5=$E17,$F17=1),Meilenstein_Markierung,\"\")),\"\")","v":""},{"$f":"IFERROR(IF(LEN(Meilensteine[[#This Row],[Anzahl Tage]])=0,\"\",IF(AND(AB$5=$E17,$F17=1),Meilenstein_Markierung,\"\")),\"\")","v":""},{"$f":"IFERROR(IF(LEN(Meilensteine[[#This Row],[Anzahl Tage]])=0,\"\",IF(AND(AC$5=$E17,$F17=1),Meilenstein_Markierung,\"\")),\"\")","v":""},{"$f":"IFERROR(IF(LEN(Meilensteine[[#This Row],[Anzahl Tage]])=0,\"\",IF(AND(AD$5=$E17,$F17=1),Meilenstein_Markierung,\"\")),\"\")","v":""},{"$f":"IFERROR(IF(LEN(Meilensteine[[#This Row],[Anzahl Tage]])=0,\"\",IF(AND(AE$5=$E17,$F17=1),Meilenstein_Markierung,\"\")),\"\")","v":""},{"$f":"IFERROR(IF(LEN(Meilensteine[[#This Row],[Anzahl Tage]])=0,\"\",IF(AND(AF$5=$E17,$F17=1),Meilenstein_Markierung,\"\")),\"\")","v":""},{"$f":"IFERROR(IF(LEN(Meilensteine[[#This Row],[Anzahl Tage]])=0,\"\",IF(AND(AG$5=$E17,$F17=1),Meilenstein_Markierung,\"\")),\"\")","v":""},{"$f":"IFERROR(IF(LEN(Meilensteine[[#This Row],[Anzahl Tage]])=0,\"\",IF(AND(AH$5=$E17,$F17=1),Meilenstein_Markierung,\"\")),\"\")","v":""},{"$f":"IFERROR(IF(LEN(Meilensteine[[#This Row],[Anzahl Tage]])=0,\"\",IF(AND(AI$5=$E17,$F17=1),Meilenstein_Markierung,\"\")),\"\")","v":""},{"$f":"IFERROR(IF(LEN(Meilensteine[[#This Row],[Anzahl Tage]])=0,\"\",IF(AND(AJ$5=$E17,$F17=1),Meilenstein_Markierung,\"\")),\"\")","v":""},{"$f":"IFERROR(IF(LEN(Meilensteine[[#This Row],[Anzahl Tage]])=0,\"\",IF(AND(AK$5=$E17,$F17=1),Meilenstein_Markierung,\"\")),\"\")","v":""},{"$f":"IFERROR(IF(LEN(Meilensteine[[#This Row],[Anzahl Tage]])=0,\"\",IF(AND(AL$5=$E17,$F17=1),Meilenstein_Markierung,\"\")),\"\")","v":""},{"$f":"IFERROR(IF(LEN(Meilensteine[[#This Row],[Anzahl Tage]])=0,\"\",IF(AND(AM$5=$E17,$F17=1),Meilenstein_Markierung,\"\")),\"\")","v":""},{"$f":"IFERROR(IF(LEN(Meilensteine[[#This Row],[Anzahl Tage]])=0,\"\",IF(AND(AN$5=$E17,$F17=1),Meilenstein_Markierung,\"\")),\"\")","v":""},{"$f":"IFERROR(IF(LEN(Meilensteine[[#This Row],[Anzahl Tage]])=0,\"\",IF(AND(AO$5=$E17,$F17=1),Meilenstein_Markierung,\"\")),\"\")","v":""},{"$f":"IFERROR(IF(LEN(Meilensteine[[#This Row],[Anzahl Tage]])=0,\"\",IF(AND(AP$5=$E17,$F17=1),Meilenstein_Markierung,\"\")),\"\")","v":""},{"$f":"IFERROR(IF(LEN(Meilensteine[[#This Row],[Anzahl Tage]])=0,\"\",IF(AND(AQ$5=$E17,$F17=1),Meilenstein_Markierung,\"\")),\"\")","v":""},{"$f":"IFERROR(IF(LEN(Meilensteine[[#This Row],[Anzahl Tage]])=0,\"\",IF(AND(AR$5=$E17,$F17=1),Meilenstein_Markierung,\"\")),\"\")","v":""},{"$f":"IFERROR(IF(LEN(Meilensteine[[#This Row],[Anzahl Tage]])=0,\"\",IF(AND(AS$5=$E17,$F17=1),Meilenstein_Markierung,\"\")),\"\")","v":""},{"$f":"IFERROR(IF(LEN(Meilensteine[[#This Row],[Anzahl Tage]])=0,\"\",IF(AND(AT$5=$E17,$F17=1),Meilenstein_Markierung,\"\")),\"\")","v":""},{"$f":"IFERROR(IF(LEN(Meilensteine[[#This Row],[Anzahl Tage]])=0,\"\",IF(AND(AU$5=$E17,$F17=1),Meilenstein_Markierung,\"\")),\"\")","v":""},{"$f":"IFERROR(IF(LEN(Meilensteine[[#This Row],[Anzahl Tage]])=0,\"\",IF(AND(AV$5=$E17,$F17=1),Meilenstein_Markierung,\"\")),\"\")","v":""},{"$f":"IFERROR(IF(LEN(Meilensteine[[#This Row],[Anzahl Tage]])=0,\"\",IF(AND(AW$5=$E17,$F17=1),Meilenstein_Markierung,\"\")),\"\")","v":""},{"$f":"IFERROR(IF(LEN(Meilensteine[[#This Row],[Anzahl Tage]])=0,\"\",IF(AND(AX$5=$E17,$F17=1),Meilenstein_Markierung,\"\")),\"\")","v":""},{"$f":"IFERROR(IF(LEN(Meilensteine[[#This Row],[Anzahl Tage]])=0,\"\",IF(AND(AY$5=$E17,$F17=1),Meilenstein_Markierung,\"\")),\"\")","v":""},{"$f":"IFERROR(IF(LEN(Meilensteine[[#This Row],[Anzahl Tage]])=0,\"\",IF(AND(AZ$5=$E17,$F17=1),Meilenstein_Markierung,\"\")),\"\")","v":""},{"$f":"IFERROR(IF(LEN(Meilensteine[[#This Row],[Anzahl Tage]])=0,\"\",IF(AND(BA$5=$E17,$F17=1),Meilenstein_Markierung,\"\")),\"\")","v":""},{"$f":"IFERROR(IF(LEN(Meilensteine[[#This Row],[Anzahl Tage]])=0,\"\",IF(AND(BB$5=$E17,$F17=1),Meilenstein_Markierung,\"\")),\"\")","v":""},{"$f":"IFERROR(IF(LEN(Meilensteine[[#This Row],[Anzahl Tage]])=0,\"\",IF(AND(BC$5=$E17,$F17=1),Meilenstein_Markierung,\"\")),\"\")","v":""},{"$f":"IFERROR(IF(LEN(Meilensteine[[#This Row],[Anzahl Tage]])=0,\"\",IF(AND(BD$5=$E17,$F17=1),Meilenstein_Markierung,\"\")),\"\")","v":""},{"$f":"IFERROR(IF(LEN(Meilensteine[[#This Row],[Anzahl Tage]])=0,\"\",IF(AND(BE$5=$E17,$F17=1),Meilenstein_Markierung,\"\")),\"\")","v":""},{"$f":"IFERROR(IF(LEN(Meilensteine[[#This Row],[Anzahl Tage]])=0,\"\",IF(AND(BF$5=$E17,$F17=1),Meilenstein_Markierung,\"\")),\"\")","v":""},{"$f":"IFERROR(IF(LEN(Meilensteine[[#This Row],[Anzahl Tage]])=0,\"\",IF(AND(BG$5=$E17,$F17=1),Meilenstein_Markierung,\"\")),\"\")","v":""},{"$f":"IFERROR(IF(LEN(Meilensteine[[#This Row],[Anzahl Tage]])=0,\"\",IF(AND(BH$5=$E17,$F17=1),Meilenstein_Markierung,\"\")),\"\")","v":""},{"$f":"IFERROR(IF(LEN(Meilensteine[[#This Row],[Anzahl Tage]])=0,\"\",IF(AND(BI$5=$E17,$F17=1),Meilenstein_Markierung,\"\")),\"\")","v":""},{"$f":"IFERROR(IF(LEN(Meilensteine[[#This Row],[Anzahl Tage]])=0,\"\",IF(AND(BJ$5=$E17,$F17=1),Meilenstein_Markierung,\"\")),\"\")","v":""},{"$f":"IFERROR(IF(LEN(Meilensteine[[#This Row],[Anzahl Tage]])=0,\"\",IF(AND(BK$5=$E17,$F17=1),Meilenstein_Markierung,\"\")),\"\")","v":""}]
[null,"Aufgabe 4",null,null,{"$f":"TODAY()+24","v":"2018-10-13"},1,null,{"$f":"IFERROR(IF(LEN(Meilensteine[[#This Row],[Anzahl Tage]])=0,\"\",IF(AND(H$5=$E18,$F18=1),Meilenstein_Markierung,\"\")),\"\")","v":""},{"$f":"IFERROR(IF(LEN(Meilensteine[[#This Row],[Anzahl Tage]])=0,\"\",IF(AND(I$5=$E18,$F18=1),Meilenstein_Markierung,\"\")),\"\")","v":""},{"$f":"IFERROR(IF(LEN(Meilensteine[[#This Row],[Anzahl Tage]])=0,\"\",IF(AND(J$5=$E18,$F18=1),Meilenstein_Markierung,\"\")),\"\")","v":""},{"$f":"IFERROR(IF(LEN(Meilensteine[[#This Row],[Anzahl Tage]])=0,\"\",IF(AND(K$5=$E18,$F18=1),Meilenstein_Markierung,\"\")),\"\")","v":""},{"$f":"IFERROR(IF(LEN(Meilensteine[[#This Row],[Anzahl Tage]])=0,\"\",IF(AND(L$5=$E18,$F18=1),Meilenstein_Markierung,\"\")),\"\")","v":""},{"$f":"IFERROR(IF(LEN(Meilensteine[[#This Row],[Anzahl Tage]])=0,\"\",IF(AND(M$5=$E18,$F18=1),Meilenstein_Markierung,\"\")),\"\")","v":""},{"$f":"IFERROR(IF(LEN(Meilensteine[[#This Row],[Anzahl Tage]])=0,\"\",IF(AND(N$5=$E18,$F18=1),Meilenstein_Markierung,\"\")),\"\")","v":""},{"$f":"IFERROR(IF(LEN(Meilensteine[[#This Row],[Anzahl Tage]])=0,\"\",IF(AND(O$5=$E18,$F18=1),Meilenstein_Markierung,\"\")),\"\")","v":""},{"$f":"IFERROR(IF(LEN(Meilensteine[[#This Row],[Anzahl Tage]])=0,\"\",IF(AND(P$5=$E18,$F18=1),Meilenstein_Markierung,\"\")),\"\")","v":""},{"$f":"IFERROR(IF(LEN(Meilensteine[[#This Row],[Anzahl Tage]])=0,\"\",IF(AND(Q$5=$E18,$F18=1),Meilenstein_Markierung,\"\")),\"\")","v":""},{"$f":"IFERROR(IF(LEN(Meilensteine[[#This Row],[Anzahl Tage]])=0,\"\",IF(AND(R$5=$E18,$F18=1),Meilenstein_Markierung,\"\")),\"\")","v":""},{"$f":"IFERROR(IF(LEN(Meilensteine[[#This Row],[Anzahl Tage]])=0,\"\",IF(AND(S$5=$E18,$F18=1),Meilenstein_Markierung,\"\")),\"\")","v":""},{"$f":"IFERROR(IF(LEN(Meilensteine[[#This Row],[Anzahl Tage]])=0,\"\",IF(AND(T$5=$E18,$F18=1),Meilenstein_Markierung,\"\")),\"\")","v":""},{"$f":"IFERROR(IF(LEN(Meilensteine[[#This Row],[Anzahl Tage]])=0,\"\",IF(AND(U$5=$E18,$F18=1),Meilenstein_Markierung,\"\")),\"\")","v":""},{"$f":"IFERROR(IF(LEN(Meilensteine[[#This Row],[Anzahl Tage]])=0,\"\",IF(AND(V$5=$E18,$F18=1),Meilenstein_Markierung,\"\")),\"\")","v":""},{"$f":"IFERROR(IF(LEN(Meilensteine[[#This Row],[Anzahl Tage]])=0,\"\",IF(AND(W$5=$E18,$F18=1),Meilenstein_Markierung,\"\")),\"\")","v":""},{"$f":"IFERROR(IF(LEN(Meilensteine[[#This Row],[Anzahl Tage]])=0,\"\",IF(AND(X$5=$E18,$F18=1),Meilenstein_Markierung,\"\")),\"\")","v":""},{"$f":"IFERROR(IF(LEN(Meilensteine[[#This Row],[Anzahl Tage]])=0,\"\",IF(AND(Y$5=$E18,$F18=1),Meilenstein_Markierung,\"\")),\"\")","v":""},{"$f":"IFERROR(IF(LEN(Meilensteine[[#This Row],[Anzahl Tage]])=0,\"\",IF(AND(Z$5=$E18,$F18=1),Meilenstein_Markierung,\"\")),\"\")","v":""},{"$f":"IFERROR(IF(LEN(Meilensteine[[#This Row],[Anzahl Tage]])=0,\"\",IF(AND(AA$5=$E18,$F18=1),Meilenstein_Markierung,\"\")),\"\")","v":""},{"$f":"IFERROR(IF(LEN(Meilensteine[[#This Row],[Anzahl Tage]])=0,\"\",IF(AND(AB$5=$E18,$F18=1),Meilenstein_Markierung,\"\")),\"\")","v":""},{"$f":"IFERROR(IF(LEN(Meilensteine[[#This Row],[Anzahl Tage]])=0,\"\",IF(AND(AC$5=$E18,$F18=1),Meilenstein_Markierung,\"\")),\"\")","v":""},{"$f":"IFERROR(IF(LEN(Meilensteine[[#This Row],[Anzahl Tage]])=0,\"\",IF(AND(AD$5=$E18,$F18=1),Meilenstein_Markierung,\"\")),\"\")","v":""},{"$f":"IFERROR(IF(LEN(Meilensteine[[#This Row],[Anzahl Tage]])=0,\"\",IF(AND(AE$5=$E18,$F18=1),Meilenstein_Markierung,\"\")),\"\")","v":""},{"$f":"IFERROR(IF(LEN(Meilensteine[[#This Row],[Anzahl Tage]])=0,\"\",IF(AND(AF$5=$E18,$F18=1),Meilenstein_Markierung,\"\")),\"\")","v":""},{"$f":"IFERROR(IF(LEN(Meilensteine[[#This Row],[Anzahl Tage]])=0,\"\",IF(AND(AG$5=$E18,$F18=1),Meilenstein_Markierung,\"\")),\"\")","v":""},{"$f":"IFERROR(IF(LEN(Meilensteine[[#This Row],[Anzahl Tage]])=0,\"\",IF(AND(AH$5=$E18,$F18=1),Meilenstein_Markierung,\"\")),\"\")","v":""},{"$f":"IFERROR(IF(LEN(Meilensteine[[#This Row],[Anzahl Tage]])=0,\"\",IF(AND(AI$5=$E18,$F18=1),Meilenstein_Markierung,\"\")),\"\")","v":1},{"$f":"IFERROR(IF(LEN(Meilensteine[[#This Row],[Anzahl Tage]])=0,\"\",IF(AND(AJ$5=$E18,$F18=1),Meilenstein_Markierung,\"\")),\"\")","v":""},{"$f":"IFERROR(IF(LEN(Meilensteine[[#This Row],[Anzahl Tage]])=0,\"\",IF(AND(AK$5=$E18,$F18=1),Meilenstein_Markierung,\"\")),\"\")","v":""},{"$f":"IFERROR(IF(LEN(Meilensteine[[#This Row],[Anzahl Tage]])=0,\"\",IF(AND(AL$5=$E18,$F18=1),Meilenstein_Markierung,\"\")),\"\")","v":""},{"$f":"IFERROR(IF(LEN(Meilensteine[[#This Row],[Anzahl Tage]])=0,\"\",IF(AND(AM$5=$E18,$F18=1),Meilenstein_Markierung,\"\")),\"\")","v":""},{"$f":"IFERROR(IF(LEN(Meilensteine[[#This Row],[Anzahl Tage]])=0,\"\",IF(AND(AN$5=$E18,$F18=1),Meilenstein_Markierung,\"\")),\"\")","v":""},{"$f":"IFERROR(IF(LEN(Meilensteine[[#This Row],[Anzahl Tage]])=0,\"\",IF(AND(AO$5=$E18,$F18=1),Meilenstein_Markierung,\"\")),\"\")","v":""},{"$f":"IFERROR(IF(LEN(Meilensteine[[#This Row],[Anzahl Tage]])=0,\"\",IF(AND(AP$5=$E18,$F18=1),Meilenstein_Markierung,\"\")),\"\")","v":""},{"$f":"IFERROR(IF(LEN(Meilensteine[[#This Row],[Anzahl Tage]])=0,\"\",IF(AND(AQ$5=$E18,$F18=1),Meilenstein_Markierung,\"\")),\"\")","v":""},{"$f":"IFERROR(IF(LEN(Meilensteine[[#This Row],[Anzahl Tage]])=0,\"\",IF(AND(AR$5=$E18,$F18=1),Meilenstein_Markierung,\"\")),\"\")","v":""},{"$f":"IFERROR(IF(LEN(Meilensteine[[#This Row],[Anzahl Tage]])=0,\"\",IF(AND(AS$5=$E18,$F18=1),Meilenstein_Markierung,\"\")),\"\")","v":""},{"$f":"IFERROR(IF(LEN(Meilensteine[[#This Row],[Anzahl Tage]])=0,\"\",IF(AND(AT$5=$E18,$F18=1),Meilenstein_Markierung,\"\")),\"\")","v":""},{"$f":"IFERROR(IF(LEN(Meilensteine[[#This Row],[Anzahl Tage]])=0,\"\",IF(AND(AU$5=$E18,$F18=1),Meilenstein_Markierung,\"\")),\"\")","v":""},{"$f":"IFERROR(IF(LEN(Meilensteine[[#This Row],[Anzahl Tage]])=0,\"\",IF(AND(AV$5=$E18,$F18=1),Meilenstein_Markierung,\"\")),\"\")","v":""},{"$f":"IFERROR(IF(LEN(Meilensteine[[#This Row],[Anzahl Tage]])=0,\"\",IF(AND(AW$5=$E18,$F18=1),Meilenstein_Markierung,\"\")),\"\")","v":""},{"$f":"IFERROR(IF(LEN(Meilensteine[[#This Row],[Anzahl Tage]])=0,\"\",IF(AND(AX$5=$E18,$F18=1),Meilenstein_Markierung,\"\")),\"\")","v":""},{"$f":"IFERROR(IF(LEN(Meilensteine[[#This Row],[Anzahl Tage]])=0,\"\",IF(AND(AY$5=$E18,$F18=1),Meilenstein_Markierung,\"\")),\"\")","v":""},{"$f":"IFERROR(IF(LEN(Meilensteine[[#This Row],[Anzahl Tage]])=0,\"\",IF(AND(AZ$5=$E18,$F18=1),Meilenstein_Markierung,\"\")),\"\")","v":""},{"$f":"IFERROR(IF(LEN(Meilensteine[[#This Row],[Anzahl Tage]])=0,\"\",IF(AND(BA$5=$E18,$F18=1),Meilenstein_Markierung,\"\")),\"\")","v":""},{"$f":"IFERROR(IF(LEN(Meilensteine[[#This Row],[Anzahl Tage]])=0,\"\",IF(AND(BB$5=$E18,$F18=1),Meilenstein_Markierung,\"\")),\"\")","v":""},{"$f":"IFERROR(IF(LEN(Meilensteine[[#This Row],[Anzahl Tage]])=0,\"\",IF(AND(BC$5=$E18,$F18=1),Meilenstein_Markierung,\"\")),\"\")","v":""},{"$f":"IFERROR(IF(LEN(Meilensteine[[#This Row],[Anzahl Tage]])=0,\"\",IF(AND(BD$5=$E18,$F18=1),Meilenstein_Markierung,\"\")),\"\")","v":""},{"$f":"IFERROR(IF(LEN(Meilensteine[[#This Row],[Anzahl Tage]])=0,\"\",IF(AND(BE$5=$E18,$F18=1),Meilenstein_Markierung,\"\")),\"\")","v":""},{"$f":"IFERROR(IF(LEN(Meilensteine[[#This Row],[Anzahl Tage]])=0,\"\",IF(AND(BF$5=$E18,$F18=1),Meilenstein_Markierung,\"\")),\"\")","v":""},{"$f":"IFERROR(IF(LEN(Meilensteine[[#This Row],[Anzahl Tage]])=0,\"\",IF(AND(BG$5=$E18,$F18=1),Meilenstein_Markierung,\"\")),\"\")","v":""},{"$f":"IFERROR(IF(LEN(Meilensteine[[#This Row],[Anzahl Tage]])=0,\"\",IF(AND(BH$5=$E18,$F18=1),Meilenstein_Markierung,\"\")),\"\")","v":""},{"$f":"IFERROR(IF(LEN(Meilensteine[[#This Row],[Anzahl Tage]])=0,\"\",IF(AND(BI$5=$E18,$F18=1),Meilenstein_Markierung,\"\")),\"\")","v":""},{"$f":"IFERROR(IF(LEN(Meilensteine[[#This Row],[Anzahl Tage]])=0,\"\",IF(AND(BJ$5=$E18,$F18=1),Meilenstein_Markierung,\"\")),\"\")","v":""},{"$f":"IFERROR(IF(LEN(Meilensteine[[#This Row],[Anzahl Tage]])=0,\"\",IF(AND(BK$5=$E18,$F18=1),Meilenstein_Markierung,\"\")),\"\")","v":""}]
[null,"Aufgabe 5",null,null,{"$f":"TODAY()+25","v":"2018-10-14"},24,null,{"$f":"IFERROR(IF(LEN(Meilensteine[[#This Row],[Anzahl Tage]])=0,\"\",IF(AND(H$5=$E19,$F19=1),Meilenstein_Markierung,\"\")),\"\")","v":""},{"$f":"IFERROR(IF(LEN(Meilensteine[[#This Row],[Anzahl Tage]])=0,\"\",IF(AND(I$5=$E19,$F19=1),Meilenstein_Markierung,\"\")),\"\")","v":""},{"$f":"IFERROR(IF(LEN(Meilensteine[[#This Row],[Anzahl Tage]])=0,\"\",IF(AND(J$5=$E19,$F19=1),Meilenstein_Markierung,\"\")),\"\")","v":""},{"$f":"IFERROR(IF(LEN(Meilensteine[[#This Row],[Anzahl Tage]])=0,\"\",IF(AND(K$5=$E19,$F19=1),Meilenstein_Markierung,\"\")),\"\")","v":""},{"$f":"IFERROR(IF(LEN(Meilensteine[[#This Row],[Anzahl Tage]])=0,\"\",IF(AND(L$5=$E19,$F19=1),Meilenstein_Markierung,\"\")),\"\")","v":""},{"$f":"IFERROR(IF(LEN(Meilensteine[[#This Row],[Anzahl Tage]])=0,\"\",IF(AND(M$5=$E19,$F19=1),Meilenstein_Markierung,\"\")),\"\")","v":""},{"$f":"IFERROR(IF(LEN(Meilensteine[[#This Row],[Anzahl Tage]])=0,\"\",IF(AND(N$5=$E19,$F19=1),Meilenstein_Markierung,\"\")),\"\")","v":""},{"$f":"IFERROR(IF(LEN(Meilensteine[[#This Row],[Anzahl Tage]])=0,\"\",IF(AND(O$5=$E19,$F19=1),Meilenstein_Markierung,\"\")),\"\")","v":""},{"$f":"IFERROR(IF(LEN(Meilensteine[[#This Row],[Anzahl Tage]])=0,\"\",IF(AND(P$5=$E19,$F19=1),Meilenstein_Markierung,\"\")),\"\")","v":""},{"$f":"IFERROR(IF(LEN(Meilensteine[[#This Row],[Anzahl Tage]])=0,\"\",IF(AND(Q$5=$E19,$F19=1),Meilenstein_Markierung,\"\")),\"\")","v":""},{"$f":"IFERROR(IF(LEN(Meilensteine[[#This Row],[Anzahl Tage]])=0,\"\",IF(AND(R$5=$E19,$F19=1),Meilenstein_Markierung,\"\")),\"\")","v":""},{"$f":"IFERROR(IF(LEN(Meilensteine[[#This Row],[Anzahl Tage]])=0,\"\",IF(AND(S$5=$E19,$F19=1),Meilenstein_Markierung,\"\")),\"\")","v":""},{"$f":"IFERROR(IF(LEN(Meilensteine[[#This Row],[Anzahl Tage]])=0,\"\",IF(AND(T$5=$E19,$F19=1),Meilenstein_Markierung,\"\")),\"\")","v":""},{"$f":"IFERROR(IF(LEN(Meilensteine[[#This Row],[Anzahl Tage]])=0,\"\",IF(AND(U$5=$E19,$F19=1),Meilenstein_Markierung,\"\")),\"\")","v":""},{"$f":"IFERROR(IF(LEN(Meilensteine[[#This Row],[Anzahl Tage]])=0,\"\",IF(AND(V$5=$E19,$F19=1),Meilenstein_Markierung,\"\")),\"\")","v":""},{"$f":"IFERROR(IF(LEN(Meilensteine[[#This Row],[Anzahl Tage]])=0,\"\",IF(AND(W$5=$E19,$F19=1),Meilenstein_Markierung,\"\")),\"\")","v":""},{"$f":"IFERROR(IF(LEN(Meilensteine[[#This Row],[Anzahl Tage]])=0,\"\",IF(AND(X$5=$E19,$F19=1),Meilenstein_Markierung,\"\")),\"\")","v":""},{"$f":"IFERROR(IF(LEN(Meilensteine[[#This Row],[Anzahl Tage]])=0,\"\",IF(AND(Y$5=$E19,$F19=1),Meilenstein_Markierung,\"\")),\"\")","v":""},{"$f":"IFERROR(IF(LEN(Meilensteine[[#This Row],[Anzahl Tage]])=0,\"\",IF(AND(Z$5=$E19,$F19=1),Meilenstein_Markierung,\"\")),\"\")","v":""},{"$f":"IFERROR(IF(LEN(Meilensteine[[#This Row],[Anzahl Tage]])=0,\"\",IF(AND(AA$5=$E19,$F19=1),Meilenstein_Markierung,\"\")),\"\")","v":""},{"$f":"IFERROR(IF(LEN(Meilensteine[[#This Row],[Anzahl Tage]])=0,\"\",IF(AND(AB$5=$E19,$F19=1),Meilenstein_Markierung,\"\")),\"\")","v":""},{"$f":"IFERROR(IF(LEN(Meilensteine[[#This Row],[Anzahl Tage]])=0,\"\",IF(AND(AC$5=$E19,$F19=1),Meilenstein_Markierung,\"\")),\"\")","v":""},{"$f":"IFERROR(IF(LEN(Meilensteine[[#This Row],[Anzahl Tage]])=0,\"\",IF(AND(AD$5=$E19,$F19=1),Meilenstein_Markierung,\"\")),\"\")","v":""},{"$f":"IFERROR(IF(LEN(Meilensteine[[#This Row],[Anzahl Tage]])=0,\"\",IF(AND(AE$5=$E19,$F19=1),Meilenstein_Markierung,\"\")),\"\")","v":""},{"$f":"IFERROR(IF(LEN(Meilensteine[[#This Row],[Anzahl Tage]])=0,\"\",IF(AND(AF$5=$E19,$F19=1),Meilenstein_Markierung,\"\")),\"\")","v":""},{"$f":"IFERROR(IF(LEN(Meilensteine[[#This Row],[Anzahl Tage]])=0,\"\",IF(AND(AG$5=$E19,$F19=1),Meilenstein_Markierung,\"\")),\"\")","v":""},{"$f":"IFERROR(IF(LEN(Meilensteine[[#This Row],[Anzahl Tage]])=0,\"\",IF(AND(AH$5=$E19,$F19=1),Meilenstein_Markierung,\"\")),\"\")","v":""},{"$f":"IFERROR(IF(LEN(Meilensteine[[#This Row],[Anzahl Tage]])=0,\"\",IF(AND(AI$5=$E19,$F19=1),Meilenstein_Markierung,\"\")),\"\")","v":""},{"$f":"IFERROR(IF(LEN(Meilensteine[[#This Row],[Anzahl Tage]])=0,\"\",IF(AND(AJ$5=$E19,$F19=1),Meilenstein_Markierung,\"\")),\"\")","v":""},{"$f":"IFERROR(IF(LEN(Meilensteine[[#This Row],[Anzahl Tage]])=0,\"\",IF(AND(AK$5=$E19,$F19=1),Meilenstein_Markierung,\"\")),\"\")","v":""},{"$f":"IFERROR(IF(LEN(Meilensteine[[#This Row],[Anzahl Tage]])=0,\"\",IF(AND(AL$5=$E19,$F19=1),Meilenstein_Markierung,\"\")),\"\")","v":""},{"$f":"IFERROR(IF(LEN(Meilensteine[[#This Row],[Anzahl Tage]])=0,\"\",IF(AND(AM$5=$E19,$F19=1),Meilenstein_Markierung,\"\")),\"\")","v":""},{"$f":"IFERROR(IF(LEN(Meilensteine[[#This Row],[Anzahl Tage]])=0,\"\",IF(AND(AN$5=$E19,$F19=1),Meilenstein_Markierung,\"\")),\"\")","v":""},{"$f":"IFERROR(IF(LEN(Meilensteine[[#This Row],[Anzahl Tage]])=0,\"\",IF(AND(AO$5=$E19,$F19=1),Meilenstein_Markierung,\"\")),\"\")","v":""},{"$f":"IFERROR(IF(LEN(Meilensteine[[#This Row],[Anzahl Tage]])=0,\"\",IF(AND(AP$5=$E19,$F19=1),Meilenstein_Markierung,\"\")),\"\")","v":""},{"$f":"IFERROR(IF(LEN(Meilensteine[[#This Row],[Anzahl Tage]])=0,\"\",IF(AND(AQ$5=$E19,$F19=1),Meilenstein_Markierung,\"\")),\"\")","v":""},{"$f":"IFERROR(IF(LEN(Meilensteine[[#This Row],[Anzahl Tage]])=0,\"\",IF(AND(AR$5=$E19,$F19=1),Meilenstein_Markierung,\"\")),\"\")","v":""},{"$f":"IFERROR(IF(LEN(Meilensteine[[#This Row],[Anzahl Tage]])=0,\"\",IF(AND(AS$5=$E19,$F19=1),Meilenstein_Markierung,\"\")),\"\")","v":""},{"$f":"IFERROR(IF(LEN(Meilensteine[[#This Row],[Anzahl Tage]])=0,\"\",IF(AND(AT$5=$E19,$F19=1),Meilenstein_Markierung,\"\")),\"\")","v":""},{"$f":"IFERROR(IF(LEN(Meilensteine[[#This Row],[Anzahl Tage]])=0,\"\",IF(AND(AU$5=$E19,$F19=1),Meilenstein_Markierung,\"\")),\"\")","v":""},{"$f":"IFERROR(IF(LEN(Meilensteine[[#This Row],[Anzahl Tage]])=0,\"\",IF(AND(AV$5=$E19,$F19=1),Meilenstein_Markierung,\"\")),\"\")","v":""},{"$f":"IFERROR(IF(LEN(Meilensteine[[#This Row],[Anzahl Tage]])=0,\"\",IF(AND(AW$5=$E19,$F19=1),Meilenstein_Markierung,\"\")),\"\")","v":""},{"$f":"IFERROR(IF(LEN(Meilensteine[[#This Row],[Anzahl Tage]])=0,\"\",IF(AND(AX$5=$E19,$F19=1),Meilenstein_Markierung,\"\")),\"\")","v":""},{"$f":"IFERROR(IF(LEN(Meilensteine[[#This Row],[Anzahl Tage]])=0,\"\",IF(AND(AY$5=$E19,$F19=1),Meilenstein_Markierung,\"\")),\"\")","v":""},{"$f":"IFERROR(IF(LEN(Meilensteine[[#This Row],[Anzahl Tage]])=0,\"\",IF(AND(AZ$5=$E19,$F19=1),Meilenstein_Markierung,\"\")),\"\")","v":""},{"$f":"IFERROR(IF(LEN(Meilensteine[[#This Row],[Anzahl Tage]])=0,\"\",IF(AND(BA$5=$E19,$F19=1),Meilenstein_Markierung,\"\")),\"\")","v":""},{"$f":"IFERROR(IF(LEN(Meilensteine[[#This Row],[Anzahl Tage]])=0,\"\",IF(AND(BB$5=$E19,$F19=1),Meilenstein_Markierung,\"\")),\"\")","v":""},{"$f":"IFERROR(IF(LEN(Meilensteine[[#This Row],[Anzahl Tage]])=0,\"\",IF(AND(BC$5=$E19,$F19=1),Meilenstein_Markierung,\"\")),\"\")","v":""},{"$f":"IFERROR(IF(LEN(Meilensteine[[#This Row],[Anzahl Tage]])=0,\"\",IF(AND(BD$5=$E19,$F19=1),Meilenstein_Markierung,\"\")),\"\")","v":""},{"$f":"IFERROR(IF(LEN(Meilensteine[[#This Row],[Anzahl Tage]])=0,\"\",IF(AND(BE$5=$E19,$F19=1),Meilenstein_Markierung,\"\")),\"\")","v":""},{"$f":"IFERROR(IF(LEN(Meilensteine[[#This Row],[Anzahl Tage]])=0,\"\",IF(AND(BF$5=$E19,$F19=1),Meilenstein_Markierung,\"\")),\"\")","v":""},{"$f":"IFERROR(IF(LEN(Meilensteine[[#This Row],[Anzahl Tage]])=0,\"\",IF(AND(BG$5=$E19,$F19=1),Meilenstein_Markierung,\"\")),\"\")","v":""},{"$f":"IFERROR(IF(LEN(Meilensteine[[#This Row],[Anzahl Tage]])=0,\"\",IF(AND(BH$5=$E19,$F19=1),Meilenstein_Markierung,\"\")),\"\")","v":""},{"$f":"IFERROR(IF(LEN(Meilensteine[[#This Row],[Anzahl Tage]])=0,\"\",IF(AND(BI$5=$E19,$F19=1),Meilenstein_Markierung,\"\")),\"\")","v":""},{"$f":"IFERROR(IF(LEN(Meilensteine[[#This Row],[Anzahl Tage]])=0,\"\",IF(AND(BJ$5=$E19,$F19=1),Meilenstein_Markierung,\"\")),\"\")","v":""},{"$f":"IFERROR(IF(LEN(Meilensteine[[#This Row],[Anzahl Tage]])=0,\"\",IF(AND(BK$5=$E19,$F19=1),Meilenstein_Markierung,\"\")),\"\")","v":""}]
[null,"Titel 3",{"$nulls":5},{"$f":"IFERROR(IF(LEN(Meilensteine[[#This Row],[Anzahl Tage]])=0,\"\",IF(AND(H$5=$E20,$F20=1),Meilenstein_Markierung,\"\")),\"\")","v":""},{"$f":"IFERROR(IF(LEN(Meilensteine[[#This Row],[Anzahl Tage]])=0,\"\",IF(AND(I$5=$E20,$F20=1),Meilenstein_Markierung,\"\")),\"\")","v":""},{"$f":"IFERROR(IF(LEN(Meilensteine[[#This Row],[Anzahl Tage]])=0,\"\",IF(AND(J$5=$E20,$F20=1),Meilenstein_Markierung,\"\")),\"\")","v":""},{"$f":"IFERROR(IF(LEN(Meilensteine[[#This Row],[Anzahl Tage]])=0,\"\",IF(AND(K$5=$E20,$F20=1),Meilenstein_Markierung,\"\")),\"\")","v":""},{"$f":"IFERROR(IF(LEN(Meilensteine[[#This Row],[Anzahl Tage]])=0,\"\",IF(AND(L$5=$E20,$F20=1),Meilenstein_Markierung,\"\")),\"\")","v":""},{"$f":"IFERROR(IF(LEN(Meilensteine[[#This Row],[Anzahl Tage]])=0,\"\",IF(AND(M$5=$E20,$F20=1),Meilenstein_Markierung,\"\")),\"\")","v":""},{"$f":"IFERROR(IF(LEN(Meilensteine[[#This Row],[Anzahl Tage]])=0,\"\",IF(AND(N$5=$E20,$F20=1),Meilenstein_Markierung,\"\")),\"\")","v":""},{"$f":"IFERROR(IF(LEN(Meilensteine[[#This Row],[Anzahl Tage]])=0,\"\",IF(AND(O$5=$E20,$F20=1),Meilenstein_Markierung,\"\")),\"\")","v":""},{"$f":"IFERROR(IF(LEN(Meilensteine[[#This Row],[Anzahl Tage]])=0,\"\",IF(AND(P$5=$E20,$F20=1),Meilenstein_Markierung,\"\")),\"\")","v":""},{"$f":"IFERROR(IF(LEN(Meilensteine[[#This Row],[Anzahl Tage]])=0,\"\",IF(AND(Q$5=$E20,$F20=1),Meilenstein_Markierung,\"\")),\"\")","v":""},{"$f":"IFERROR(IF(LEN(Meilensteine[[#This Row],[Anzahl Tage]])=0,\"\",IF(AND(R$5=$E20,$F20=1),Meilenstein_Markierung,\"\")),\"\")","v":""},{"$f":"IFERROR(IF(LEN(Meilensteine[[#This Row],[Anzahl Tage]])=0,\"\",IF(AND(S$5=$E20,$F20=1),Meilenstein_Markierung,\"\")),\"\")","v":""},{"$f":"IFERROR(IF(LEN(Meilensteine[[#This Row],[Anzahl Tage]])=0,\"\",IF(AND(T$5=$E20,$F20=1),Meilenstein_Markierung,\"\")),\"\")","v":""},{"$f":"IFERROR(IF(LEN(Meilensteine[[#This Row],[Anzahl Tage]])=0,\"\",IF(AND(U$5=$E20,$F20=1),Meilenstein_Markierung,\"\")),\"\")","v":""},{"$f":"IFERROR(IF(LEN(Meilensteine[[#This Row],[Anzahl Tage]])=0,\"\",IF(AND(V$5=$E20,$F20=1),Meilenstein_Markierung,\"\")),\"\")","v":""},{"$f":"IFERROR(IF(LEN(Meilensteine[[#This Row],[Anzahl Tage]])=0,\"\",IF(AND(W$5=$E20,$F20=1),Meilenstein_Markierung,\"\")),\"\")","v":""},{"$f":"IFERROR(IF(LEN(Meilensteine[[#This Row],[Anzahl Tage]])=0,\"\",IF(AND(X$5=$E20,$F20=1),Meilenstein_Markierung,\"\")),\"\")","v":""},{"$f":"IFERROR(IF(LEN(Meilensteine[[#This Row],[Anzahl Tage]])=0,\"\",IF(AND(Y$5=$E20,$F20=1),Meilenstein_Markierung,\"\")),\"\")","v":""},{"$f":"IFERROR(IF(LEN(Meilensteine[[#This Row],[Anzahl Tage]])=0,\"\",IF(AND(Z$5=$E20,$F20=1),Meilenstein_Markierung,\"\")),\"\")","v":""},{"$f":"IFERROR(IF(LEN(Meilensteine[[#This Row],[Anzahl Tage]])=0,\"\",IF(AND(AA$5=$E20,$F20=1),Meilenstein_Markierung,\"\")),\"\")","v":""},{"$f":"IFERROR(IF(LEN(Meilensteine[[#This Row],[Anzahl Tage]])=0,\"\",IF(AND(AB$5=$E20,$F20=1),Meilenstein_Markierung,\"\")),\"\")","v":""},{"$f":"IFERROR(IF(LEN(Meilensteine[[#This Row],[Anzahl Tage]])=0,\"\",IF(AND(AC$5=$E20,$F20=1),Meilenstein_Markierung,\"\")),\"\")","v":""},{"$f":"IFERROR(IF(LEN(Meilensteine[[#This Row],[Anzahl Tage]])=0,\"\",IF(AND(AD$5=$E20,$F20=1),Meilenstein_Markierung,\"\")),\"\")","v":""},{"$f":"IFERROR(IF(LEN(Meilensteine[[#This Row],[Anzahl Tage]])=0,\"\",IF(AND(AE$5=$E20,$F20=1),Meilenstein_Markierung,\"\")),\"\")","v":""},{"$f":"IFERROR(IF(LEN(Meilensteine[[#This Row],[Anzahl Tage]])=0,\"\",IF(AND(AF$5=$E20,$F20=1),Meilenstein_Markierung,\"\")),\"\")","v":""},{"$f":"IFERROR(IF(LEN(Meilensteine[[#This Row],[Anzahl Tage]])=0,\"\",IF(AND(AG$5=$E20,$F20=1),Meilenstein_Markierung,\"\")),\"\")","v":""},{"$f":"IFERROR(IF(LEN(Meilensteine[[#This Row],[Anzahl Tage]])=0,\"\",IF(AND(AH$5=$E20,$F20=1),Meilenstein_Markierung,\"\")),\"\")","v":""},{"$f":"IFERROR(IF(LEN(Meilensteine[[#This Row],[Anzahl Tage]])=0,\"\",IF(AND(AI$5=$E20,$F20=1),Meilenstein_Markierung,\"\")),\"\")","v":""},{"$f":"IFERROR(IF(LEN(Meilensteine[[#This Row],[Anzahl Tage]])=0,\"\",IF(AND(AJ$5=$E20,$F20=1),Meilenstein_Markierung,\"\")),\"\")","v":""},{"$f":"IFERROR(IF(LEN(Meilensteine[[#This Row],[Anzahl Tage]])=0,\"\",IF(AND(AK$5=$E20,$F20=1),Meilenstein_Markierung,\"\")),\"\")","v":""},{"$f":"IFERROR(IF(LEN(Meilensteine[[#This Row],[Anzahl Tage]])=0,\"\",IF(AND(AL$5=$E20,$F20=1),Meilenstein_Markierung,\"\")),\"\")","v":""},{"$f":"IFERROR(IF(LEN(Meilensteine[[#This Row],[Anzahl Tage]])=0,\"\",IF(AND(AM$5=$E20,$F20=1),Meilenstein_Markierung,\"\")),\"\")","v":""},{"$f":"IFERROR(IF(LEN(Meilensteine[[#This Row],[Anzahl Tage]])=0,\"\",IF(AND(AN$5=$E20,$F20=1),Meilenstein_Markierung,\"\")),\"\")","v":""},{"$f":"IFERROR(IF(LEN(Meilensteine[[#This Row],[Anzahl Tage]])=0,\"\",IF(AND(AO$5=$E20,$F20=1),Meilenstein_Markierung,\"\")),\"\")","v":""},{"$f":"IFERROR(IF(LEN(Meilensteine[[#This Row],[Anzahl Tage]])=0,\"\",IF(AND(AP$5=$E20,$F20=1),Meilenstein_Markierung,\"\")),\"\")","v":""},{"$f":"IFERROR(IF(LEN(Meilensteine[[#This Row],[Anzahl Tage]])=0,\"\",IF(AND(AQ$5=$E20,$F20=1),Meilenstein_Markierung,\"\")),\"\")","v":""},{"$f":"IFERROR(IF(LEN(Meilensteine[[#This Row],[Anzahl Tage]])=0,\"\",IF(AND(AR$5=$E20,$F20=1),Meilenstein_Markierung,\"\")),\"\")","v":""},{"$f":"IFERROR(IF(LEN(Meilensteine[[#This Row],[Anzahl Tage]])=0,\"\",IF(AND(AS$5=$E20,$F20=1),Meilenstein_Markierung,\"\")),\"\")","v":""},{"$f":"IFERROR(IF(LEN(Meilensteine[[#This Row],[Anzahl Tage]])=0,\"\",IF(AND(AT$5=$E20,$F20=1),Meilenstein_Markierung,\"\")),\"\")","v":""},{"$f":"IFERROR(IF(LEN(Meilensteine[[#This Row],[Anzahl Tage]])=0,\"\",IF(AND(AU$5=$E20,$F20=1),Meilenstein_Markierung,\"\")),\"\")","v":""},{"$f":"IFERROR(IF(LEN(Meilensteine[[#This Row],[Anzahl Tage]])=0,\"\",IF(AND(AV$5=$E20,$F20=1),Meilenstein_Markierung,\"\")),\"\")","v":""},{"$f":"IFERROR(IF(LEN(Meilensteine[[#This Row],[Anzahl Tage]])=0,\"\",IF(AND(AW$5=$E20,$F20=1),Meilenstein_Markierung,\"\")),\"\")","v":""},{"$f":"IFERROR(IF(LEN(Meilensteine[[#This Row],[Anzahl Tage]])=0,\"\",IF(AND(AX$5=$E20,$F20=1),Meilenstein_Markierung,\"\")),\"\")","v":""},{"$f":"IFERROR(IF(LEN(Meilensteine[[#This Row],[Anzahl Tage]])=0,\"\",IF(AND(AY$5=$E20,$F20=1),Meilenstein_Markierung,\"\")),\"\")","v":""},{"$f":"IFERROR(IF(LEN(Meilensteine[[#This Row],[Anzahl Tage]])=0,\"\",IF(AND(AZ$5=$E20,$F20=1),Meilenstein_Markierung,\"\")),\"\")","v":""},{"$f":"IFERROR(IF(LEN(Meilensteine[[#This Row],[Anzahl Tage]])=0,\"\",IF(AND(BA$5=$E20,$F20=1),Meilenstein_Markierung,\"\")),\"\")","v":""},{"$f":"IFERROR(IF(LEN(Meilensteine[[#This Row],[Anzahl Tage]])=0,\"\",IF(AND(BB$5=$E20,$F20=1),Meilenstein_Markierung,\"\")),\"\")","v":""},{"$f":"IFERROR(IF(LEN(Meilensteine[[#This Row],[Anzahl Tage]])=0,\"\",IF(AND(BC$5=$E20,$F20=1),Meilenstein_Markierung,\"\")),\"\")","v":""},{"$f":"IFERROR(IF(LEN(Meilensteine[[#This Row],[Anzahl Tage]])=0,\"\",IF(AND(BD$5=$E20,$F20=1),Meilenstein_Markierung,\"\")),\"\")","v":""},{"$f":"IFERROR(IF(LEN(Meilensteine[[#This Row],[Anzahl Tage]])=0,\"\",IF(AND(BE$5=$E20,$F20=1),Meilenstein_Markierung,\"\")),\"\")","v":""},{"$f":"IFERROR(IF(LEN(Meilensteine[[#This Row],[Anzahl Tage]])=0,\"\",IF(AND(BF$5=$E20,$F20=1),Meilenstein_Markierung,\"\")),\"\")","v":""},{"$f":"IFERROR(IF(LEN(Meilensteine[[#This Row],[Anzahl Tage]])=0,\"\",IF(AND(BG$5=$E20,$F20=1),Meilenstein_Markierung,\"\")),\"\")","v":""},{"$f":"IFERROR(IF(LEN(Meilensteine[[#This Row],[Anzahl Tage]])=0,\"\",IF(AND(BH$5=$E20,$F20=1),Meilenstein_Markierung,\"\")),\"\")","v":""},{"$f":"IFERROR(IF(LEN(Meilensteine[[#This Row],[Anzahl Tage]])=0,\"\",IF(AND(BI$5=$E20,$F20=1),Meilenstein_Markierung,\"\")),\"\")","v":""},{"$f":"IFERROR(IF(LEN(Meilensteine[[#This Row],[Anzahl Tage]])=0,\"\",IF(AND(BJ$5=$E20,$F20=1),Meilenstein_Markierung,\"\")),\"\")","v":""},{"$f":"IFERROR(IF(LEN(Meilensteine[[#This Row],[Anzahl Tage]])=0,\"\",IF(AND(BK$5=$E20,$F20=1),Meilenstein_Markierung,\"\")),\"\")","v":""}]
[null,"Aufgabe 1",null,null,{"$f":"TODAY()+15","v":"2018-10-04"},4,null,{"$f":"IFERROR(IF(LEN(Meilensteine[[#This Row],[Anzahl Tage]])=0,\"\",IF(AND(H$5=$E21,$F21=1),Meilenstein_Markierung,\"\")),\"\")","v":""},{"$f":"IFERROR(IF(LEN(Meilensteine[[#This Row],[Anzahl Tage]])=0,\"\",IF(AND(I$5=$E21,$F21=1),Meilenstein_Markierung,\"\")),\"\")","v":""},{"$f":"IFERROR(IF(LEN(Meilensteine[[#This Row],[Anzahl Tage]])=0,\"\",IF(AND(J$5=$E21,$F21=1),Meilenstein_Markierung,\"\")),\"\")","v":""},{"$f":"IFERROR(IF(LEN(Meilensteine[[#This Row],[Anzahl Tage]])=0,\"\",IF(AND(K$5=$E21,$F21=1),Meilenstein_Markierung,\"\")),\"\")","v":""},{"$f":"IFERROR(IF(LEN(Meilensteine[[#This Row],[Anzahl Tage]])=0,\"\",IF(AND(L$5=$E21,$F21=1),Meilenstein_Markierung,\"\")),\"\")","v":""},{"$f":"IFERROR(IF(LEN(Meilensteine[[#This Row],[Anzahl Tage]])=0,\"\",IF(AND(M$5=$E21,$F21=1),Meilenstein_Markierung,\"\")),\"\")","v":""},{"$f":"IFERROR(IF(LEN(Meilensteine[[#This Row],[Anzahl Tage]])=0,\"\",IF(AND(N$5=$E21,$F21=1),Meilenstein_Markierung,\"\")),\"\")","v":""},{"$f":"IFERROR(IF(LEN(Meilensteine[[#This Row],[Anzahl Tage]])=0,\"\",IF(AND(O$5=$E21,$F21=1),Meilenstein_Markierung,\"\")),\"\")","v":""},{"$f":"IFERROR(IF(LEN(Meilensteine[[#This Row],[Anzahl Tage]])=0,\"\",IF(AND(P$5=$E21,$F21=1),Meilenstein_Markierung,\"\")),\"\")","v":""},{"$f":"IFERROR(IF(LEN(Meilensteine[[#This Row],[Anzahl Tage]])=0,\"\",IF(AND(Q$5=$E21,$F21=1),Meilenstein_Markierung,\"\")),\"\")","v":""},{"$f":"IFERROR(IF(LEN(Meilensteine[[#This Row],[Anzahl Tage]])=0,\"\",IF(AND(R$5=$E21,$F21=1),Meilenstein_Markierung,\"\")),\"\")","v":""},{"$f":"IFERROR(IF(LEN(Meilensteine[[#This Row],[Anzahl Tage]])=0,\"\",IF(AND(S$5=$E21,$F21=1),Meilenstein_Markierung,\"\")),\"\")","v":""},{"$f":"IFERROR(IF(LEN(Meilensteine[[#This Row],[Anzahl Tage]])=0,\"\",IF(AND(T$5=$E21,$F21=1),Meilenstein_Markierung,\"\")),\"\")","v":""},{"$f":"IFERROR(IF(LEN(Meilensteine[[#This Row],[Anzahl Tage]])=0,\"\",IF(AND(U$5=$E21,$F21=1),Meilenstein_Markierung,\"\")),\"\")","v":""},{"$f":"IFERROR(IF(LEN(Meilensteine[[#This Row],[Anzahl Tage]])=0,\"\",IF(AND(V$5=$E21,$F21=1),Meilenstein_Markierung,\"\")),\"\")","v":""},{"$f":"IFERROR(IF(LEN(Meilensteine[[#This Row],[Anzahl Tage]])=0,\"\",IF(AND(W$5=$E21,$F21=1),Meilenstein_Markierung,\"\")),\"\")","v":""},{"$f":"IFERROR(IF(LEN(Meilensteine[[#This Row],[Anzahl Tage]])=0,\"\",IF(AND(X$5=$E21,$F21=1),Meilenstein_Markierung,\"\")),\"\")","v":""},{"$f":"IFERROR(IF(LEN(Meilensteine[[#This Row],[Anzahl Tage]])=0,\"\",IF(AND(Y$5=$E21,$F21=1),Meilenstein_Markierung,\"\")),\"\")","v":""},{"$f":"IFERROR(IF(LEN(Meilensteine[[#This Row],[Anzahl Tage]])=0,\"\",IF(AND(Z$5=$E21,$F21=1),Meilenstein_Markierung,\"\")),\"\")","v":""},{"$f":"IFERROR(IF(LEN(Meilensteine[[#This Row],[Anzahl Tage]])=0,\"\",IF(AND(AA$5=$E21,$F21=1),Meilenstein_Markierung,\"\")),\"\")","v":""},{"$f":"IFERROR(IF(LEN(Meilensteine[[#This Row],[Anzahl Tage]])=0,\"\",IF(AND(AB$5=$E21,$F21=1),Meilenstein_Markierung,\"\")),\"\")","v":""},{"$f":"IFERROR(IF(LEN(Meilensteine[[#This Row],[Anzahl Tage]])=0,\"\",IF(AND(AC$5=$E21,$F21=1),Meilenstein_Markierung,\"\")),\"\")","v":""},{"$f":"IFERROR(IF(LEN(Meilensteine[[#This Row],[Anzahl Tage]])=0,\"\",IF(AND(AD$5=$E21,$F21=1),Meilenstein_Markierung,\"\")),\"\")","v":""},{"$f":"IFERROR(IF(LEN(Meilensteine[[#This Row],[Anzahl Tage]])=0,\"\",IF(AND(AE$5=$E21,$F21=1),Meilenstein_Markierung,\"\")),\"\")","v":""},{"$f":"IFERROR(IF(LEN(Meilensteine[[#This Row],[Anzahl Tage]])=0,\"\",IF(AND(AF$5=$E21,$F21=1),Meilenstein_Markierung,\"\")),\"\")","v":""},{"$f":"IFERROR(IF(LEN(Meilensteine[[#This Row],[Anzahl Tage]])=0,\"\",IF(AND(AG$5=$E21,$F21=1),Meilenstein_Markierung,\"\")),\"\")","v":""},{"$f":"IFERROR(IF(LEN(Meilensteine[[#This Row],[Anzahl Tage]])=0,\"\",IF(AND(AH$5=$E21,$F21=1),Meilenstein_Markierung,\"\")),\"\")","v":""},{"$f":"IFERROR(IF(LEN(Meilensteine[[#This Row],[Anzahl Tage]])=0,\"\",IF(AND(AI$5=$E21,$F21=1),Meilenstein_Markierung,\"\")),\"\")","v":""},{"$f":"IFERROR(IF(LEN(Meilensteine[[#This Row],[Anzahl Tage]])=0,\"\",IF(AND(AJ$5=$E21,$F21=1),Meilenstein_Markierung,\"\")),\"\")","v":""},{"$f":"IFERROR(IF(LEN(Meilensteine[[#This Row],[Anzahl Tage]])=0,\"\",IF(AND(AK$5=$E21,$F21=1),Meilenstein_Markierung,\"\")),\"\")","v":""},{"$f":"IFERROR(IF(LEN(Meilensteine[[#This Row],[Anzahl Tage]])=0,\"\",IF(AND(AL$5=$E21,$F21=1),Meilenstein_Markierung,\"\")),\"\")","v":""},{"$f":"IFERROR(IF(LEN(Meilensteine[[#This Row],[Anzahl Tage]])=0,\"\",IF(AND(AM$5=$E21,$F21=1),Meilenstein_Markierung,\"\")),\"\")","v":""},{"$f":"IFERROR(IF(LEN(Meilensteine[[#This Row],[Anzahl Tage]])=0,\"\",IF(AND(AN$5=$E21,$F21=1),Meilenstein_Markierung,\"\")),\"\")","v":""},{"$f":"IFERROR(IF(LEN(Meilensteine[[#This Row],[Anzahl Tage]])=0,\"\",IF(AND(AO$5=$E21,$F21=1),Meilenstein_Markierung,\"\")),\"\")","v":""},{"$f":"IFERROR(IF(LEN(Meilensteine[[#This Row],[Anzahl Tage]])=0,\"\",IF(AND(AP$5=$E21,$F21=1),Meilenstein_Markierung,\"\")),\"\")","v":""},{"$f":"IFERROR(IF(LEN(Meilensteine[[#This Row],[Anzahl Tage]])=0,\"\",IF(AND(AQ$5=$E21,$F21=1),Meilenstein_Markierung,\"\")),\"\")","v":""},{"$f":"IFERROR(IF(LEN(Meilensteine[[#This Row],[Anzahl Tage]])=0,\"\",IF(AND(AR$5=$E21,$F21=1),Meilenstein_Markierung,\"\")),\"\")","v":""},{"$f":"IFERROR(IF(LEN(Meilensteine[[#This Row],[Anzahl Tage]])=0,\"\",IF(AND(AS$5=$E21,$F21=1),Meilenstein_Markierung,\"\")),\"\")","v":""},{"$f":"IFERROR(IF(LEN(Meilensteine[[#This Row],[Anzahl Tage]])=0,\"\",IF(AND(AT$5=$E21,$F21=1),Meilenstein_Markierung,\"\")),\"\")","v":""},{"$f":"IFERROR(IF(LEN(Meilensteine[[#This Row],[Anzahl Tage]])=0,\"\",IF(AND(AU$5=$E21,$F21=1),Meilenstein_Markierung,\"\")),\"\")","v":""},{"$f":"IFERROR(IF(LEN(Meilensteine[[#This Row],[Anzahl Tage]])=0,\"\",IF(AND(AV$5=$E21,$F21=1),Meilenstein_Markierung,\"\")),\"\")","v":""},{"$f":"IFERROR(IF(LEN(Meilensteine[[#This Row],[Anzahl Tage]])=0,\"\",IF(AND(AW$5=$E21,$F21=1),Meilenstein_Markierung,\"\")),\"\")","v":""},{"$f":"IFERROR(IF(LEN(Meilensteine[[#This Row],[Anzahl Tage]])=0,\"\",IF(AND(AX$5=$E21,$F21=1),Meilenstein_Markierung,\"\")),\"\")","v":""},{"$f":"IFERROR(IF(LEN(Meilensteine[[#This Row],[Anzahl Tage]])=0,\"\",IF(AND(AY$5=$E21,$F21=1),Meilenstein_Markierung,\"\")),\"\")","v":""},{"$f":"IFERROR(IF(LEN(Meilensteine[[#This Row],[Anzahl Tage]])=0,\"\",IF(AND(AZ$5=$E21,$F21=1),Meilenstein_Markierung,\"\")),\"\")","v":""},{"$f":"IFERROR(IF(LEN(Meilensteine[[#This Row],[Anzahl Tage]])=0,\"\",IF(AND(BA$5=$E21,$F21=1),Meilenstein_Markierung,\"\")),\"\")","v":""},{"$f":"IFERROR(IF(LEN(Meilensteine[[#This Row],[Anzahl Tage]])=0,\"\",IF(AND(BB$5=$E21,$F21=1),Meilenstein_Markierung,\"\")),\"\")","v":""},{"$f":"IFERROR(IF(LEN(Meilensteine[[#This Row],[Anzahl Tage]])=0,\"\",IF(AND(BC$5=$E21,$F21=1),Meilenstein_Markierung,\"\")),\"\")","v":""},{"$f":"IFERROR(IF(LEN(Meilensteine[[#This Row],[Anzahl Tage]])=0,\"\",IF(AND(BD$5=$E21,$F21=1),Meilenstein_Markierung,\"\")),\"\")","v":""},{"$f":"IFERROR(IF(LEN(Meilensteine[[#This Row],[Anzahl Tage]])=0,\"\",IF(AND(BE$5=$E21,$F21=1),Meilenstein_Markierung,\"\")),\"\")","v":""},{"$f":"IFERROR(IF(LEN(Meilensteine[[#This Row],[Anzahl Tage]])=0,\"\",IF(AND(BF$5=$E21,$F21=1),Meilenstein_Markierung,\"\")),\"\")","v":""},{"$f":"IFERROR(IF(LEN(Meilensteine[[#This Row],[Anzahl Tage]])=0,\"\",IF(AND(BG$5=$E21,$F21=1),Meilenstein_Markierung,\"\")),\"\")","v":""},{"$f":"IFERROR(IF(LEN(Meilensteine[[#This Row],[Anzahl Tage]])=0,\"\",IF(AND(BH$5=$E21,$F21=1),Meilenstein_Markierung,\"\")),\"\")","v":""},{"$f":"IFERROR(IF(LEN(Meilensteine[[#This Row],[Anzahl Tage]])=0,\"\",IF(AND(BI$5=$E21,$F21=1),Meilenstein_Markierung,\"\")),\"\")","v":""},{"$f":"IFERROR(IF(LEN(Meilensteine[[#This Row],[Anzahl Tage]])=0,\"\",IF(AND(BJ$5=$E21,$F21=1),Meilenstein_Markierung,\"\")),\"\")","v":""},{"$f":"IFERROR(IF(LEN(Meilensteine[[#This Row],[Anzahl Tage]])=0,\"\",IF(AND(BK$5=$E21,$F21=1),Meilenstein_Markierung,\"\")),\"\")","v":""}]
[null,"Aufgabe 2",null,null,{"$f":"TODAY()+19","v":"2018-10-08"},14,null,{"$f":"IFERROR(IF(LEN(Meilensteine[[#This Row],[Anzahl Tage]])=0,\"\",IF(AND(H$5=$E22,$F22=1),Meilenstein_Markierung,\"\")),\"\")","v":""},{"$f":"IFERROR(IF(LEN(Meilensteine[[#This Row],[Anzahl Tage]])=0,\"\",IF(AND(I$5=$E22,$F22=1),Meilenstein_Markierung,\"\")),\"\")","v":""},{"$f":"IFERROR(IF(LEN(Meilensteine[[#This Row],[Anzahl Tage]])=0,\"\",IF(AND(J$5=$E22,$F22=1),Meilenstein_Markierung,\"\")),\"\")","v":""},{"$f":"IFERROR(IF(LEN(Meilensteine[[#This Row],[Anzahl Tage]])=0,\"\",IF(AND(K$5=$E22,$F22=1),Meilenstein_Markierung,\"\")),\"\")","v":""},{"$f":"IFERROR(IF(LEN(Meilensteine[[#This Row],[Anzahl Tage]])=0,\"\",IF(AND(L$5=$E22,$F22=1),Meilenstein_Markierung,\"\")),\"\")","v":""},{"$f":"IFERROR(IF(LEN(Meilensteine[[#This Row],[Anzahl Tage]])=0,\"\",IF(AND(M$5=$E22,$F22=1),Meilenstein_Markierung,\"\")),\"\")","v":""},{"$f":"IFERROR(IF(LEN(Meilensteine[[#This Row],[Anzahl Tage]])=0,\"\",IF(AND(N$5=$E22,$F22=1),Meilenstein_Markierung,\"\")),\"\")","v":""},{"$f":"IFERROR(IF(LEN(Meilensteine[[#This Row],[Anzahl Tage]])=0,\"\",IF(AND(O$5=$E22,$F22=1),Meilenstein_Markierung,\"\")),\"\")","v":""},{"$f":"IFERROR(IF(LEN(Meilensteine[[#This Row],[Anzahl Tage]])=0,\"\",IF(AND(P$5=$E22,$F22=1),Meilenstein_Markierung,\"\")),\"\")","v":""},{"$f":"IFERROR(IF(LEN(Meilensteine[[#This Row],[Anzahl Tage]])=0,\"\",IF(AND(Q$5=$E22,$F22=1),Meilenstein_Markierung,\"\")),\"\")","v":""},{"$f":"IFERROR(IF(LEN(Meilensteine[[#This Row],[Anzahl Tage]])=0,\"\",IF(AND(R$5=$E22,$F22=1),Meilenstein_Markierung,\"\")),\"\")","v":""},{"$f":"IFERROR(IF(LEN(Meilensteine[[#This Row],[Anzahl Tage]])=0,\"\",IF(AND(S$5=$E22,$F22=1),Meilenstein_Markierung,\"\")),\"\")","v":""},{"$f":"IFERROR(IF(LEN(Meilensteine[[#This Row],[Anzahl Tage]])=0,\"\",IF(AND(T$5=$E22,$F22=1),Meilenstein_Markierung,\"\")),\"\")","v":""},{"$f":"IFERROR(IF(LEN(Meilensteine[[#This Row],[Anzahl Tage]])=0,\"\",IF(AND(U$5=$E22,$F22=1),Meilenstein_Markierung,\"\")),\"\")","v":""},{"$f":"IFERROR(IF(LEN(Meilensteine[[#This Row],[Anzahl Tage]])=0,\"\",IF(AND(V$5=$E22,$F22=1),Meilenstein_Markierung,\"\")),\"\")","v":""},{"$f":"IFERROR(IF(LEN(Meilensteine[[#This Row],[Anzahl Tage]])=0,\"\",IF(AND(W$5=$E22,$F22=1),Meilenstein_Markierung,\"\")),\"\")","v":""},{"$f":"IFERROR(IF(LEN(Meilensteine[[#This Row],[Anzahl Tage]])=0,\"\",IF(AND(X$5=$E22,$F22=1),Meilenstein_Markierung,\"\")),\"\")","v":""},{"$f":"IFERROR(IF(LEN(Meilensteine[[#This Row],[Anzahl Tage]])=0,\"\",IF(AND(Y$5=$E22,$F22=1),Meilenstein_Markierung,\"\")),\"\")","v":""},{"$f":"IFERROR(IF(LEN(Meilensteine[[#This Row],[Anzahl Tage]])=0,\"\",IF(AND(Z$5=$E22,$F22=1),Meilenstein_Markierung,\"\")),\"\")","v":""},{"$f":"IFERROR(IF(LEN(Meilensteine[[#This Row],[Anzahl Tage]])=0,\"\",IF(AND(AA$5=$E22,$F22=1),Meilenstein_Markierung,\"\")),\"\")","v":""},{"$f":"IFERROR(IF(LEN(Meilensteine[[#This Row],[Anzahl Tage]])=0,\"\",IF(AND(AB$5=$E22,$F22=1),Meilenstein_Markierung,\"\")),\"\")","v":""},{"$f":"IFERROR(IF(LEN(Meilensteine[[#This Row],[Anzahl Tage]])=0,\"\",IF(AND(AC$5=$E22,$F22=1),Meilenstein_Markierung,\"\")),\"\")","v":""},{"$f":"IFERROR(IF(LEN(Meilensteine[[#This Row],[Anzahl Tage]])=0,\"\",IF(AND(AD$5=$E22,$F22=1),Meilenstein_Markierung,\"\")),\"\")","v":""},{"$f":"IFERROR(IF(LEN(Meilensteine[[#This Row],[Anzahl Tage]])=0,\"\",IF(AND(AE$5=$E22,$F22=1),Meilenstein_Markierung,\"\")),\"\")","v":""},{"$f":"IFERROR(IF(LEN(Meilensteine[[#This Row],[Anzahl Tage]])=0,\"\",IF(AND(AF$5=$E22,$F22=1),Meilenstein_Markierung,\"\")),\"\")","v":""},{"$f":"IFERROR(IF(LEN(Meilensteine[[#This Row],[Anzahl Tage]])=0,\"\",IF(AND(AG$5=$E22,$F22=1),Meilenstein_Markierung,\"\")),\"\")","v":""},{"$f":"IFERROR(IF(LEN(Meilensteine[[#This Row],[Anzahl Tage]])=0,\"\",IF(AND(AH$5=$E22,$F22=1),Meilenstein_Markierung,\"\")),\"\")","v":""},{"$f":"IFERROR(IF(LEN(Meilensteine[[#This Row],[Anzahl Tage]])=0,\"\",IF(AND(AI$5=$E22,$F22=1),Meilenstein_Markierung,\"\")),\"\")","v":""},{"$f":"IFERROR(IF(LEN(Meilensteine[[#This Row],[Anzahl Tage]])=0,\"\",IF(AND(AJ$5=$E22,$F22=1),Meilenstein_Markierung,\"\")),\"\")","v":""},{"$f":"IFERROR(IF(LEN(Meilensteine[[#This Row],[Anzahl Tage]])=0,\"\",IF(AND(AK$5=$E22,$F22=1),Meilenstein_Markierung,\"\")),\"\")","v":""},{"$f":"IFERROR(IF(LEN(Meilensteine[[#This Row],[Anzahl Tage]])=0,\"\",IF(AND(AL$5=$E22,$F22=1),Meilenstein_Markierung,\"\")),\"\")","v":""},{"$f":"IFERROR(IF(LEN(Meilensteine[[#This Row],[Anzahl Tage]])=0,\"\",IF(AND(AM$5=$E22,$F22=1),Meilenstein_Markierung,\"\")),\"\")","v":""},{"$f":"IFERROR(IF(LEN(Meilensteine[[#This Row],[Anzahl Tage]])=0,\"\",IF(AND(AN$5=$E22,$F22=1),Meilenstein_Markierung,\"\")),\"\")","v":""},{"$f":"IFERROR(IF(LEN(Meilensteine[[#This Row],[Anzahl Tage]])=0,\"\",IF(AND(AO$5=$E22,$F22=1),Meilenstein_Markierung,\"\")),\"\")","v":""},{"$f":"IFERROR(IF(LEN(Meilensteine[[#This Row],[Anzahl Tage]])=0,\"\",IF(AND(AP$5=$E22,$F22=1),Meilenstein_Markierung,\"\")),\"\")","v":""},{"$f":"IFERROR(IF(LEN(Meilensteine[[#This Row],[Anzahl Tage]])=0,\"\",IF(AND(AQ$5=$E22,$F22=1),Meilenstein_Markierung,\"\")),\"\")","v":""},{"$f":"IFERROR(IF(LEN(Meilensteine[[#This Row],[Anzahl Tage]])=0,\"\",IF(AND(AR$5=$E22,$F22=1),Meilenstein_Markierung,\"\")),\"\")","v":""},{"$f":"IFERROR(IF(LEN(Meilensteine[[#This Row],[Anzahl Tage]])=0,\"\",IF(AND(AS$5=$E22,$F22=1),Meilenstein_Markierung,\"\")),\"\")","v":""},{"$f":"IFERROR(IF(LEN(Meilensteine[[#This Row],[Anzahl Tage]])=0,\"\",IF(AND(AT$5=$E22,$F22=1),Meilenstein_Markierung,\"\")),\"\")","v":""},{"$f":"IFERROR(IF(LEN(Meilensteine[[#This Row],[Anzahl Tage]])=0,\"\",IF(AND(AU$5=$E22,$F22=1),Meilenstein_Markierung,\"\")),\"\")","v":""},{"$f":"IFERROR(IF(LEN(Meilensteine[[#This Row],[Anzahl Tage]])=0,\"\",IF(AND(AV$5=$E22,$F22=1),Meilenstein_Markierung,\"\")),\"\")","v":""},{"$f":"IFERROR(IF(LEN(Meilensteine[[#This Row],[Anzahl Tage]])=0,\"\",IF(AND(AW$5=$E22,$F22=1),Meilenstein_Markierung,\"\")),\"\")","v":""},{"$f":"IFERROR(IF(LEN(Meilensteine[[#This Row],[Anzahl Tage]])=0,\"\",IF(AND(AX$5=$E22,$F22=1),Meilenstein_Markierung,\"\")),\"\")","v":""},{"$f":"IFERROR(IF(LEN(Meilensteine[[#This Row],[Anzahl Tage]])=0,\"\",IF(AND(AY$5=$E22,$F22=1),Meilenstein_Markierung,\"\")),\"\")","v":""},{"$f":"IFERROR(IF(LEN(Meilensteine[[#This Row],[Anzahl Tage]])=0,\"\",IF(AND(AZ$5=$E22,$F22=1),Meilenstein_Markierung,\"\")),\"\")","v":""},{"$f":"IFERROR(IF(LEN(Meilensteine[[#This Row],[Anzahl Tage]])=0,\"\",IF(AND(BA$5=$E22,$F22=1),Meilenstein_Markierung,\"\")),\"\")","v":""},{"$f":"IFERROR(IF(LEN(Meilensteine[[#This Row],[Anzahl Tage]])=0,\"\",IF(AND(BB$5=$E22,$F22=1),Meilenstein_Markierung,\"\")),\"\")","v":""},{"$f":"IFERROR(IF(LEN(Meilensteine[[#This Row],[Anzahl Tage]])=0,\"\",IF(AND(BC$5=$E22,$F22=1),Meilenstein_Markierung,\"\")),\"\")","v":""},{"$f":"IFERROR(IF(LEN(Meilensteine[[#This Row],[Anzahl Tage]])=0,\"\",IF(AND(BD$5=$E22,$F22=1),Meilenstein_Markierung,\"\")),\"\")","v":""},{"$f":"IFERROR(IF(LEN(Meilensteine[[#This Row],[Anzahl Tage]])=0,\"\",IF(AND(BE$5=$E22,$F22=1),Meilenstein_Markierung,\"\")),\"\")","v":""},{"$f":"IFERROR(IF(LEN(Meilensteine[[#This Row],[Anzahl Tage]])=0,\"\",IF(AND(BF$5=$E22,$F22=1),Meilenstein_Markierung,\"\")),\"\")","v":""},{"$f":"IFERROR(IF(LEN(Meilensteine[[#This Row],[Anzahl Tage]])=0,\"\",IF(AND(BG$5=$E22,$F22=1),Meilenstein_Markierung,\"\")),\"\")","v":""},{"$f":"IFERROR(IF(LEN(Meilensteine[[#This Row],[Anzahl Tage]])=0,\"\",IF(AND(BH$5=$E22,$F22=1),Meilenstein_Markierung,\"\")),\"\")","v":""},{"$f":"IFERROR(IF(LEN(Meilensteine[[#This Row],[Anzahl Tage]])=0,\"\",IF(AND(BI$5=$E22,$F22=1),Meilenstein_Markierung,\"\")),\"\")","v":""},{"$f":"IFERROR(IF(LEN(Meilensteine[[#This Row],[Anzahl Tage]])=0,\"\",IF(AND(BJ$5=$E22,$F22=1),Meilenstein_Markierung,\"\")),\"\")","v":""},{"$f":"IFERROR(IF(LEN(Meilensteine[[#This Row],[Anzahl Tage]])=0,\"\",IF(AND(BK$5=$E22,$F22=1),Meilenstein_Markierung,\"\")),\"\")","v":""}]
[null,"Aufgabe 3",null,null,{"$f":"TODAY()+35","v":"2018-10-24"},6,null,{"$f":"IFERROR(IF(LEN(Meilensteine[[#This Row],[Anzahl Tage]])=0,\"\",IF(AND(H$5=$E23,$F23=1),Meilenstein_Markierung,\"\")),\"\")","v":""},{"$f":"IFERROR(IF(LEN(Meilensteine[[#This Row],[Anzahl Tage]])=0,\"\",IF(AND(I$5=$E23,$F23=1),Meilenstein_Markierung,\"\")),\"\")","v":""},{"$f":"IFERROR(IF(LEN(Meilensteine[[#This Row],[Anzahl Tage]])=0,\"\",IF(AND(J$5=$E23,$F23=1),Meilenstein_Markierung,\"\")),\"\")","v":""},{"$f":"IFERROR(IF(LEN(Meilensteine[[#This Row],[Anzahl Tage]])=0,\"\",IF(AND(K$5=$E23,$F23=1),Meilenstein_Markierung,\"\")),\"\")","v":""},{"$f":"IFERROR(IF(LEN(Meilensteine[[#This Row],[Anzahl Tage]])=0,\"\",IF(AND(L$5=$E23,$F23=1),Meilenstein_Markierung,\"\")),\"\")","v":""},{"$f":"IFERROR(IF(LEN(Meilensteine[[#This Row],[Anzahl Tage]])=0,\"\",IF(AND(M$5=$E23,$F23=1),Meilenstein_Markierung,\"\")),\"\")","v":""},{"$f":"IFERROR(IF(LEN(Meilensteine[[#This Row],[Anzahl Tage]])=0,\"\",IF(AND(N$5=$E23,$F23=1),Meilenstein_Markierung,\"\")),\"\")","v":""},{"$f":"IFERROR(IF(LEN(Meilensteine[[#This Row],[Anzahl Tage]])=0,\"\",IF(AND(O$5=$E23,$F23=1),Meilenstein_Markierung,\"\")),\"\")","v":""},{"$f":"IFERROR(IF(LEN(Meilensteine[[#This Row],[Anzahl Tage]])=0,\"\",IF(AND(P$5=$E23,$F23=1),Meilenstein_Markierung,\"\")),\"\")","v":""},{"$f":"IFERROR(IF(LEN(Meilensteine[[#This Row],[Anzahl Tage]])=0,\"\",IF(AND(Q$5=$E23,$F23=1),Meilenstein_Markierung,\"\")),\"\")","v":""},{"$f":"IFERROR(IF(LEN(Meilensteine[[#This Row],[Anzahl Tage]])=0,\"\",IF(AND(R$5=$E23,$F23=1),Meilenstein_Markierung,\"\")),\"\")","v":""},{"$f":"IFERROR(IF(LEN(Meilensteine[[#This Row],[Anzahl Tage]])=0,\"\",IF(AND(S$5=$E23,$F23=1),Meilenstein_Markierung,\"\")),\"\")","v":""},{"$f":"IFERROR(IF(LEN(Meilensteine[[#This Row],[Anzahl Tage]])=0,\"\",IF(AND(T$5=$E23,$F23=1),Meilenstein_Markierung,\"\")),\"\")","v":""},{"$f":"IFERROR(IF(LEN(Meilensteine[[#This Row],[Anzahl Tage]])=0,\"\",IF(AND(U$5=$E23,$F23=1),Meilenstein_Markierung,\"\")),\"\")","v":""},{"$f":"IFERROR(IF(LEN(Meilensteine[[#This Row],[Anzahl Tage]])=0,\"\",IF(AND(V$5=$E23,$F23=1),Meilenstein_Markierung,\"\")),\"\")","v":""},{"$f":"IFERROR(IF(LEN(Meilensteine[[#This Row],[Anzahl Tage]])=0,\"\",IF(AND(W$5=$E23,$F23=1),Meilenstein_Markierung,\"\")),\"\")","v":""},{"$f":"IFERROR(IF(LEN(Meilensteine[[#This Row],[Anzahl Tage]])=0,\"\",IF(AND(X$5=$E23,$F23=1),Meilenstein_Markierung,\"\")),\"\")","v":""},{"$f":"IFERROR(IF(LEN(Meilensteine[[#This Row],[Anzahl Tage]])=0,\"\",IF(AND(Y$5=$E23,$F23=1),Meilenstein_Markierung,\"\")),\"\")","v":""},{"$f":"IFERROR(IF(LEN(Meilensteine[[#This Row],[Anzahl Tage]])=0,\"\",IF(AND(Z$5=$E23,$F23=1),Meilenstein_Markierung,\"\")),\"\")","v":""},{"$f":"IFERROR(IF(LEN(Meilensteine[[#This Row],[Anzahl Tage]])=0,\"\",IF(AND(AA$5=$E23,$F23=1),Meilenstein_Markierung,\"\")),\"\")","v":""},{"$f":"IFERROR(IF(LEN(Meilensteine[[#This Row],[Anzahl Tage]])=0,\"\",IF(AND(AB$5=$E23,$F23=1),Meilenstein_Markierung,\"\")),\"\")","v":""},{"$f":"IFERROR(IF(LEN(Meilensteine[[#This Row],[Anzahl Tage]])=0,\"\",IF(AND(AC$5=$E23,$F23=1),Meilenstein_Markierung,\"\")),\"\")","v":""},{"$f":"IFERROR(IF(LEN(Meilensteine[[#This Row],[Anzahl Tage]])=0,\"\",IF(AND(AD$5=$E23,$F23=1),Meilenstein_Markierung,\"\")),\"\")","v":""},{"$f":"IFERROR(IF(LEN(Meilensteine[[#This Row],[Anzahl Tage]])=0,\"\",IF(AND(AE$5=$E23,$F23=1),Meilenstein_Markierung,\"\")),\"\")","v":""},{"$f":"IFERROR(IF(LEN(Meilensteine[[#This Row],[Anzahl Tage]])=0,\"\",IF(AND(AF$5=$E23,$F23=1),Meilenstein_Markierung,\"\")),\"\")","v":""},{"$f":"IFERROR(IF(LEN(Meilensteine[[#This Row],[Anzahl Tage]])=0,\"\",IF(AND(AG$5=$E23,$F23=1),Meilenstein_Markierung,\"\")),\"\")","v":""},{"$f":"IFERROR(IF(LEN(Meilensteine[[#This Row],[Anzahl Tage]])=0,\"\",IF(AND(AH$5=$E23,$F23=1),Meilenstein_Markierung,\"\")),\"\")","v":""},{"$f":"IFERROR(IF(LEN(Meilensteine[[#This Row],[Anzahl Tage]])=0,\"\",IF(AND(AI$5=$E23,$F23=1),Meilenstein_Markierung,\"\")),\"\")","v":""},{"$f":"IFERROR(IF(LEN(Meilensteine[[#This Row],[Anzahl Tage]])=0,\"\",IF(AND(AJ$5=$E23,$F23=1),Meilenstein_Markierung,\"\")),\"\")","v":""},{"$f":"IFERROR(IF(LEN(Meilensteine[[#This Row],[Anzahl Tage]])=0,\"\",IF(AND(AK$5=$E23,$F23=1),Meilenstein_Markierung,\"\")),\"\")","v":""},{"$f":"IFERROR(IF(LEN(Meilensteine[[#This Row],[Anzahl Tage]])=0,\"\",IF(AND(AL$5=$E23,$F23=1),Meilenstein_Markierung,\"\")),\"\")","v":""},{"$f":"IFERROR(IF(LEN(Meilensteine[[#This Row],[Anzahl Tage]])=0,\"\",IF(AND(AM$5=$E23,$F23=1),Meilenstein_Markierung,\"\")),\"\")","v":""},{"$f":"IFERROR(IF(LEN(Meilensteine[[#This Row],[Anzahl Tage]])=0,\"\",IF(AND(AN$5=$E23,$F23=1),Meilenstein_Markierung,\"\")),\"\")","v":""},{"$f":"IFERROR(IF(LEN(Meilensteine[[#This Row],[Anzahl Tage]])=0,\"\",IF(AND(AO$5=$E23,$F23=1),Meilenstein_Markierung,\"\")),\"\")","v":""},{"$f":"IFERROR(IF(LEN(Meilensteine[[#This Row],[Anzahl Tage]])=0,\"\",IF(AND(AP$5=$E23,$F23=1),Meilenstein_Markierung,\"\")),\"\")","v":""},{"$f":"IFERROR(IF(LEN(Meilensteine[[#This Row],[Anzahl Tage]])=0,\"\",IF(AND(AQ$5=$E23,$F23=1),Meilenstein_Markierung,\"\")),\"\")","v":""},{"$f":"IFERROR(IF(LEN(Meilensteine[[#This Row],[Anzahl Tage]])=0,\"\",IF(AND(AR$5=$E23,$F23=1),Meilenstein_Markierung,\"\")),\"\")","v":""},{"$f":"IFERROR(IF(LEN(Meilensteine[[#This Row],[Anzahl Tage]])=0,\"\",IF(AND(AS$5=$E23,$F23=1),Meilenstein_Markierung,\"\")),\"\")","v":""},{"$f":"IFERROR(IF(LEN(Meilensteine[[#This Row],[Anzahl Tage]])=0,\"\",IF(AND(AT$5=$E23,$F23=1),Meilenstein_Markierung,\"\")),\"\")","v":""},{"$f":"IFERROR(IF(LEN(Meilensteine[[#This Row],[Anzahl Tage]])=0,\"\",IF(AND(AU$5=$E23,$F23=1),Meilenstein_Markierung,\"\")),\"\")","v":""},{"$f":"IFERROR(IF(LEN(Meilensteine[[#This Row],[Anzahl Tage]])=0,\"\",IF(AND(AV$5=$E23,$F23=1),Meilenstein_Markierung,\"\")),\"\")","v":""},{"$f":"IFERROR(IF(LEN(Meilensteine[[#This Row],[Anzahl Tage]])=0,\"\",IF(AND(AW$5=$E23,$F23=1),Meilenstein_Markierung,\"\")),\"\")","v":""},{"$f":"IFERROR(IF(LEN(Meilensteine[[#This Row],[Anzahl Tage]])=0,\"\",IF(AND(AX$5=$E23,$F23=1),Meilenstein_Markierung,\"\")),\"\")","v":""},{"$f":"IFERROR(IF(LEN(Meilensteine[[#This Row],[Anzahl Tage]])=0,\"\",IF(AND(AY$5=$E23,$F23=1),Meilenstein_Markierung,\"\")),\"\")","v":""},{"$f":"IFERROR(IF(LEN(Meilensteine[[#This Row],[Anzahl Tage]])=0,\"\",IF(AND(AZ$5=$E23,$F23=1),Meilenstein_Markierung,\"\")),\"\")","v":""},{"$f":"IFERROR(IF(LEN(Meilensteine[[#This Row],[Anzahl Tage]])=0,\"\",IF(AND(BA$5=$E23,$F23=1),Meilenstein_Markierung,\"\")),\"\")","v":""},{"$f":"IFERROR(IF(LEN(Meilensteine[[#This Row],[Anzahl Tage]])=0,\"\",IF(AND(BB$5=$E23,$F23=1),Meilenstein_Markierung,\"\")),\"\")","v":""},{"$f":"IFERROR(IF(LEN(Meilensteine[[#This Row],[Anzahl Tage]])=0,\"\",IF(AND(BC$5=$E23,$F23=1),Meilenstein_Markierung,\"\")),\"\")","v":""},{"$f":"IFERROR(IF(LEN(Meilensteine[[#This Row],[Anzahl Tage]])=0,\"\",IF(AND(BD$5=$E23,$F23=1),Meilenstein_Markierung,\"\")),\"\")","v":""},{"$f":"IFERROR(IF(LEN(Meilensteine[[#This Row],[Anzahl Tage]])=0,\"\",IF(AND(BE$5=$E23,$F23=1),Meilenstein_Markierung,\"\")),\"\")","v":""},{"$f":"IFERROR(IF(LEN(Meilensteine[[#This Row],[Anzahl Tage]])=0,\"\",IF(AND(BF$5=$E23,$F23=1),Meilenstein_Markierung,\"\")),\"\")","v":""},{"$f":"IFERROR(IF(LEN(Meilensteine[[#This Row],[Anzahl Tage]])=0,\"\",IF(AND(BG$5=$E23,$F23=1),Meilenstein_Markierung,\"\")),\"\")","v":""},{"$f":"IFERROR(IF(LEN(Meilensteine[[#This Row],[Anzahl Tage]])=0,\"\",IF(AND(BH$5=$E23,$F23=1),Meilenstein_Markierung,\"\")),\"\")","v":""},{"$f":"IFERROR(IF(LEN(Meilensteine[[#This Row],[Anzahl Tage]])=0,\"\",IF(AND(BI$5=$E23,$F23=1),Meilenstein_Markierung,\"\")),\"\")","v":""},{"$f":"IFERROR(IF(LEN(Meilensteine[[#This Row],[Anzahl Tage]])=0,\"\",IF(AND(BJ$5=$E23,$F23=1),Meilenstein_Markierung,\"\")),\"\")","v":""},{"$f":"IFERROR(IF(LEN(Meilensteine[[#This Row],[Anzahl Tage]])=0,\"\",IF(AND(BK$5=$E23,$F23=1),Meilenstein_Markierung,\"\")),\"\")","v":""}]
[null,"Aufgabe 4",null,null,{"$f":"TODAY()+48","v":"2018-11-06"},3,null,{"$f":"IFERROR(IF(LEN(Meilensteine[[#This Row],[Anzahl Tage]])=0,\"\",IF(AND(H$5=$E24,$F24=1),Meilenstein_Markierung,\"\")),\"\")","v":""},{"$f":"IFERROR(IF(LEN(Meilensteine[[#This Row],[Anzahl Tage]])=0,\"\",IF(AND(I$5=$E24,$F24=1),Meilenstein_Markierung,\"\")),\"\")","v":""},{"$f":"IFERROR(IF(LEN(Meilensteine[[#This Row],[Anzahl Tage]])=0,\"\",IF(AND(J$5=$E24,$F24=1),Meilenstein_Markierung,\"\")),\"\")","v":""},{"$f":"IFERROR(IF(LEN(Meilensteine[[#This Row],[Anzahl Tage]])=0,\"\",IF(AND(K$5=$E24,$F24=1),Meilenstein_Markierung,\"\")),\"\")","v":""},{"$f":"IFERROR(IF(LEN(Meilensteine[[#This Row],[Anzahl Tage]])=0,\"\",IF(AND(L$5=$E24,$F24=1),Meilenstein_Markierung,\"\")),\"\")","v":""},{"$f":"IFERROR(IF(LEN(Meilensteine[[#This Row],[Anzahl Tage]])=0,\"\",IF(AND(M$5=$E24,$F24=1),Meilenstein_Markierung,\"\")),\"\")","v":""},{"$f":"IFERROR(IF(LEN(Meilensteine[[#This Row],[Anzahl Tage]])=0,\"\",IF(AND(N$5=$E24,$F24=1),Meilenstein_Markierung,\"\")),\"\")","v":""},{"$f":"IFERROR(IF(LEN(Meilensteine[[#This Row],[Anzahl Tage]])=0,\"\",IF(AND(O$5=$E24,$F24=1),Meilenstein_Markierung,\"\")),\"\")","v":""},{"$f":"IFERROR(IF(LEN(Meilensteine[[#This Row],[Anzahl Tage]])=0,\"\",IF(AND(P$5=$E24,$F24=1),Meilenstein_Markierung,\"\")),\"\")","v":""},{"$f":"IFERROR(IF(LEN(Meilensteine[[#This Row],[Anzahl Tage]])=0,\"\",IF(AND(Q$5=$E24,$F24=1),Meilenstein_Markierung,\"\")),\"\")","v":""},{"$f":"IFERROR(IF(LEN(Meilensteine[[#This Row],[Anzahl Tage]])=0,\"\",IF(AND(R$5=$E24,$F24=1),Meilenstein_Markierung,\"\")),\"\")","v":""},{"$f":"IFERROR(IF(LEN(Meilensteine[[#This Row],[Anzahl Tage]])=0,\"\",IF(AND(S$5=$E24,$F24=1),Meilenstein_Markierung,\"\")),\"\")","v":""},{"$f":"IFERROR(IF(LEN(Meilensteine[[#This Row],[Anzahl Tage]])=0,\"\",IF(AND(T$5=$E24,$F24=1),Meilenstein_Markierung,\"\")),\"\")","v":""},{"$f":"IFERROR(IF(LEN(Meilensteine[[#This Row],[Anzahl Tage]])=0,\"\",IF(AND(U$5=$E24,$F24=1),Meilenstein_Markierung,\"\")),\"\")","v":""},{"$f":"IFERROR(IF(LEN(Meilensteine[[#This Row],[Anzahl Tage]])=0,\"\",IF(AND(V$5=$E24,$F24=1),Meilenstein_Markierung,\"\")),\"\")","v":""},{"$f":"IFERROR(IF(LEN(Meilensteine[[#This Row],[Anzahl Tage]])=0,\"\",IF(AND(W$5=$E24,$F24=1),Meilenstein_Markierung,\"\")),\"\")","v":""},{"$f":"IFERROR(IF(LEN(Meilensteine[[#This Row],[Anzahl Tage]])=0,\"\",IF(AND(X$5=$E24,$F24=1),Meilenstein_Markierung,\"\")),\"\")","v":""},{"$f":"IFERROR(IF(LEN(Meilensteine[[#This Row],[Anzahl Tage]])=0,\"\",IF(AND(Y$5=$E24,$F24=1),Meilenstein_Markierung,\"\")),\"\")","v":""},{"$f":"IFERROR(IF(LEN(Meilensteine[[#This Row],[Anzahl Tage]])=0,\"\",IF(AND(Z$5=$E24,$F24=1),Meilenstein_Markierung,\"\")),\"\")","v":""},{"$f":"IFERROR(IF(LEN(Meilensteine[[#This Row],[Anzahl Tage]])=0,\"\",IF(AND(AA$5=$E24,$F24=1),Meilenstein_Markierung,\"\")),\"\")","v":""},{"$f":"IFERROR(IF(LEN(Meilensteine[[#This Row],[Anzahl Tage]])=0,\"\",IF(AND(AB$5=$E24,$F24=1),Meilenstein_Markierung,\"\")),\"\")","v":""},{"$f":"IFERROR(IF(LEN(Meilensteine[[#This Row],[Anzahl Tage]])=0,\"\",IF(AND(AC$5=$E24,$F24=1),Meilenstein_Markierung,\"\")),\"\")","v":""},{"$f":"IFERROR(IF(LEN(Meilensteine[[#This Row],[Anzahl Tage]])=0,\"\",IF(AND(AD$5=$E24,$F24=1),Meilenstein_Markierung,\"\")),\"\")","v":""},{"$f":"IFERROR(IF(LEN(Meilensteine[[#This Row],[Anzahl Tage]])=0,\"\",IF(AND(AE$5=$E24,$F24=1),Meilenstein_Markierung,\"\")),\"\")","v":""},{"$f":"IFERROR(IF(LEN(Meilensteine[[#This Row],[Anzahl Tage]])=0,\"\",IF(AND(AF$5=$E24,$F24=1),Meilenstein_Markierung,\"\")),\"\")","v":""},{"$f":"IFERROR(IF(LEN(Meilensteine[[#This Row],[Anzahl Tage]])=0,\"\",IF(AND(AG$5=$E24,$F24=1),Meilenstein_Markierung,\"\")),\"\")","v":""},{"$f":"IFERROR(IF(LEN(Meilensteine[[#This Row],[Anzahl Tage]])=0,\"\",IF(AND(AH$5=$E24,$F24=1),Meilenstein_Markierung,\"\")),\"\")","v":""},{"$f":"IFERROR(IF(LEN(Meilensteine[[#This Row],[Anzahl Tage]])=0,\"\",IF(AND(AI$5=$E24,$F24=1),Meilenstein_Markierung,\"\")),\"\")","v":""},{"$f":"IFERROR(IF(LEN(Meilensteine[[#This Row],[Anzahl Tage]])=0,\"\",IF(AND(AJ$5=$E24,$F24=1),Meilenstein_Markierung,\"\")),\"\")","v":""},{"$f":"IFERROR(IF(LEN(Meilensteine[[#This Row],[Anzahl Tage]])=0,\"\",IF(AND(AK$5=$E24,$F24=1),Meilenstein_Markierung,\"\")),\"\")","v":""},{"$f":"IFERROR(IF(LEN(Meilensteine[[#This Row],[Anzahl Tage]])=0,\"\",IF(AND(AL$5=$E24,$F24=1),Meilenstein_Markierung,\"\")),\"\")","v":""},{"$f":"IFERROR(IF(LEN(Meilensteine[[#This Row],[Anzahl Tage]])=0,\"\",IF(AND(AM$5=$E24,$F24=1),Meilenstein_Markierung,\"\")),\"\")","v":""},{"$f":"IFERROR(IF(LEN(Meilensteine[[#This Row],[Anzahl Tage]])=0,\"\",IF(AND(AN$5=$E24,$F24=1),Meilenstein_Markierung,\"\")),\"\")","v":""},{"$f":"IFERROR(IF(LEN(Meilensteine[[#This Row],[Anzahl Tage]])=0,\"\",IF(AND(AO$5=$E24,$F24=1),Meilenstein_Markierung,\"\")),\"\")","v":""},{"$f":"IFERROR(IF(LEN(Meilensteine[[#This Row],[Anzahl Tage]])=0,\"\",IF(AND(AP$5=$E24,$F24=1),Meilenstein_Markierung,\"\")),\"\")","v":""},{"$f":"IFERROR(IF(LEN(Meilensteine[[#This Row],[Anzahl Tage]])=0,\"\",IF(AND(AQ$5=$E24,$F24=1),Meilenstein_Markierung,\"\")),\"\")","v":""},{"$f":"IFERROR(IF(LEN(Meilensteine[[#This Row],[Anzahl Tage]])=0,\"\",IF(AND(AR$5=$E24,$F24=1),Meilenstein_Markierung,\"\")),\"\")","v":""},{"$f":"IFERROR(IF(LEN(Meilensteine[[#This Row],[Anzahl Tage]])=0,\"\",IF(AND(AS$5=$E24,$F24=1),Meilenstein_Markierung,\"\")),\"\")","v":""},{"$f":"IFERROR(IF(LEN(Meilensteine[[#This Row],[Anzahl Tage]])=0,\"\",IF(AND(AT$5=$E24,$F24=1),Meilenstein_Markierung,\"\")),\"\")","v":""},{"$f":"IFERROR(IF(LEN(Meilensteine[[#This Row],[Anzahl Tage]])=0,\"\",IF(AND(AU$5=$E24,$F24=1),Meilenstein_Markierung,\"\")),\"\")","v":""},{"$f":"IFERROR(IF(LEN(Meilensteine[[#This Row],[Anzahl Tage]])=0,\"\",IF(AND(AV$5=$E24,$F24=1),Meilenstein_Markierung,\"\")),\"\")","v":""},{"$f":"IFERROR(IF(LEN(Meilensteine[[#This Row],[Anzahl Tage]])=0,\"\",IF(AND(AW$5=$E24,$F24=1),Meilenstein_Markierung,\"\")),\"\")","v":""},{"$f":"IFERROR(IF(LEN(Meilensteine[[#This Row],[Anzahl Tage]])=0,\"\",IF(AND(AX$5=$E24,$F24=1),Meilenstein_Markierung,\"\")),\"\")","v":""},{"$f":"IFERROR(IF(LEN(Meilensteine[[#This Row],[Anzahl Tage]])=0,\"\",IF(AND(AY$5=$E24,$F24=1),Meilenstein_Markierung,\"\")),\"\")","v":""},{"$f":"IFERROR(IF(LEN(Meilensteine[[#This Row],[Anzahl Tage]])=0,\"\",IF(AND(AZ$5=$E24,$F24=1),Meilenstein_Markierung,\"\")),\"\")","v":""},{"$f":"IFERROR(IF(LEN(Meilensteine[[#This Row],[Anzahl Tage]])=0,\"\",IF(AND(BA$5=$E24,$F24=1),Meilenstein_Markierung,\"\")),\"\")","v":""},{"$f":"IFERROR(IF(LEN(Meilensteine[[#This Row],[Anzahl Tage]])=0,\"\",IF(AND(BB$5=$E24,$F24=1),Meilenstein_Markierung,\"\")),\"\")","v":""},{"$f":"IFERROR(IF(LEN(Meilensteine[[#This Row],[Anzahl Tage]])=0,\"\",IF(AND(BC$5=$E24,$F24=1),Meilenstein_Markierung,\"\")),\"\")","v":""},{"$f":"IFERROR(IF(LEN(Meilensteine[[#This Row],[Anzahl Tage]])=0,\"\",IF(AND(BD$5=$E24,$F24=1),Meilenstein_Markierung,\"\")),\"\")","v":""},{"$f":"IFERROR(IF(LEN(Meilensteine[[#This Row],[Anzahl Tage]])=0,\"\",IF(AND(BE$5=$E24,$F24=1),Meilenstein_Markierung,\"\")),\"\")","v":""},{"$f":"IFERROR(IF(LEN(Meilensteine[[#This Row],[Anzahl Tage]])=0,\"\",IF(AND(BF$5=$E24,$F24=1),Meilenstein_Markierung,\"\")),\"\")","v":""},{"$f":"IFERROR(IF(LEN(Meilensteine[[#This Row],[Anzahl Tage]])=0,\"\",IF(AND(BG$5=$E24,$F24=1),Meilenstein_Markierung,\"\")),\"\")","v":""},{"$f":"IFERROR(IF(LEN(Meilensteine[[#This Row],[Anzahl Tage]])=0,\"\",IF(AND(BH$5=$E24,$F24=1),Meilenstein_Markierung,\"\")),\"\")","v":""},{"$f":"IFERROR(IF(LEN(Meilensteine[[#This Row],[Anzahl Tage]])=0,\"\",IF(AND(BI$5=$E24,$F24=1),Meilenstein_Markierung,\"\")),\"\")","v":""},{"$f":"IFERROR(IF(LEN(Meilensteine[[#This Row],[Anzahl Tage]])=0,\"\",IF(AND(BJ$5=$E24,$F24=1),Meilenstein_Markierung,\"\")),\"\")","v":""},{"$f":"IFERROR(IF(LEN(Meilensteine[[#This Row],[Anzahl Tage]])=0,\"\",IF(AND(BK$5=$E24,$F24=1),Meilenstein_Markierung,\"\")),\"\")","v":""}]
[null,"Aufgabe 5",null,null,{"$f":"TODAY()+40","v":"2018-10-29"},19,null,{"$f":"IFERROR(IF(LEN(Meilensteine[[#This Row],[Anzahl Tage]])=0,\"\",IF(AND(H$5=$E25,$F25=1),Meilenstein_Markierung,\"\")),\"\")","v":""},{"$f":"IFERROR(IF(LEN(Meilensteine[[#This Row],[Anzahl Tage]])=0,\"\",IF(AND(I$5=$E25,$F25=1),Meilenstein_Markierung,\"\")),\"\")","v":""},{"$f":"IFERROR(IF(LEN(Meilensteine[[#This Row],[Anzahl Tage]])=0,\"\",IF(AND(J$5=$E25,$F25=1),Meilenstein_Markierung,\"\")),\"\")","v":""},{"$f":"IFERROR(IF(LEN(Meilensteine[[#This Row],[Anzahl Tage]])=0,\"\",IF(AND(K$5=$E25,$F25=1),Meilenstein_Markierung,\"\")),\"\")","v":""},{"$f":"IFERROR(IF(LEN(Meilensteine[[#This Row],[Anzahl Tage]])=0,\"\",IF(AND(L$5=$E25,$F25=1),Meilenstein_Markierung,\"\")),\"\")","v":""},{"$f":"IFERROR(IF(LEN(Meilensteine[[#This Row],[Anzahl Tage]])=0,\"\",IF(AND(M$5=$E25,$F25=1),Meilenstein_Markierung,\"\")),\"\")","v":""},{"$f":"IFERROR(IF(LEN(Meilensteine[[#This Row],[Anzahl Tage]])=0,\"\",IF(AND(N$5=$E25,$F25=1),Meilenstein_Markierung,\"\")),\"\")","v":""},{"$f":"IFERROR(IF(LEN(Meilensteine[[#This Row],[Anzahl Tage]])=0,\"\",IF(AND(O$5=$E25,$F25=1),Meilenstein_Markierung,\"\")),\"\")","v":""},{"$f":"IFERROR(IF(LEN(Meilensteine[[#This Row],[Anzahl Tage]])=0,\"\",IF(AND(P$5=$E25,$F25=1),Meilenstein_Markierung,\"\")),\"\")","v":""},{"$f":"IFERROR(IF(LEN(Meilensteine[[#This Row],[Anzahl Tage]])=0,\"\",IF(AND(Q$5=$E25,$F25=1),Meilenstein_Markierung,\"\")),\"\")","v":""},{"$f":"IFERROR(IF(LEN(Meilensteine[[#This Row],[Anzahl Tage]])=0,\"\",IF(AND(R$5=$E25,$F25=1),Meilenstein_Markierung,\"\")),\"\")","v":""},{"$f":"IFERROR(IF(LEN(Meilensteine[[#This Row],[Anzahl Tage]])=0,\"\",IF(AND(S$5=$E25,$F25=1),Meilenstein_Markierung,\"\")),\"\")","v":""},{"$f":"IFERROR(IF(LEN(Meilensteine[[#This Row],[Anzahl Tage]])=0,\"\",IF(AND(T$5=$E25,$F25=1),Meilenstein_Markierung,\"\")),\"\")","v":""},{"$f":"IFERROR(IF(LEN(Meilensteine[[#This Row],[Anzahl Tage]])=0,\"\",IF(AND(U$5=$E25,$F25=1),Meilenstein_Markierung,\"\")),\"\")","v":""},{"$f":"IFERROR(IF(LEN(Meilensteine[[#This Row],[Anzahl Tage]])=0,\"\",IF(AND(V$5=$E25,$F25=1),Meilenstein_Markierung,\"\")),\"\")","v":""},{"$f":"IFERROR(IF(LEN(Meilensteine[[#This Row],[Anzahl Tage]])=0,\"\",IF(AND(W$5=$E25,$F25=1),Meilenstein_Markierung,\"\")),\"\")","v":""},{"$f":"IFERROR(IF(LEN(Meilensteine[[#This Row],[Anzahl Tage]])=0,\"\",IF(AND(X$5=$E25,$F25=1),Meilenstein_Markierung,\"\")),\"\")","v":""},{"$f":"IFERROR(IF(LEN(Meilensteine[[#This Row],[Anzahl Tage]])=0,\"\",IF(AND(Y$5=$E25,$F25=1),Meilenstein_Markierung,\"\")),\"\")","v":""},{"$f":"IFERROR(IF(LEN(Meilensteine[[#This Row],[Anzahl Tage]])=0,\"\",IF(AND(Z$5=$E25,$F25=1),Meilenstein_Markierung,\"\")),\"\")","v":""},{"$f":"IFERROR(IF(LEN(Meilensteine[[#This Row],[Anzahl Tage]])=0,\"\",IF(AND(AA$5=$E25,$F25=1),Meilenstein_Markierung,\"\")),\"\")","v":""},{"$f":"IFERROR(IF(LEN(Meilensteine[[#This Row],[Anzahl Tage]])=0,\"\",IF(AND(AB$5=$E25,$F25=1),Meilenstein_Markierung,\"\")),\"\")","v":""},{"$f":"IFERROR(IF(LEN(Meilensteine[[#This Row],[Anzahl Tage]])=0,\"\",IF(AND(AC$5=$E25,$F25=1),Meilenstein_Markierung,\"\")),\"\")","v":""},{"$f":"IFERROR(IF(LEN(Meilensteine[[#This Row],[Anzahl Tage]])=0,\"\",IF(AND(AD$5=$E25,$F25=1),Meilenstein_Markierung,\"\")),\"\")","v":""},{"$f":"IFERROR(IF(LEN(Meilensteine[[#This Row],[Anzahl Tage]])=0,\"\",IF(AND(AE$5=$E25,$F25=1),Meilenstein_Markierung,\"\")),\"\")","v":""},{"$f":"IFERROR(IF(LEN(Meilensteine[[#This Row],[Anzahl Tage]])=0,\"\",IF(AND(AF$5=$E25,$F25=1),Meilenstein_Markierung,\"\")),\"\")","v":""},{"$f":"IFERROR(IF(LEN(Meilensteine[[#This Row],[Anzahl Tage]])=0,\"\",IF(AND(AG$5=$E25,$F25=1),Meilenstein_Markierung,\"\")),\"\")","v":""},{"$f":"IFERROR(IF(LEN(Meilensteine[[#This Row],[Anzahl Tage]])=0,\"\",IF(AND(AH$5=$E25,$F25=1),Meilenstein_Markierung,\"\")),\"\")","v":""},{"$f":"IFERROR(IF(LEN(Meilensteine[[#This Row],[Anzahl Tage]])=0,\"\",IF(AND(AI$5=$E25,$F25=1),Meilenstein_Markierung,\"\")),\"\")","v":""},{"$f":"IFERROR(IF(LEN(Meilensteine[[#This Row],[Anzahl Tage]])=0,\"\",IF(AND(AJ$5=$E25,$F25=1),Meilenstein_Markierung,\"\")),\"\")","v":""},{"$f":"IFERROR(IF(LEN(Meilensteine[[#This Row],[Anzahl Tage]])=0,\"\",IF(AND(AK$5=$E25,$F25=1),Meilenstein_Markierung,\"\")),\"\")","v":""},{"$f":"IFERROR(IF(LEN(Meilensteine[[#This Row],[Anzahl Tage]])=0,\"\",IF(AND(AL$5=$E25,$F25=1),Meilenstein_Markierung,\"\")),\"\")","v":""},{"$f":"IFERROR(IF(LEN(Meilensteine[[#This Row],[Anzahl Tage]])=0,\"\",IF(AND(AM$5=$E25,$F25=1),Meilenstein_Markierung,\"\")),\"\")","v":""},{"$f":"IFERROR(IF(LEN(Meilensteine[[#This Row],[Anzahl Tage]])=0,\"\",IF(AND(AN$5=$E25,$F25=1),Meilenstein_Markierung,\"\")),\"\")","v":""},{"$f":"IFERROR(IF(LEN(Meilensteine[[#This Row],[Anzahl Tage]])=0,\"\",IF(AND(AO$5=$E25,$F25=1),Meilenstein_Markierung,\"\")),\"\")","v":""},{"$f":"IFERROR(IF(LEN(Meilensteine[[#This Row],[Anzahl Tage]])=0,\"\",IF(AND(AP$5=$E25,$F25=1),Meilenstein_Markierung,\"\")),\"\")","v":""},{"$f":"IFERROR(IF(LEN(Meilensteine[[#This Row],[Anzahl Tage]])=0,\"\",IF(AND(AQ$5=$E25,$F25=1),Meilenstein_Markierung,\"\")),\"\")","v":""},{"$f":"IFERROR(IF(LEN(Meilensteine[[#This Row],[Anzahl Tage]])=0,\"\",IF(AND(AR$5=$E25,$F25=1),Meilenstein_Markierung,\"\")),\"\")","v":""},{"$f":"IFERROR(IF(LEN(Meilensteine[[#This Row],[Anzahl Tage]])=0,\"\",IF(AND(AS$5=$E25,$F25=1),Meilenstein_Markierung,\"\")),\"\")","v":""},{"$f":"IFERROR(IF(LEN(Meilensteine[[#This Row],[Anzahl Tage]])=0,\"\",IF(AND(AT$5=$E25,$F25=1),Meilenstein_Markierung,\"\")),\"\")","v":""},{"$f":"IFERROR(IF(LEN(Meilensteine[[#This Row],[Anzahl Tage]])=0,\"\",IF(AND(AU$5=$E25,$F25=1),Meilenstein_Markierung,\"\")),\"\")","v":""},{"$f":"IFERROR(IF(LEN(Meilensteine[[#This Row],[Anzahl Tage]])=0,\"\",IF(AND(AV$5=$E25,$F25=1),Meilenstein_Markierung,\"\")),\"\")","v":""},{"$f":"IFERROR(IF(LEN(Meilensteine[[#This Row],[Anzahl Tage]])=0,\"\",IF(AND(AW$5=$E25,$F25=1),Meilenstein_Markierung,\"\")),\"\")","v":""},{"$f":"IFERROR(IF(LEN(Meilensteine[[#This Row],[Anzahl Tage]])=0,\"\",IF(AND(AX$5=$E25,$F25=1),Meilenstein_Markierung,\"\")),\"\")","v":""},{"$f":"IFERROR(IF(LEN(Meilensteine[[#This Row],[Anzahl Tage]])=0,\"\",IF(AND(AY$5=$E25,$F25=1),Meilenstein_Markierung,\"\")),\"\")","v":""},{"$f":"IFERROR(IF(LEN(Meilensteine[[#This Row],[Anzahl Tage]])=0,\"\",IF(AND(AZ$5=$E25,$F25=1),Meilenstein_Markierung,\"\")),\"\")","v":""},{"$f":"IFERROR(IF(LEN(Meilensteine[[#This Row],[Anzahl Tage]])=0,\"\",IF(AND(BA$5=$E25,$F25=1),Meilenstein_Markierung,\"\")),\"\")","v":""},{"$f":"IFERROR(IF(LEN(Meilensteine[[#This Row],[Anzahl Tage]])=0,\"\",IF(AND(BB$5=$E25,$F25=1),Meilenstein_Markierung,\"\")),\"\")","v":""},{"$f":"IFERROR(IF(LEN(Meilensteine[[#This Row],[Anzahl Tage]])=0,\"\",IF(AND(BC$5=$E25,$F25=1),Meilenstein_Markierung,\"\")),\"\")","v":""},{"$f":"IFERROR(IF(LEN(Meilensteine[[#This Row],[Anzahl Tage]])=0,\"\",IF(AND(BD$5=$E25,$F25=1),Meilenstein_Markierung,\"\")),\"\")","v":""},{"$f":"IFERROR(IF(LEN(Meilensteine[[#This Row],[Anzahl Tage]])=0,\"\",IF(AND(BE$5=$E25,$F25=1),Meilenstein_Markierung,\"\")),\"\")","v":""},{"$f":"IFERROR(IF(LEN(Meilensteine[[#This Row],[Anzahl Tage]])=0,\"\",IF(AND(BF$5=$E25,$F25=1),Meilenstein_Markierung,\"\")),\"\")","v":""},{"$f":"IFERROR(IF(LEN(Meilensteine[[#This Row],[Anzahl Tage]])=0,\"\",IF(AND(BG$5=$E25,$F25=1),Meilenstein_Markierung,\"\")),\"\")","v":""},{"$f":"IFERROR(IF(LEN(Meilensteine[[#This Row],[Anzahl Tage]])=0,\"\",IF(AND(BH$5=$E25,$F25=1),Meilenstein_Markierung,\"\")),\"\")","v":""},{"$f":"IFERROR(IF(LEN(Meilensteine[[#This Row],[Anzahl Tage]])=0,\"\",IF(AND(BI$5=$E25,$F25=1),Meilenstein_Markierung,\"\")),\"\")","v":""},{"$f":"IFERROR(IF(LEN(Meilensteine[[#This Row],[Anzahl Tage]])=0,\"\",IF(AND(BJ$5=$E25,$F25=1),Meilenstein_Markierung,\"\")),\"\")","v":""},{"$f":"IFERROR(IF(LEN(Meilensteine[[#This Row],[Anzahl Tage]])=0,\"\",IF(AND(BK$5=$E25,$F25=1),Meilenstein_Markierung,\"\")),\"\")","v":""}]
[null,"Titel 4",{"$nulls":5},{"$f":"IFERROR(IF(LEN(Meilensteine[[#This Row],[Anzahl Tage]])=0,\"\",IF(AND(H$5=$E26,$F26=1),Meilenstein_Markierung,\"\")),\"\")","v":""},{"$f":"IFERROR(IF(LEN(Meilensteine[[#This Row],[Anzahl Tage]])=0,\"\",IF(AND(I$5=$E26,$F26=1),Meilenstein_Markierung,\"\")),\"\")","v":""},{"$f":"IFERROR(IF(LEN(Meilensteine[[#This Row],[Anzahl Tage]])=0,\"\",IF(AND(J$5=$E26,$F26=1),Meilenstein_Markierung,\"\")),\"\")","v":""},{"$f":"IFERROR(IF(LEN(Meilensteine[[#This Row],[Anzahl Tage]])=0,\"\",IF(AND(K$5=$E26,$F26=1),Meilenstein_Markierung,\"\")),\"\")","v":""},{"$f":"IFERROR(IF(LEN(Meilensteine[[#This Row],[Anzahl Tage]])=0,\"\",IF(AND(L$5=$E26,$F26=1),Meilenstein_Markierung,\"\")),\"\")","v":""},{"$f":"IFERROR(IF(LEN(Meilensteine[[#This Row],[Anzahl Tage]])=0,\"\",IF(AND(M$5=$E26,$F26=1),Meilenstein_Markierung,\"\")),\"\")","v":""},{"$f":"IFERROR(IF(LEN(Meilensteine[[#This Row],[Anzahl Tage]])=0,\"\",IF(AND(N$5=$E26,$F26=1),Meilenstein_Markierung,\"\")),\"\")","v":""},{"$f":"IFERROR(IF(LEN(Meilensteine[[#This Row],[Anzahl Tage]])=0,\"\",IF(AND(O$5=$E26,$F26=1),Meilenstein_Markierung,\"\")),\"\")","v":""},{"$f":"IFERROR(IF(LEN(Meilensteine[[#This Row],[Anzahl Tage]])=0,\"\",IF(AND(P$5=$E26,$F26=1),Meilenstein_Markierung,\"\")),\"\")","v":""},{"$f":"IFERROR(IF(LEN(Meilensteine[[#This Row],[Anzahl Tage]])=0,\"\",IF(AND(Q$5=$E26,$F26=1),Meilenstein_Markierung,\"\")),\"\")","v":""},{"$f":"IFERROR(IF(LEN(Meilensteine[[#This Row],[Anzahl Tage]])=0,\"\",IF(AND(R$5=$E26,$F26=1),Meilenstein_Markierung,\"\")),\"\")","v":""},{"$f":"IFERROR(IF(LEN(Meilensteine[[#This Row],[Anzahl Tage]])=0,\"\",IF(AND(S$5=$E26,$F26=1),Meilenstein_Markierung,\"\")),\"\")","v":""},{"$f":"IFERROR(IF(LEN(Meilensteine[[#This Row],[Anzahl Tage]])=0,\"\",IF(AND(T$5=$E26,$F26=1),Meilenstein_Markierung,\"\")),\"\")","v":""},{"$f":"IFERROR(IF(LEN(Meilensteine[[#This Row],[Anzahl Tage]])=0,\"\",IF(AND(U$5=$E26,$F26=1),Meilenstein_Markierung,\"\")),\"\")","v":""},{"$f":"IFERROR(IF(LEN(Meilensteine[[#This Row],[Anzahl Tage]])=0,\"\",IF(AND(V$5=$E26,$F26=1),Meilenstein_Markierung,\"\")),\"\")","v":""},{"$f":"IFERROR(IF(LEN(Meilensteine[[#This Row],[Anzahl Tage]])=0,\"\",IF(AND(W$5=$E26,$F26=1),Meilenstein_Markierung,\"\")),\"\")","v":""},{"$f":"IFERROR(IF(LEN(Meilensteine[[#This Row],[Anzahl Tage]])=0,\"\",IF(AND(X$5=$E26,$F26=1),Meilenstein_Markierung,\"\")),\"\")","v":""},{"$f":"IFERROR(IF(LEN(Meilensteine[[#This Row],[Anzahl Tage]])=0,\"\",IF(AND(Y$5=$E26,$F26=1),Meilenstein_Markierung,\"\")),\"\")","v":""},{"$f":"IFERROR(IF(LEN(Meilensteine[[#This Row],[Anzahl Tage]])=0,\"\",IF(AND(Z$5=$E26,$F26=1),Meilenstein_Markierung,\"\")),\"\")","v":""},{"$f":"IFERROR(IF(LEN(Meilensteine[[#This Row],[Anzahl Tage]])=0,\"\",IF(AND(AA$5=$E26,$F26=1),Meilenstein_Markierung,\"\")),\"\")","v":""},{"$f":"IFERROR(IF(LEN(Meilensteine[[#This Row],[Anzahl Tage]])=0,\"\",IF(AND(AB$5=$E26,$F26=1),Meilenstein_Markierung,\"\")),\"\")","v":""},{"$f":"IFERROR(IF(LEN(Meilensteine[[#This Row],[Anzahl Tage]])=0,\"\",IF(AND(AC$5=$E26,$F26=1),Meilenstein_Markierung,\"\")),\"\")","v":""},{"$f":"IFERROR(IF(LEN(Meilensteine[[#This Row],[Anzahl Tage]])=0,\"\",IF(AND(AD$5=$E26,$F26=1),Meilenstein_Markierung,\"\")),\"\")","v":""},{"$f":"IFERROR(IF(LEN(Meilensteine[[#This Row],[Anzahl Tage]])=0,\"\",IF(AND(AE$5=$E26,$F26=1),Meilenstein_Markierung,\"\")),\"\")","v":""},{"$f":"IFERROR(IF(LEN(Meilensteine[[#This Row],[Anzahl Tage]])=0,\"\",IF(AND(AF$5=$E26,$F26=1),Meilenstein_Markierung,\"\")),\"\")","v":""},{"$f":"IFERROR(IF(LEN(Meilensteine[[#This Row],[Anzahl Tage]])=0,\"\",IF(AND(AG$5=$E26,$F26=1),Meilenstein_Markierung,\"\")),\"\")","v":""},{"$f":"IFERROR(IF(LEN(Meilensteine[[#This Row],[Anzahl Tage]])=0,\"\",IF(AND(AH$5=$E26,$F26=1),Meilenstein_Markierung,\"\")),\"\")","v":""},{"$f":"IFERROR(IF(LEN(Meilensteine[[#This Row],[Anzahl Tage]])=0,\"\",IF(AND(AI$5=$E26,$F26=1),Meilenstein_Markierung,\"\")),\"\")","v":""},{"$f":"IFERROR(IF(LEN(Meilensteine[[#This Row],[Anzahl Tage]])=0,\"\",IF(AND(AJ$5=$E26,$F26=1),Meilenstein_Markierung,\"\")),\"\")","v":""},{"$f":"IFERROR(IF(LEN(Meilensteine[[#This Row],[Anzahl Tage]])=0,\"\",IF(AND(AK$5=$E26,$F26=1),Meilenstein_Markierung,\"\")),\"\")","v":""},{"$f":"IFERROR(IF(LEN(Meilensteine[[#This Row],[Anzahl Tage]])=0,\"\",IF(AND(AL$5=$E26,$F26=1),Meilenstein_Markierung,\"\")),\"\")","v":""},{"$f":"IFERROR(IF(LEN(Meilensteine[[#This Row],[Anzahl Tage]])=0,\"\",IF(AND(AM$5=$E26,$F26=1),Meilenstein_Markierung,\"\")),\"\")","v":""},{"$f":"IFERROR(IF(LEN(Meilensteine[[#This Row],[Anzahl Tage]])=0,\"\",IF(AND(AN$5=$E26,$F26=1),Meilenstein_Markierung,\"\")),\"\")","v":""},{"$f":"IFERROR(IF(LEN(Meilensteine[[#This Row],[Anzahl Tage]])=0,\"\",IF(AND(AO$5=$E26,$F26=1),Meilenstein_Markierung,\"\")),\"\")","v":""},{"$f":"IFERROR(IF(LEN(Meilensteine[[#This Row],[Anzahl Tage]])=0,\"\",IF(AND(AP$5=$E26,$F26=1),Meilenstein_Markierung,\"\")),\"\")","v":""},{"$f":"IFERROR(IF(LEN(Meilensteine[[#This Row],[Anzahl Tage]])=0,\"\",IF(AND(AQ$5=$E26,$F26=1),Meilenstein_Markierung,\"\")),\"\")","v":""},{"$f":"IFERROR(IF(LEN(Meilensteine[[#This Row],[Anzahl Tage]])=0,\"\",IF(AND(AR$5=$E26,$F26=1),Meilenstein_Markierung,\"\")),\"\")","v":""},{"$f":"IFERROR(IF(LEN(Meilensteine[[#This Row],[Anzahl Tage]])=0,\"\",IF(AND(AS$5=$E26,$F26=1),Meilenstein_Markierung,\"\")),\"\")","v":""},{"$f":"IFERROR(IF(LEN(Meilensteine[[#This Row],[Anzahl Tage]])=0,\"\",IF(AND(AT$5=$E26,$F26=1),Meilenstein_Markierung,\"\")),\"\")","v":""},{"$f":"IFERROR(IF(LEN(Meilensteine[[#This Row],[Anzahl Tage]])=0,\"\",IF(AND(AU$5=$E26,$F26=1),Meilenstein_Markierung,\"\")),\"\")","v":""},{"$f":"IFERROR(IF(LEN(Meilensteine[[#This Row],[Anzahl Tage]])=0,\"\",IF(AND(AV$5=$E26,$F26=1),Meilenstein_Markierung,\"\")),\"\")","v":""},{"$f":"IFERROR(IF(LEN(Meilensteine[[#This Row],[Anzahl Tage]])=0,\"\",IF(AND(AW$5=$E26,$F26=1),Meilenstein_Markierung,\"\")),\"\")","v":""},{"$f":"IFERROR(IF(LEN(Meilensteine[[#This Row],[Anzahl Tage]])=0,\"\",IF(AND(AX$5=$E26,$F26=1),Meilenstein_Markierung,\"\")),\"\")","v":""},{"$f":"IFERROR(IF(LEN(Meilensteine[[#This Row],[Anzahl Tage]])=0,\"\",IF(AND(AY$5=$E26,$F26=1),Meilenstein_Markierung,\"\")),\"\")","v":""},{"$f":"IFERROR(IF(LEN(Meilensteine[[#This Row],[Anzahl Tage]])=0,\"\",IF(AND(AZ$5=$E26,$F26=1),Meilenstein_Markierung,\"\")),\"\")","v":""},{"$f":"IFERROR(IF(LEN(Meilensteine[[#This Row],[Anzahl Tage]])=0,\"\",IF(AND(BA$5=$E26,$F26=1),Meilenstein_Markierung,\"\")),\"\")","v":""},{"$f":"IFERROR(IF(LEN(Meilensteine[[#This Row],[Anzahl Tage]])=0,\"\",IF(AND(BB$5=$E26,$F26=1),Meilenstein_Markierung,\"\")),\"\")","v":""},{"$f":"IFERROR(IF(LEN(Meilensteine[[#This Row],[Anzahl Tage]])=0,\"\",IF(AND(BC$5=$E26,$F26=1),Meilenstein_Markierung,\"\")),\"\")","v":""},{"$f":"IFERROR(IF(LEN(Meilensteine[[#This Row],[Anzahl Tage]])=0,\"\",IF(AND(BD$5=$E26,$F26=1),Meilenstein_Markierung,\"\")),\"\")","v":""},{"$f":"IFERROR(IF(LEN(Meilensteine[[#This Row],[Anzahl Tage]])=0,\"\",IF(AND(BE$5=$E26,$F26=1),Meilenstein_Markierung,\"\")),\"\")","v":""},{"$f":"IFERROR(IF(LEN(Meilensteine[[#This Row],[Anzahl Tage]])=0,\"\",IF(AND(BF$5=$E26,$F26=1),Meilenstein_Markierung,\"\")),\"\")","v":""},{"$f":"IFERROR(IF(LEN(Meilensteine[[#This Row],[Anzahl Tage]])=0,\"\",IF(AND(BG$5=$E26,$F26=1),Meilenstein_Markierung,\"\")),\"\")","v":""},{"$f":"IFERROR(IF(LEN(Meilensteine[[#This Row],[Anzahl Tage]])=0,\"\",IF(AND(BH$5=$E26,$F26=1),Meilenstein_Markierung,\"\")),\"\")","v":""},{"$f":"IFERROR(IF(LEN(Meilensteine[[#This Row],[Anzahl Tage]])=0,\"\",IF(AND(BI$5=$E26,$F26=1),Meilenstein_Markierung,\"\")),\"\")","v":""},{"$f":"IFERROR(IF(LEN(Meilensteine[[#This Row],[Anzahl Tage]])=0,\"\",IF(AND(BJ$5=$E26,$F26=1),Meilenstein_Markierung,\"\")),\"\")","v":""},{"$f":"IFERROR(IF(LEN(Meilensteine[[#This Row],[Anzahl Tage]])=0,\"\",IF(AND(BK$5=$E26,$F26=1),Meilenstein_Markierung,\"\")),\"\")","v":""}]
[null,"Aufgabe 1",null,null,{"$f":"TODAY()+37","v":"2018-10-26"},15,null,{"$f":"IFERROR(IF(LEN(Meilensteine[[#This Row],[Anzahl Tage]])=0,\"\",IF(AND(H$5=$E27,$F27=1),Meilenstein_Markierung,\"\")),\"\")","v":""},{"$f":"IFERROR(IF(LEN(Meilensteine[[#This Row],[Anzahl Tage]])=0,\"\",IF(AND(I$5=$E27,$F27=1),Meilenstein_Markierung,\"\")),\"\")","v":""},{"$f":"IFERROR(IF(LEN(Meilensteine[[#This Row],[Anzahl Tage]])=0,\"\",IF(AND(J$5=$E27,$F27=1),Meilenstein_Markierung,\"\")),\"\")","v":""},{"$f":"IFERROR(IF(LEN(Meilensteine[[#This Row],[Anzahl Tage]])=0,\"\",IF(AND(K$5=$E27,$F27=1),Meilenstein_Markierung,\"\")),\"\")","v":""},{"$f":"IFERROR(IF(LEN(Meilensteine[[#This Row],[Anzahl Tage]])=0,\"\",IF(AND(L$5=$E27,$F27=1),Meilenstein_Markierung,\"\")),\"\")","v":""},{"$f":"IFERROR(IF(LEN(Meilensteine[[#This Row],[Anzahl Tage]])=0,\"\",IF(AND(M$5=$E27,$F27=1),Meilenstein_Markierung,\"\")),\"\")","v":""},{"$f":"IFERROR(IF(LEN(Meilensteine[[#This Row],[Anzahl Tage]])=0,\"\",IF(AND(N$5=$E27,$F27=1),Meilenstein_Markierung,\"\")),\"\")","v":""},{"$f":"IFERROR(IF(LEN(Meilensteine[[#This Row],[Anzahl Tage]])=0,\"\",IF(AND(O$5=$E27,$F27=1),Meilenstein_Markierung,\"\")),\"\")","v":""},{"$f":"IFERROR(IF(LEN(Meilensteine[[#This Row],[Anzahl Tage]])=0,\"\",IF(AND(P$5=$E27,$F27=1),Meilenstein_Markierung,\"\")),\"\")","v":""},{"$f":"IFERROR(IF(LEN(Meilensteine[[#This Row],[Anzahl Tage]])=0,\"\",IF(AND(Q$5=$E27,$F27=1),Meilenstein_Markierung,\"\")),\"\")","v":""},{"$f":"IFERROR(IF(LEN(Meilensteine[[#This Row],[Anzahl Tage]])=0,\"\",IF(AND(R$5=$E27,$F27=1),Meilenstein_Markierung,\"\")),\"\")","v":""},{"$f":"IFERROR(IF(LEN(Meilensteine[[#This Row],[Anzahl Tage]])=0,\"\",IF(AND(S$5=$E27,$F27=1),Meilenstein_Markierung,\"\")),\"\")","v":""},{"$f":"IFERROR(IF(LEN(Meilensteine[[#This Row],[Anzahl Tage]])=0,\"\",IF(AND(T$5=$E27,$F27=1),Meilenstein_Markierung,\"\")),\"\")","v":""},{"$f":"IFERROR(IF(LEN(Meilensteine[[#This Row],[Anzahl Tage]])=0,\"\",IF(AND(U$5=$E27,$F27=1),Meilenstein_Markierung,\"\")),\"\")","v":""},{"$f":"IFERROR(IF(LEN(Meilensteine[[#This Row],[Anzahl Tage]])=0,\"\",IF(AND(V$5=$E27,$F27=1),Meilenstein_Markierung,\"\")),\"\")","v":""},{"$f":"IFERROR(IF(LEN(Meilensteine[[#This Row],[Anzahl Tage]])=0,\"\",IF(AND(W$5=$E27,$F27=1),Meilenstein_Markierung,\"\")),\"\")","v":""},{"$f":"IFERROR(IF(LEN(Meilensteine[[#This Row],[Anzahl Tage]])=0,\"\",IF(AND(X$5=$E27,$F27=1),Meilenstein_Markierung,\"\")),\"\")","v":""},{"$f":"IFERROR(IF(LEN(Meilensteine[[#This Row],[Anzahl Tage]])=0,\"\",IF(AND(Y$5=$E27,$F27=1),Meilenstein_Markierung,\"\")),\"\")","v":""},{"$f":"IFERROR(IF(LEN(Meilensteine[[#This Row],[Anzahl Tage]])=0,\"\",IF(AND(Z$5=$E27,$F27=1),Meilenstein_Markierung,\"\")),\"\")","v":""},{"$f":"IFERROR(IF(LEN(Meilensteine[[#This Row],[Anzahl Tage]])=0,\"\",IF(AND(AA$5=$E27,$F27=1),Meilenstein_Markierung,\"\")),\"\")","v":""},{"$f":"IFERROR(IF(LEN(Meilensteine[[#This Row],[Anzahl Tage]])=0,\"\",IF(AND(AB$5=$E27,$F27=1),Meilenstein_Markierung,\"\")),\"\")","v":""},{"$f":"IFERROR(IF(LEN(Meilensteine[[#This Row],[Anzahl Tage]])=0,\"\",IF(AND(AC$5=$E27,$F27=1),Meilenstein_Markierung,\"\")),\"\")","v":""},{"$f":"IFERROR(IF(LEN(Meilensteine[[#This Row],[Anzahl Tage]])=0,\"\",IF(AND(AD$5=$E27,$F27=1),Meilenstein_Markierung,\"\")),\"\")","v":""},{"$f":"IFERROR(IF(LEN(Meilensteine[[#This Row],[Anzahl Tage]])=0,\"\",IF(AND(AE$5=$E27,$F27=1),Meilenstein_Markierung,\"\")),\"\")","v":""},{"$f":"IFERROR(IF(LEN(Meilensteine[[#This Row],[Anzahl Tage]])=0,\"\",IF(AND(AF$5=$E27,$F27=1),Meilenstein_Markierung,\"\")),\"\")","v":""},{"$f":"IFERROR(IF(LEN(Meilensteine[[#This Row],[Anzahl Tage]])=0,\"\",IF(AND(AG$5=$E27,$F27=1),Meilenstein_Markierung,\"\")),\"\")","v":""},{"$f":"IFERROR(IF(LEN(Meilensteine[[#This Row],[Anzahl Tage]])=0,\"\",IF(AND(AH$5=$E27,$F27=1),Meilenstein_Markierung,\"\")),\"\")","v":""},{"$f":"IFERROR(IF(LEN(Meilensteine[[#This Row],[Anzahl Tage]])=0,\"\",IF(AND(AI$5=$E27,$F27=1),Meilenstein_Markierung,\"\")),\"\")","v":""},{"$f":"IFERROR(IF(LEN(Meilensteine[[#This Row],[Anzahl Tage]])=0,\"\",IF(AND(AJ$5=$E27,$F27=1),Meilenstein_Markierung,\"\")),\"\")","v":""},{"$f":"IFERROR(IF(LEN(Meilensteine[[#This Row],[Anzahl Tage]])=0,\"\",IF(AND(AK$5=$E27,$F27=1),Meilenstein_Markierung,\"\")),\"\")","v":""},{"$f":"IFERROR(IF(LEN(Meilensteine[[#This Row],[Anzahl Tage]])=0,\"\",IF(AND(AL$5=$E27,$F27=1),Meilenstein_Markierung,\"\")),\"\")","v":""},{"$f":"IFERROR(IF(LEN(Meilensteine[[#This Row],[Anzahl Tage]])=0,\"\",IF(AND(AM$5=$E27,$F27=1),Meilenstein_Markierung,\"\")),\"\")","v":""},{"$f":"IFERROR(IF(LEN(Meilensteine[[#This Row],[Anzahl Tage]])=0,\"\",IF(AND(AN$5=$E27,$F27=1),Meilenstein_Markierung,\"\")),\"\")","v":""},{"$f":"IFERROR(IF(LEN(Meilensteine[[#This Row],[Anzahl Tage]])=0,\"\",IF(AND(AO$5=$E27,$F27=1),Meilenstein_Markierung,\"\")),\"\")","v":""},{"$f":"IFERROR(IF(LEN(Meilensteine[[#This Row],[Anzahl Tage]])=0,\"\",IF(AND(AP$5=$E27,$F27=1),Meilenstein_Markierung,\"\")),\"\")","v":""},{"$f":"IFERROR(IF(LEN(Meilensteine[[#This Row],[Anzahl Tage]])=0,\"\",IF(AND(AQ$5=$E27,$F27=1),Meilenstein_Markierung,\"\")),\"\")","v":""},{"$f":"IFERROR(IF(LEN(Meilensteine[[#This Row],[Anzahl Tage]])=0,\"\",IF(AND(AR$5=$E27,$F27=1),Meilenstein_Markierung,\"\")),\"\")","v":""},{"$f":"IFERROR(IF(LEN(Meilensteine[[#This Row],[Anzahl Tage]])=0,\"\",IF(AND(AS$5=$E27,$F27=1),Meilenstein_Markierung,\"\")),\"\")","v":""},{"$f":"IFERROR(IF(LEN(Meilensteine[[#This Row],[Anzahl Tage]])=0,\"\",IF(AND(AT$5=$E27,$F27=1),Meilenstein_Markierung,\"\")),\"\")","v":""},{"$f":"IFERROR(IF(LEN(Meilensteine[[#This Row],[Anzahl Tage]])=0,\"\",IF(AND(AU$5=$E27,$F27=1),Meilenstein_Markierung,\"\")),\"\")","v":""},{"$f":"IFERROR(IF(LEN(Meilensteine[[#This Row],[Anzahl Tage]])=0,\"\",IF(AND(AV$5=$E27,$F27=1),Meilenstein_Markierung,\"\")),\"\")","v":""},{"$f":"IFERROR(IF(LEN(Meilensteine[[#This Row],[Anzahl Tage]])=0,\"\",IF(AND(AW$5=$E27,$F27=1),Meilenstein_Markierung,\"\")),\"\")","v":""},{"$f":"IFERROR(IF(LEN(Meilensteine[[#This Row],[Anzahl Tage]])=0,\"\",IF(AND(AX$5=$E27,$F27=1),Meilenstein_Markierung,\"\")),\"\")","v":""},{"$f":"IFERROR(IF(LEN(Meilensteine[[#This Row],[Anzahl Tage]])=0,\"\",IF(AND(AY$5=$E27,$F27=1),Meilenstein_Markierung,\"\")),\"\")","v":""},{"$f":"IFERROR(IF(LEN(Meilensteine[[#This Row],[Anzahl Tage]])=0,\"\",IF(AND(AZ$5=$E27,$F27=1),Meilenstein_Markierung,\"\")),\"\")","v":""},{"$f":"IFERROR(IF(LEN(Meilensteine[[#This Row],[Anzahl Tage]])=0,\"\",IF(AND(BA$5=$E27,$F27=1),Meilenstein_Markierung,\"\")),\"\")","v":""},{"$f":"IFERROR(IF(LEN(Meilensteine[[#This Row],[Anzahl Tage]])=0,\"\",IF(AND(BB$5=$E27,$F27=1),Meilenstein_Markierung,\"\")),\"\")","v":""},{"$f":"IFERROR(IF(LEN(Meilensteine[[#This Row],[Anzahl Tage]])=0,\"\",IF(AND(BC$5=$E27,$F27=1),Meilenstein_Markierung,\"\")),\"\")","v":""},{"$f":"IFERROR(IF(LEN(Meilensteine[[#This Row],[Anzahl Tage]])=0,\"\",IF(AND(BD$5=$E27,$F27=1),Meilenstein_Markierung,\"\")),\"\")","v":""},{"$f":"IFERROR(IF(LEN(Meilensteine[[#This Row],[Anzahl Tage]])=0,\"\",IF(AND(BE$5=$E27,$F27=1),Meilenstein_Markierung,\"\")),\"\")","v":""},{"$f":"IFERROR(IF(LEN(Meilensteine[[#This Row],[Anzahl Tage]])=0,\"\",IF(AND(BF$5=$E27,$F27=1),Meilenstein_Markierung,\"\")),\"\")","v":""},{"$f":"IFERROR(IF(LEN(Meilensteine[[#This Row],[Anzahl Tage]])=0,\"\",IF(AND(BG$5=$E27,$F27=1),Meilenstein_Markierung,\"\")),\"\")","v":""},{"$f":"IFERROR(IF(LEN(Meilensteine[[#This Row],[Anzahl Tage]])=0,\"\",IF(AND(BH$5=$E27,$F27=1),Meilenstein_Markierung,\"\")),\"\")","v":""},{"$f":"IFERROR(IF(LEN(Meilensteine[[#This Row],[Anzahl Tage]])=0,\"\",IF(AND(BI$5=$E27,$F27=1),Meilenstein_Markierung,\"\")),\"\")","v":""},{"$f":"IFERROR(IF(LEN(Meilensteine[[#This Row],[Anzahl Tage]])=0,\"\",IF(AND(BJ$5=$E27,$F27=1),Meilenstein_Markierung,\"\")),\"\")","v":""},{"$f":"IFERROR(IF(LEN(Meilensteine[[#This Row],[Anzahl Tage]])=0,\"\",IF(AND(BK$5=$E27,$F27=1),Meilenstein_Markierung,\"\")),\"\")","v":""}]
[null,"Aufgabe 2",null,null,{"$f":"TODAY()+29","v":"2018-10-18"},5,null,{"$f":"IFERROR(IF(LEN(Meilensteine[[#This Row],[Anzahl Tage]])=0,\"\",IF(AND(H$5=$E28,$F28=1),Meilenstein_Markierung,\"\")),\"\")","v":""},{"$f":"IFERROR(IF(LEN(Meilensteine[[#This Row],[Anzahl Tage]])=0,\"\",IF(AND(I$5=$E28,$F28=1),Meilenstein_Markierung,\"\")),\"\")","v":""},{"$f":"IFERROR(IF(LEN(Meilensteine[[#This Row],[Anzahl Tage]])=0,\"\",IF(AND(J$5=$E28,$F28=1),Meilenstein_Markierung,\"\")),\"\")","v":""},{"$f":"IFERROR(IF(LEN(Meilensteine[[#This Row],[Anzahl Tage]])=0,\"\",IF(AND(K$5=$E28,$F28=1),Meilenstein_Markierung,\"\")),\"\")","v":""},{"$f":"IFERROR(IF(LEN(Meilensteine[[#This Row],[Anzahl Tage]])=0,\"\",IF(AND(L$5=$E28,$F28=1),Meilenstein_Markierung,\"\")),\"\")","v":""},{"$f":"IFERROR(IF(LEN(Meilensteine[[#This Row],[Anzahl Tage]])=0,\"\",IF(AND(M$5=$E28,$F28=1),Meilenstein_Markierung,\"\")),\"\")","v":""},{"$f":"IFERROR(IF(LEN(Meilensteine[[#This Row],[Anzahl Tage]])=0,\"\",IF(AND(N$5=$E28,$F28=1),Meilenstein_Markierung,\"\")),\"\")","v":""},{"$f":"IFERROR(IF(LEN(Meilensteine[[#This Row],[Anzahl Tage]])=0,\"\",IF(AND(O$5=$E28,$F28=1),Meilenstein_Markierung,\"\")),\"\")","v":""},{"$f":"IFERROR(IF(LEN(Meilensteine[[#This Row],[Anzahl Tage]])=0,\"\",IF(AND(P$5=$E28,$F28=1),Meilenstein_Markierung,\"\")),\"\")","v":""},{"$f":"IFERROR(IF(LEN(Meilensteine[[#This Row],[Anzahl Tage]])=0,\"\",IF(AND(Q$5=$E28,$F28=1),Meilenstein_Markierung,\"\")),\"\")","v":""},{"$f":"IFERROR(IF(LEN(Meilensteine[[#This Row],[Anzahl Tage]])=0,\"\",IF(AND(R$5=$E28,$F28=1),Meilenstein_Markierung,\"\")),\"\")","v":""},{"$f":"IFERROR(IF(LEN(Meilensteine[[#This Row],[Anzahl Tage]])=0,\"\",IF(AND(S$5=$E28,$F28=1),Meilenstein_Markierung,\"\")),\"\")","v":""},{"$f":"IFERROR(IF(LEN(Meilensteine[[#This Row],[Anzahl Tage]])=0,\"\",IF(AND(T$5=$E28,$F28=1),Meilenstein_Markierung,\"\")),\"\")","v":""},{"$f":"IFERROR(IF(LEN(Meilensteine[[#This Row],[Anzahl Tage]])=0,\"\",IF(AND(U$5=$E28,$F28=1),Meilenstein_Markierung,\"\")),\"\")","v":""},{"$f":"IFERROR(IF(LEN(Meilensteine[[#This Row],[Anzahl Tage]])=0,\"\",IF(AND(V$5=$E28,$F28=1),Meilenstein_Markierung,\"\")),\"\")","v":""},{"$f":"IFERROR(IF(LEN(Meilensteine[[#This Row],[Anzahl Tage]])=0,\"\",IF(AND(W$5=$E28,$F28=1),Meilenstein_Markierung,\"\")),\"\")","v":""},{"$f":"IFERROR(IF(LEN(Meilensteine[[#This Row],[Anzahl Tage]])=0,\"\",IF(AND(X$5=$E28,$F28=1),Meilenstein_Markierung,\"\")),\"\")","v":""},{"$f":"IFERROR(IF(LEN(Meilensteine[[#This Row],[Anzahl Tage]])=0,\"\",IF(AND(Y$5=$E28,$F28=1),Meilenstein_Markierung,\"\")),\"\")","v":""},{"$f":"IFERROR(IF(LEN(Meilensteine[[#This Row],[Anzahl Tage]])=0,\"\",IF(AND(Z$5=$E28,$F28=1),Meilenstein_Markierung,\"\")),\"\")","v":""},{"$f":"IFERROR(IF(LEN(Meilensteine[[#This Row],[Anzahl Tage]])=0,\"\",IF(AND(AA$5=$E28,$F28=1),Meilenstein_Markierung,\"\")),\"\")","v":""},{"$f":"IFERROR(IF(LEN(Meilensteine[[#This Row],[Anzahl Tage]])=0,\"\",IF(AND(AB$5=$E28,$F28=1),Meilenstein_Markierung,\"\")),\"\")","v":""},{"$f":"IFERROR(IF(LEN(Meilensteine[[#This Row],[Anzahl Tage]])=0,\"\",IF(AND(AC$5=$E28,$F28=1),Meilenstein_Markierung,\"\")),\"\")","v":""},{"$f":"IFERROR(IF(LEN(Meilensteine[[#This Row],[Anzahl Tage]])=0,\"\",IF(AND(AD$5=$E28,$F28=1),Meilenstein_Markierung,\"\")),\"\")","v":""},{"$f":"IFERROR(IF(LEN(Meilensteine[[#This Row],[Anzahl Tage]])=0,\"\",IF(AND(AE$5=$E28,$F28=1),Meilenstein_Markierung,\"\")),\"\")","v":""},{"$f":"IFERROR(IF(LEN(Meilensteine[[#This Row],[Anzahl Tage]])=0,\"\",IF(AND(AF$5=$E28,$F28=1),Meilenstein_Markierung,\"\")),\"\")","v":""},{"$f":"IFERROR(IF(LEN(Meilensteine[[#This Row],[Anzahl Tage]])=0,\"\",IF(AND(AG$5=$E28,$F28=1),Meilenstein_Markierung,\"\")),\"\")","v":""},{"$f":"IFERROR(IF(LEN(Meilensteine[[#This Row],[Anzahl Tage]])=0,\"\",IF(AND(AH$5=$E28,$F28=1),Meilenstein_Markierung,\"\")),\"\")","v":""},{"$f":"IFERROR(IF(LEN(Meilensteine[[#This Row],[Anzahl Tage]])=0,\"\",IF(AND(AI$5=$E28,$F28=1),Meilenstein_Markierung,\"\")),\"\")","v":""},{"$f":"IFERROR(IF(LEN(Meilensteine[[#This Row],[Anzahl Tage]])=0,\"\",IF(AND(AJ$5=$E28,$F28=1),Meilenstein_Markierung,\"\")),\"\")","v":""},{"$f":"IFERROR(IF(LEN(Meilensteine[[#This Row],[Anzahl Tage]])=0,\"\",IF(AND(AK$5=$E28,$F28=1),Meilenstein_Markierung,\"\")),\"\")","v":""},{"$f":"IFERROR(IF(LEN(Meilensteine[[#This Row],[Anzahl Tage]])=0,\"\",IF(AND(AL$5=$E28,$F28=1),Meilenstein_Markierung,\"\")),\"\")","v":""},{"$f":"IFERROR(IF(LEN(Meilensteine[[#This Row],[Anzahl Tage]])=0,\"\",IF(AND(AM$5=$E28,$F28=1),Meilenstein_Markierung,\"\")),\"\")","v":""},{"$f":"IFERROR(IF(LEN(Meilensteine[[#This Row],[Anzahl Tage]])=0,\"\",IF(AND(AN$5=$E28,$F28=1),Meilenstein_Markierung,\"\")),\"\")","v":""},{"$f":"IFERROR(IF(LEN(Meilensteine[[#This Row],[Anzahl Tage]])=0,\"\",IF(AND(AO$5=$E28,$F28=1),Meilenstein_Markierung,\"\")),\"\")","v":""},{"$f":"IFERROR(IF(LEN(Meilensteine[[#This Row],[Anzahl Tage]])=0,\"\",IF(AND(AP$5=$E28,$F28=1),Meilenstein_Markierung,\"\")),\"\")","v":""},{"$f":"IFERROR(IF(LEN(Meilensteine[[#This Row],[Anzahl Tage]])=0,\"\",IF(AND(AQ$5=$E28,$F28=1),Meilenstein_Markierung,\"\")),\"\")","v":""},{"$f":"IFERROR(IF(LEN(Meilensteine[[#This Row],[Anzahl Tage]])=0,\"\",IF(AND(AR$5=$E28,$F28=1),Meilenstein_Markierung,\"\")),\"\")","v":""},{"$f":"IFERROR(IF(LEN(Meilensteine[[#This Row],[Anzahl Tage]])=0,\"\",IF(AND(AS$5=$E28,$F28=1),Meilenstein_Markierung,\"\")),\"\")","v":""},{"$f":"IFERROR(IF(LEN(Meilensteine[[#This Row],[Anzahl Tage]])=0,\"\",IF(AND(AT$5=$E28,$F28=1),Meilenstein_Markierung,\"\")),\"\")","v":""},{"$f":"IFERROR(IF(LEN(Meilensteine[[#This Row],[Anzahl Tage]])=0,\"\",IF(AND(AU$5=$E28,$F28=1),Meilenstein_Markierung,\"\")),\"\")","v":""},{"$f":"IFERROR(IF(LEN(Meilensteine[[#This Row],[Anzahl Tage]])=0,\"\",IF(AND(AV$5=$E28,$F28=1),Meilenstein_Markierung,\"\")),\"\")","v":""},{"$f":"IFERROR(IF(LEN(Meilensteine[[#This Row],[Anzahl Tage]])=0,\"\",IF(AND(AW$5=$E28,$F28=1),Meilenstein_Markierung,\"\")),\"\")","v":""},{"$f":"IFERROR(IF(LEN(Meilensteine[[#This Row],[Anzahl Tage]])=0,\"\",IF(AND(AX$5=$E28,$F28=1),Meilenstein_Markierung,\"\")),\"\")","v":""},{"$f":"IFERROR(IF(LEN(Meilensteine[[#This Row],[Anzahl Tage]])=0,\"\",IF(AND(AY$5=$E28,$F28=1),Meilenstein_Markierung,\"\")),\"\")","v":""},{"$f":"IFERROR(IF(LEN(Meilensteine[[#This Row],[Anzahl Tage]])=0,\"\",IF(AND(AZ$5=$E28,$F28=1),Meilenstein_Markierung,\"\")),\"\")","v":""},{"$f":"IFERROR(IF(LEN(Meilensteine[[#This Row],[Anzahl Tage]])=0,\"\",IF(AND(BA$5=$E28,$F28=1),Meilenstein_Markierung,\"\")),\"\")","v":""},{"$f":"IFERROR(IF(LEN(Meilensteine[[#This Row],[Anzahl Tage]])=0,\"\",IF(AND(BB$5=$E28,$F28=1),Meilenstein_Markierung,\"\")),\"\")","v":""},{"$f":"IFERROR(IF(LEN(Meilensteine[[#This Row],[Anzahl Tage]])=0,\"\",IF(AND(BC$5=$E28,$F28=1),Meilenstein_Markierung,\"\")),\"\")","v":""},{"$f":"IFERROR(IF(LEN(Meilensteine[[#This Row],[Anzahl Tage]])=0,\"\",IF(AND(BD$5=$E28,$F28=1),Meilenstein_Markierung,\"\")),\"\")","v":""},{"$f":"IFERROR(IF(LEN(Meilensteine[[#This Row],[Anzahl Tage]])=0,\"\",IF(AND(BE$5=$E28,$F28=1),Meilenstein_Markierung,\"\")),\"\")","v":""},{"$f":"IFERROR(IF(LEN(Meilensteine[[#This Row],[Anzahl Tage]])=0,\"\",IF(AND(BF$5=$E28,$F28=1),Meilenstein_Markierung,\"\")),\"\")","v":""},{"$f":"IFERROR(IF(LEN(Meilensteine[[#This Row],[Anzahl Tage]])=0,\"\",IF(AND(BG$5=$E28,$F28=1),Meilenstein_Markierung,\"\")),\"\")","v":""},{"$f":"IFERROR(IF(LEN(Meilensteine[[#This Row],[Anzahl Tage]])=0,\"\",IF(AND(BH$5=$E28,$F28=1),Meilenstein_Markierung,\"\")),\"\")","v":""},{"$f":"IFERROR(IF(LEN(Meilensteine[[#This Row],[Anzahl Tage]])=0,\"\",IF(AND(BI$5=$E28,$F28=1),Meilenstein_Markierung,\"\")),\"\")","v":""},{"$f":"IFERROR(IF(LEN(Meilensteine[[#This Row],[Anzahl Tage]])=0,\"\",IF(AND(BJ$5=$E28,$F28=1),Meilenstein_Markierung,\"\")),\"\")","v":""},{"$f":"IFERROR(IF(LEN(Meilensteine[[#This Row],[Anzahl Tage]])=0,\"\",IF(AND(BK$5=$E28,$F28=1),Meilenstein_Markierung,\"\")),\"\")","v":""}]
[null,"Aufgabe 3",null,null,{"$f":"TODAY()+80","v":"2018-12-08"},5,null,{"$f":"IFERROR(IF(LEN(Meilensteine[[#This Row],[Anzahl Tage]])=0,\"\",IF(AND(H$5=$E29,$F29=1),Meilenstein_Markierung,\"\")),\"\")","v":""},{"$f":"IFERROR(IF(LEN(Meilensteine[[#This Row],[Anzahl Tage]])=0,\"\",IF(AND(I$5=$E29,$F29=1),Meilenstein_Markierung,\"\")),\"\")","v":""},{"$f":"IFERROR(IF(LEN(Meilensteine[[#This Row],[Anzahl Tage]])=0,\"\",IF(AND(J$5=$E29,$F29=1),Meilenstein_Markierung,\"\")),\"\")","v":""},{"$f":"IFERROR(IF(LEN(Meilensteine[[#This Row],[Anzahl Tage]])=0,\"\",IF(AND(K$5=$E29,$F29=1),Meilenstein_Markierung,\"\")),\"\")","v":""},{"$f":"IFERROR(IF(LEN(Meilensteine[[#This Row],[Anzahl Tage]])=0,\"\",IF(AND(L$5=$E29,$F29=1),Meilenstein_Markierung,\"\")),\"\")","v":""},{"$f":"IFERROR(IF(LEN(Meilensteine[[#This Row],[Anzahl Tage]])=0,\"\",IF(AND(M$5=$E29,$F29=1),Meilenstein_Markierung,\"\")),\"\")","v":""},{"$f":"IFERROR(IF(LEN(Meilensteine[[#This Row],[Anzahl Tage]])=0,\"\",IF(AND(N$5=$E29,$F29=1),Meilenstein_Markierung,\"\")),\"\")","v":""},{"$f":"IFERROR(IF(LEN(Meilensteine[[#This Row],[Anzahl Tage]])=0,\"\",IF(AND(O$5=$E29,$F29=1),Meilenstein_Markierung,\"\")),\"\")","v":""},{"$f":"IFERROR(IF(LEN(Meilensteine[[#This Row],[Anzahl Tage]])=0,\"\",IF(AND(P$5=$E29,$F29=1),Meilenstein_Markierung,\"\")),\"\")","v":""},{"$f":"IFERROR(IF(LEN(Meilensteine[[#This Row],[Anzahl Tage]])=0,\"\",IF(AND(Q$5=$E29,$F29=1),Meilenstein_Markierung,\"\")),\"\")","v":""},{"$f":"IFERROR(IF(LEN(Meilensteine[[#This Row],[Anzahl Tage]])=0,\"\",IF(AND(R$5=$E29,$F29=1),Meilenstein_Markierung,\"\")),\"\")","v":""},{"$f":"IFERROR(IF(LEN(Meilensteine[[#This Row],[Anzahl Tage]])=0,\"\",IF(AND(S$5=$E29,$F29=1),Meilenstein_Markierung,\"\")),\"\")","v":""},{"$f":"IFERROR(IF(LEN(Meilensteine[[#This Row],[Anzahl Tage]])=0,\"\",IF(AND(T$5=$E29,$F29=1),Meilenstein_Markierung,\"\")),\"\")","v":""},{"$f":"IFERROR(IF(LEN(Meilensteine[[#This Row],[Anzahl Tage]])=0,\"\",IF(AND(U$5=$E29,$F29=1),Meilenstein_Markierung,\"\")),\"\")","v":""},{"$f":"IFERROR(IF(LEN(Meilensteine[[#This Row],[Anzahl Tage]])=0,\"\",IF(AND(V$5=$E29,$F29=1),Meilenstein_Markierung,\"\")),\"\")","v":""},{"$f":"IFERROR(IF(LEN(Meilensteine[[#This Row],[Anzahl Tage]])=0,\"\",IF(AND(W$5=$E29,$F29=1),Meilenstein_Markierung,\"\")),\"\")","v":""},{"$f":"IFERROR(IF(LEN(Meilensteine[[#This Row],[Anzahl Tage]])=0,\"\",IF(AND(X$5=$E29,$F29=1),Meilenstein_Markierung,\"\")),\"\")","v":""},{"$f":"IFERROR(IF(LEN(Meilensteine[[#This Row],[Anzahl Tage]])=0,\"\",IF(AND(Y$5=$E29,$F29=1),Meilenstein_Markierung,\"\")),\"\")","v":""},{"$f":"IFERROR(IF(LEN(Meilensteine[[#This Row],[Anzahl Tage]])=0,\"\",IF(AND(Z$5=$E29,$F29=1),Meilenstein_Markierung,\"\")),\"\")","v":""},{"$f":"IFERROR(IF(LEN(Meilensteine[[#This Row],[Anzahl Tage]])=0,\"\",IF(AND(AA$5=$E29,$F29=1),Meilenstein_Markierung,\"\")),\"\")","v":""},{"$f":"IFERROR(IF(LEN(Meilensteine[[#This Row],[Anzahl Tage]])=0,\"\",IF(AND(AB$5=$E29,$F29=1),Meilenstein_Markierung,\"\")),\"\")","v":""},{"$f":"IFERROR(IF(LEN(Meilensteine[[#This Row],[Anzahl Tage]])=0,\"\",IF(AND(AC$5=$E29,$F29=1),Meilenstein_Markierung,\"\")),\"\")","v":""},{"$f":"IFERROR(IF(LEN(Meilensteine[[#This Row],[Anzahl Tage]])=0,\"\",IF(AND(AD$5=$E29,$F29=1),Meilenstein_Markierung,\"\")),\"\")","v":""},{"$f":"IFERROR(IF(LEN(Meilensteine[[#This Row],[Anzahl Tage]])=0,\"\",IF(AND(AE$5=$E29,$F29=1),Meilenstein_Markierung,\"\")),\"\")","v":""},{"$f":"IFERROR(IF(LEN(Meilensteine[[#This Row],[Anzahl Tage]])=0,\"\",IF(AND(AF$5=$E29,$F29=1),Meilenstein_Markierung,\"\")),\"\")","v":""},{"$f":"IFERROR(IF(LEN(Meilensteine[[#This Row],[Anzahl Tage]])=0,\"\",IF(AND(AG$5=$E29,$F29=1),Meilenstein_Markierung,\"\")),\"\")","v":""},{"$f":"IFERROR(IF(LEN(Meilensteine[[#This Row],[Anzahl Tage]])=0,\"\",IF(AND(AH$5=$E29,$F29=1),Meilenstein_Markierung,\"\")),\"\")","v":""},{"$f":"IFERROR(IF(LEN(Meilensteine[[#This Row],[Anzahl Tage]])=0,\"\",IF(AND(AI$5=$E29,$F29=1),Meilenstein_Markierung,\"\")),\"\")","v":""},{"$f":"IFERROR(IF(LEN(Meilensteine[[#This Row],[Anzahl Tage]])=0,\"\",IF(AND(AJ$5=$E29,$F29=1),Meilenstein_Markierung,\"\")),\"\")","v":""},{"$f":"IFERROR(IF(LEN(Meilensteine[[#This Row],[Anzahl Tage]])=0,\"\",IF(AND(AK$5=$E29,$F29=1),Meilenstein_Markierung,\"\")),\"\")","v":""},{"$f":"IFERROR(IF(LEN(Meilensteine[[#This Row],[Anzahl Tage]])=0,\"\",IF(AND(AL$5=$E29,$F29=1),Meilenstein_Markierung,\"\")),\"\")","v":""},{"$f":"IFERROR(IF(LEN(Meilensteine[[#This Row],[Anzahl Tage]])=0,\"\",IF(AND(AM$5=$E29,$F29=1),Meilenstein_Markierung,\"\")),\"\")","v":""},{"$f":"IFERROR(IF(LEN(Meilensteine[[#This Row],[Anzahl Tage]])=0,\"\",IF(AND(AN$5=$E29,$F29=1),Meilenstein_Markierung,\"\")),\"\")","v":""},{"$f":"IFERROR(IF(LEN(Meilensteine[[#This Row],[Anzahl Tage]])=0,\"\",IF(AND(AO$5=$E29,$F29=1),Meilenstein_Markierung,\"\")),\"\")","v":""},{"$f":"IFERROR(IF(LEN(Meilensteine[[#This Row],[Anzahl Tage]])=0,\"\",IF(AND(AP$5=$E29,$F29=1),Meilenstein_Markierung,\"\")),\"\")","v":""},{"$f":"IFERROR(IF(LEN(Meilensteine[[#This Row],[Anzahl Tage]])=0,\"\",IF(AND(AQ$5=$E29,$F29=1),Meilenstein_Markierung,\"\")),\"\")","v":""},{"$f":"IFERROR(IF(LEN(Meilensteine[[#This Row],[Anzahl Tage]])=0,\"\",IF(AND(AR$5=$E29,$F29=1),Meilenstein_Markierung,\"\")),\"\")","v":""},{"$f":"IFERROR(IF(LEN(Meilensteine[[#This Row],[Anzahl Tage]])=0,\"\",IF(AND(AS$5=$E29,$F29=1),Meilenstein_Markierung,\"\")),\"\")","v":""},{"$f":"IFERROR(IF(LEN(Meilensteine[[#This Row],[Anzahl Tage]])=0,\"\",IF(AND(AT$5=$E29,$F29=1),Meilenstein_Markierung,\"\")),\"\")","v":""},{"$f":"IFERROR(IF(LEN(Meilensteine[[#This Row],[Anzahl Tage]])=0,\"\",IF(AND(AU$5=$E29,$F29=1),Meilenstein_Markierung,\"\")),\"\")","v":""},{"$f":"IFERROR(IF(LEN(Meilensteine[[#This Row],[Anzahl Tage]])=0,\"\",IF(AND(AV$5=$E29,$F29=1),Meilenstein_Markierung,\"\")),\"\")","v":""},{"$f":"IFERROR(IF(LEN(Meilensteine[[#This Row],[Anzahl Tage]])=0,\"\",IF(AND(AW$5=$E29,$F29=1),Meilenstein_Markierung,\"\")),\"\")","v":""},{"$f":"IFERROR(IF(LEN(Meilensteine[[#This Row],[Anzahl Tage]])=0,\"\",IF(AND(AX$5=$E29,$F29=1),Meilenstein_Markierung,\"\")),\"\")","v":""},{"$f":"IFERROR(IF(LEN(Meilensteine[[#This Row],[Anzahl Tage]])=0,\"\",IF(AND(AY$5=$E29,$F29=1),Meilenstein_Markierung,\"\")),\"\")","v":""},{"$f":"IFERROR(IF(LEN(Meilensteine[[#This Row],[Anzahl Tage]])=0,\"\",IF(AND(AZ$5=$E29,$F29=1),Meilenstein_Markierung,\"\")),\"\")","v":""},{"$f":"IFERROR(IF(LEN(Meilensteine[[#This Row],[Anzahl Tage]])=0,\"\",IF(AND(BA$5=$E29,$F29=1),Meilenstein_Markierung,\"\")),\"\")","v":""},{"$f":"IFERROR(IF(LEN(Meilensteine[[#This Row],[Anzahl Tage]])=0,\"\",IF(AND(BB$5=$E29,$F29=1),Meilenstein_Markierung,\"\")),\"\")","v":""},{"$f":"IFERROR(IF(LEN(Meilensteine[[#This Row],[Anzahl Tage]])=0,\"\",IF(AND(BC$5=$E29,$F29=1),Meilenstein_Markierung,\"\")),\"\")","v":""},{"$f":"IFERROR(IF(LEN(Meilensteine[[#This Row],[Anzahl Tage]])=0,\"\",IF(AND(BD$5=$E29,$F29=1),Meilenstein_Markierung,\"\")),\"\")","v":""},{"$f":"IFERROR(IF(LEN(Meilensteine[[#This Row],[Anzahl Tage]])=0,\"\",IF(AND(BE$5=$E29,$F29=1),Meilenstein_Markierung,\"\")),\"\")","v":""},{"$f":"IFERROR(IF(LEN(Meilensteine[[#This Row],[Anzahl Tage]])=0,\"\",IF(AND(BF$5=$E29,$F29=1),Meilenstein_Markierung,\"\")),\"\")","v":""},{"$f":"IFERROR(IF(LEN(Meilensteine[[#This Row],[Anzahl Tage]])=0,\"\",IF(AND(BG$5=$E29,$F29=1),Meilenstein_Markierung,\"\")),\"\")","v":""},{"$f":"IFERROR(IF(LEN(Meilensteine[[#This Row],[Anzahl Tage]])=0,\"\",IF(AND(BH$5=$E29,$F29=1),Meilenstein_Markierung,\"\")),\"\")","v":""},{"$f":"IFERROR(IF(LEN(Meilensteine[[#This Row],[Anzahl Tage]])=0,\"\",IF(AND(BI$5=$E29,$F29=1),Meilenstein_Markierung,\"\")),\"\")","v":""},{"$f":"IFERROR(IF(LEN(Meilensteine[[#This Row],[Anzahl Tage]])=0,\"\",IF(AND(BJ$5=$E29,$F29=1),Meilenstein_Markierung,\"\")),\"\")","v":""},{"$f":"IFERROR(IF(LEN(Meilensteine[[#This Row],[Anzahl Tage]])=0,\"\",IF(AND(BK$5=$E29,$F29=1),Meilenstein_Markierung,\"\")),\"\")","v":""}]
[null,"Aufgabe 4",{"$nulls":5},{"$f":"IFERROR(IF(LEN(Meilensteine[[#This Row],[Anzahl Tage]])=0,\"\",IF(AND(H$5=$E30,$F30=1),Meilenstein_Markierung,\"\")),\"\")","v":""},{"$f":"IFERROR(IF(LEN(Meilensteine[[#This Row],[Anzahl Tage]])=0,\"\",IF(AND(I$5=$E30,$F30=1),Meilenstein_Markierung,\"\")),\"\")","v":""},{"$f":"IFERROR(IF(LEN(Meilensteine[[#This Row],[Anzahl Tage]])=0,\"\",IF(AND(J$5=$E30,$F30=1),Meilenstein_Markierung,\"\")),\"\")","v":""},{"$f":"IFERROR(IF(LEN(Meilensteine[[#This Row],[Anzahl Tage]])=0,\"\",IF(AND(K$5=$E30,$F30=1),Meilenstein_Markierung,\"\")),\"\")","v":""},{"$f":"IFERROR(IF(LEN(Meilensteine[[#This Row],[Anzahl Tage]])=0,\"\",IF(AND(L$5=$E30,$F30=1),Meilenstein_Markierung,\"\")),\"\")","v":""},{"$f":"IFERROR(IF(LEN(Meilensteine[[#This Row],[Anzahl Tage]])=0,\"\",IF(AND(M$5=$E30,$F30=1),Meilenstein_Markierung,\"\")),\"\")","v":""},{"$f":"IFERROR(IF(LEN(Meilensteine[[#This Row],[Anzahl Tage]])=0,\"\",IF(AND(N$5=$E30,$F30=1),Meilenstein_Markierung,\"\")),\"\")","v":""},{"$f":"IFERROR(IF(LEN(Meilensteine[[#This Row],[Anzahl Tage]])=0,\"\",IF(AND(O$5=$E30,$F30=1),Meilenstein_Markierung,\"\")),\"\")","v":""},{"$f":"IFERROR(IF(LEN(Meilensteine[[#This Row],[Anzahl Tage]])=0,\"\",IF(AND(P$5=$E30,$F30=1),Meilenstein_Markierung,\"\")),\"\")","v":""},{"$f":"IFERROR(IF(LEN(Meilensteine[[#This Row],[Anzahl Tage]])=0,\"\",IF(AND(Q$5=$E30,$F30=1),Meilenstein_Markierung,\"\")),\"\")","v":""},{"$f":"IFERROR(IF(LEN(Meilensteine[[#This Row],[Anzahl Tage]])=0,\"\",IF(AND(R$5=$E30,$F30=1),Meilenstein_Markierung,\"\")),\"\")","v":""},{"$f":"IFERROR(IF(LEN(Meilensteine[[#This Row],[Anzahl Tage]])=0,\"\",IF(AND(S$5=$E30,$F30=1),Meilenstein_Markierung,\"\")),\"\")","v":""},{"$f":"IFERROR(IF(LEN(Meilensteine[[#This Row],[Anzahl Tage]])=0,\"\",IF(AND(T$5=$E30,$F30=1),Meilenstein_Markierung,\"\")),\"\")","v":""},{"$f":"IFERROR(IF(LEN(Meilensteine[[#This Row],[Anzahl Tage]])=0,\"\",IF(AND(U$5=$E30,$F30=1),Meilenstein_Markierung,\"\")),\"\")","v":""},{"$f":"IFERROR(IF(LEN(Meilensteine[[#This Row],[Anzahl Tage]])=0,\"\",IF(AND(V$5=$E30,$F30=1),Meilenstein_Markierung,\"\")),\"\")","v":""},{"$f":"IFERROR(IF(LEN(Meilensteine[[#This Row],[Anzahl Tage]])=0,\"\",IF(AND(W$5=$E30,$F30=1),Meilenstein_Markierung,\"\")),\"\")","v":""},{"$f":"IFERROR(IF(LEN(Meilensteine[[#This Row],[Anzahl Tage]])=0,\"\",IF(AND(X$5=$E30,$F30=1),Meilenstein_Markierung,\"\")),\"\")","v":""},{"$f":"IFERROR(IF(LEN(Meilensteine[[#This Row],[Anzahl Tage]])=0,\"\",IF(AND(Y$5=$E30,$F30=1),Meilenstein_Markierung,\"\")),\"\")","v":""},{"$f":"IFERROR(IF(LEN(Meilensteine[[#This Row],[Anzahl Tage]])=0,\"\",IF(AND(Z$5=$E30,$F30=1),Meilenstein_Markierung,\"\")),\"\")","v":""},{"$f":"IFERROR(IF(LEN(Meilensteine[[#This Row],[Anzahl Tage]])=0,\"\",IF(AND(AA$5=$E30,$F30=1),Meilenstein_Markierung,\"\")),\"\")","v":""},{"$f":"IFERROR(IF(LEN(Meilensteine[[#This Row],[Anzahl Tage]])=0,\"\",IF(AND(AB$5=$E30,$F30=1),Meilenstein_Markierung,\"\")),\"\")","v":""},{"$f":"IFERROR(IF(LEN(Meilensteine[[#This Row],[Anzahl Tage]])=0,\"\",IF(AND(AC$5=$E30,$F30=1),Meilenstein_Markierung,\"\")),\"\")","v":""},{"$f":"IFERROR(IF(LEN(Meilensteine[[#This Row],[Anzahl Tage]])=0,\"\",IF(AND(AD$5=$E30,$F30=1),Meilenstein_Markierung,\"\")),\"\")","v":""},{"$f":"IFERROR(IF(LEN(Meilensteine[[#This Row],[Anzahl Tage]])=0,\"\",IF(AND(AE$5=$E30,$F30=1),Meilenstein_Markierung,\"\")),\"\")","v":""},{"$f":"IFERROR(IF(LEN(Meilensteine[[#This Row],[Anzahl Tage]])=0,\"\",IF(AND(AF$5=$E30,$F30=1),Meilenstein_Markierung,\"\")),\"\")","v":""},{"$f":"IFERROR(IF(LEN(Meilensteine[[#This Row],[Anzahl Tage]])=0,\"\",IF(AND(AG$5=$E30,$F30=1),Meilenstein_Markierung,\"\")),\"\")","v":""},{"$f":"IFERROR(IF(LEN(Meilensteine[[#This Row],[Anzahl Tage]])=0,\"\",IF(AND(AH$5=$E30,$F30=1),Meilenstein_Markierung,\"\")),\"\")","v":""},{"$f":"IFERROR(IF(LEN(Meilensteine[[#This Row],[Anzahl Tage]])=0,\"\",IF(AND(AI$5=$E30,$F30=1),Meilenstein_Markierung,\"\")),\"\")","v":""},{"$f":"IFERROR(IF(LEN(Meilensteine[[#This Row],[Anzahl Tage]])=0,\"\",IF(AND(AJ$5=$E30,$F30=1),Meilenstein_Markierung,\"\")),\"\")","v":""},{"$f":"IFERROR(IF(LEN(Meilensteine[[#This Row],[Anzahl Tage]])=0,\"\",IF(AND(AK$5=$E30,$F30=1),Meilenstein_Markierung,\"\")),\"\")","v":""},{"$f":"IFERROR(IF(LEN(Meilensteine[[#This Row],[Anzahl Tage]])=0,\"\",IF(AND(AL$5=$E30,$F30=1),Meilenstein_Markierung,\"\")),\"\")","v":""},{"$f":"IFERROR(IF(LEN(Meilensteine[[#This Row],[Anzahl Tage]])=0,\"\",IF(AND(AM$5=$E30,$F30=1),Meilenstein_Markierung,\"\")),\"\")","v":""},{"$f":"IFERROR(IF(LEN(Meilensteine[[#This Row],[Anzahl Tage]])=0,\"\",IF(AND(AN$5=$E30,$F30=1),Meilenstein_Markierung,\"\")),\"\")","v":""},{"$f":"IFERROR(IF(LEN(Meilensteine[[#This Row],[Anzahl Tage]])=0,\"\",IF(AND(AO$5=$E30,$F30=1),Meilenstein_Markierung,\"\")),\"\")","v":""},{"$f":"IFERROR(IF(LEN(Meilensteine[[#This Row],[Anzahl Tage]])=0,\"\",IF(AND(AP$5=$E30,$F30=1),Meilenstein_Markierung,\"\")),\"\")","v":""},{"$f":"IFERROR(IF(LEN(Meilensteine[[#This Row],[Anzahl Tage]])=0,\"\",IF(AND(AQ$5=$E30,$F30=1),Meilenstein_Markierung,\"\")),\"\")","v":""},{"$f":"IFERROR(IF(LEN(Meilensteine[[#This Row],[Anzahl Tage]])=0,\"\",IF(AND(AR$5=$E30,$F30=1),Meilenstein_Markierung,\"\")),\"\")","v":""},{"$f":"IFERROR(IF(LEN(Meilensteine[[#This Row],[Anzahl Tage]])=0,\"\",IF(AND(AS$5=$E30,$F30=1),Meilenstein_Markierung,\"\")),\"\")","v":""},{"$f":"IFERROR(IF(LEN(Meilensteine[[#This Row],[Anzahl Tage]])=0,\"\",IF(AND(AT$5=$E30,$F30=1),Meilenstein_Markierung,\"\")),\"\")","v":""},{"$f":"IFERROR(IF(LEN(Meilensteine[[#This Row],[Anzahl Tage]])=0,\"\",IF(AND(AU$5=$E30,$F30=1),Meilenstein_Markierung,\"\")),\"\")","v":""},{"$f":"IFERROR(IF(LEN(Meilensteine[[#This Row],[Anzahl Tage]])=0,\"\",IF(AND(AV$5=$E30,$F30=1),Meilenstein_Markierung,\"\")),\"\")","v":""},{"$f":"IFERROR(IF(LEN(Meilensteine[[#This Row],[Anzahl Tage]])=0,\"\",IF(AND(AW$5=$E30,$F30=1),Meilenstein_Markierung,\"\")),\"\")","v":""},{"$f":"IFERROR(IF(LEN(Meilensteine[[#This Row],[Anzahl Tage]])=0,\"\",IF(AND(AX$5=$E30,$F30=1),Meilenstein_Markierung,\"\")),\"\")","v":""},{"$f":"IFERROR(IF(LEN(Meilensteine[[#This Row],[Anzahl Tage]])=0,\"\",IF(AND(AY$5=$E30,$F30=1),Meilenstein_Markierung,\"\")),\"\")","v":""},{"$f":"IFERROR(IF(LEN(Meilensteine[[#This Row],[Anzahl Tage]])=0,\"\",IF(AND(AZ$5=$E30,$F30=1),Meilenstein_Markierung,\"\")),\"\")","v":""},{"$f":"IFERROR(IF(LEN(Meilensteine[[#This Row],[Anzahl Tage]])=0,\"\",IF(AND(BA$5=$E30,$F30=1),Meilenstein_Markierung,\"\")),\"\")","v":""},{"$f":"IFERROR(IF(LEN(Meilensteine[[#This Row],[Anzahl Tage]])=0,\"\",IF(AND(BB$5=$E30,$F30=1),Meilenstein_Markierung,\"\")),\"\")","v":""},{"$f":"IFERROR(IF(LEN(Meilensteine[[#This Row],[Anzahl Tage]])=0,\"\",IF(AND(BC$5=$E30,$F30=1),Meilenstein_Markierung,\"\")),\"\")","v":""},{"$f":"IFERROR(IF(LEN(Meilensteine[[#This Row],[Anzahl Tage]])=0,\"\",IF(AND(BD$5=$E30,$F30=1),Meilenstein_Markierung,\"\")),\"\")","v":""},{"$f":"IFERROR(IF(LEN(Meilensteine[[#This Row],[Anzahl Tage]])=0,\"\",IF(AND(BE$5=$E30,$F30=1),Meilenstein_Markierung,\"\")),\"\")","v":""},{"$f":"IFERROR(IF(LEN(Meilensteine[[#This Row],[Anzahl Tage]])=0,\"\",IF(AND(BF$5=$E30,$F30=1),Meilenstein_Markierung,\"\")),\"\")","v":""},{"$f":"IFERROR(IF(LEN(Meilensteine[[#This Row],[Anzahl Tage]])=0,\"\",IF(AND(BG$5=$E30,$F30=1),Meilenstein_Markierung,\"\")),\"\")","v":""},{"$f":"IFERROR(IF(LEN(Meilensteine[[#This Row],[Anzahl Tage]])=0,\"\",IF(AND(BH$5=$E30,$F30=1),Meilenstein_Markierung,\"\")),\"\")","v":""},{"$f":"IFERROR(IF(LEN(Meilensteine[[#This Row],[Anzahl Tage]])=0,\"\",IF(AND(BI$5=$E30,$F30=1),Meilenstein_Markierung,\"\")),\"\")","v":""},{"$f":"IFERROR(IF(LEN(Meilensteine[[#This Row],[Anzahl Tage]])=0,\"\",IF(AND(BJ$5=$E30,$F30=1),Meilenstein_Markierung,\"\")),\"\")","v":""},{"$f":"IFERROR(IF(LEN(Meilensteine[[#This Row],[Anzahl Tage]])=0,\"\",IF(AND(BK$5=$E30,$F30=1),Meilenstein_Markierung,\"\")),\"\")","v":""}]
[null,"Aufgabe 5",{"$nulls":5},{"$f":"IFERROR(IF(LEN(Meilensteine[[#This Row],[Anzahl Tage]])=0,\"\",IF(AND(H$5=$E31,$F31=1),Meilenstein_Markierung,\"\")),\"\")","v":""},{"$f":"IFERROR(IF(LEN(Meilensteine[[#This Row],[Anzahl Tage]])=0,\"\",IF(AND(I$5=$E31,$F31=1),Meilenstein_Markierung,\"\")),\"\")","v":""},{"$f":"IFERROR(IF(LEN(Meilensteine[[#This Row],[Anzahl Tage]])=0,\"\",IF(AND(J$5=$E31,$F31=1),Meilenstein_Markierung,\"\")),\"\")","v":""},{"$f":"IFERROR(IF(LEN(Meilensteine[[#This Row],[Anzahl Tage]])=0,\"\",IF(AND(K$5=$E31,$F31=1),Meilenstein_Markierung,\"\")),\"\")","v":""},{"$f":"IFERROR(IF(LEN(Meilensteine[[#This Row],[Anzahl Tage]])=0,\"\",IF(AND(L$5=$E31,$F31=1),Meilenstein_Markierung,\"\")),\"\")","v":""},{"$f":"IFERROR(IF(LEN(Meilensteine[[#This Row],[Anzahl Tage]])=0,\"\",IF(AND(M$5=$E31,$F31=1),Meilenstein_Markierung,\"\")),\"\")","v":""},{"$f":"IFERROR(IF(LEN(Meilensteine[[#This Row],[Anzahl Tage]])=0,\"\",IF(AND(N$5=$E31,$F31=1),Meilenstein_Markierung,\"\")),\"\")","v":""},{"$f":"IFERROR(IF(LEN(Meilensteine[[#This Row],[Anzahl Tage]])=0,\"\",IF(AND(O$5=$E31,$F31=1),Meilenstein_Markierung,\"\")),\"\")","v":""},{"$f":"IFERROR(IF(LEN(Meilensteine[[#This Row],[Anzahl Tage]])=0,\"\",IF(AND(P$5=$E31,$F31=1),Meilenstein_Markierung,\"\")),\"\")","v":""},{"$f":"IFERROR(IF(LEN(Meilensteine[[#This Row],[Anzahl Tage]])=0,\"\",IF(AND(Q$5=$E31,$F31=1),Meilenstein_Markierung,\"\")),\"\")","v":""},{"$f":"IFERROR(IF(LEN(Meilensteine[[#This Row],[Anzahl Tage]])=0,\"\",IF(AND(R$5=$E31,$F31=1),Meilenstein_Markierung,\"\")),\"\")","v":""},{"$f":"IFERROR(IF(LEN(Meilensteine[[#This Row],[Anzahl Tage]])=0,\"\",IF(AND(S$5=$E31,$F31=1),Meilenstein_Markierung,\"\")),\"\")","v":""},{"$f":"IFERROR(IF(LEN(Meilensteine[[#This Row],[Anzahl Tage]])=0,\"\",IF(AND(T$5=$E31,$F31=1),Meilenstein_Markierung,\"\")),\"\")","v":""},{"$f":"IFERROR(IF(LEN(Meilensteine[[#This Row],[Anzahl Tage]])=0,\"\",IF(AND(U$5=$E31,$F31=1),Meilenstein_Markierung,\"\")),\"\")","v":""},{"$f":"IFERROR(IF(LEN(Meilensteine[[#This Row],[Anzahl Tage]])=0,\"\",IF(AND(V$5=$E31,$F31=1),Meilenstein_Markierung,\"\")),\"\")","v":""},{"$f":"IFERROR(IF(LEN(Meilensteine[[#This Row],[Anzahl Tage]])=0,\"\",IF(AND(W$5=$E31,$F31=1),Meilenstein_Markierung,\"\")),\"\")","v":""},{"$f":"IFERROR(IF(LEN(Meilensteine[[#This Row],[Anzahl Tage]])=0,\"\",IF(AND(X$5=$E31,$F31=1),Meilenstein_Markierung,\"\")),\"\")","v":""},{"$f":"IFERROR(IF(LEN(Meilensteine[[#This Row],[Anzahl Tage]])=0,\"\",IF(AND(Y$5=$E31,$F31=1),Meilenstein_Markierung,\"\")),\"\")","v":""},{"$f":"IFERROR(IF(LEN(Meilensteine[[#This Row],[Anzahl Tage]])=0,\"\",IF(AND(Z$5=$E31,$F31=1),Meilenstein_Markierung,\"\")),\"\")","v":""},{"$f":"IFERROR(IF(LEN(Meilensteine[[#This Row],[Anzahl Tage]])=0,\"\",IF(AND(AA$5=$E31,$F31=1),Meilenstein_Markierung,\"\")),\"\")","v":""},{"$f":"IFERROR(IF(LEN(Meilensteine[[#This Row],[Anzahl Tage]])=0,\"\",IF(AND(AB$5=$E31,$F31=1),Meilenstein_Markierung,\"\")),\"\")","v":""},{"$f":"IFERROR(IF(LEN(Meilensteine[[#This Row],[Anzahl Tage]])=0,\"\",IF(AND(AC$5=$E31,$F31=1),Meilenstein_Markierung,\"\")),\"\")","v":""},{"$f":"IFERROR(IF(LEN(Meilensteine[[#This Row],[Anzahl Tage]])=0,\"\",IF(AND(AD$5=$E31,$F31=1),Meilenstein_Markierung,\"\")),\"\")","v":""},{"$f":"IFERROR(IF(LEN(Meilensteine[[#This Row],[Anzahl Tage]])=0,\"\",IF(AND(AE$5=$E31,$F31=1),Meilenstein_Markierung,\"\")),\"\")","v":""},{"$f":"IFERROR(IF(LEN(Meilensteine[[#This Row],[Anzahl Tage]])=0,\"\",IF(AND(AF$5=$E31,$F31=1),Meilenstein_Markierung,\"\")),\"\")","v":""},{"$f":"IFERROR(IF(LEN(Meilensteine[[#This Row],[Anzahl Tage]])=0,\"\",IF(AND(AG$5=$E31,$F31=1),Meilenstein_Markierung,\"\")),\"\")","v":""},{"$f":"IFERROR(IF(LEN(Meilensteine[[#This Row],[Anzahl Tage]])=0,\"\",IF(AND(AH$5=$E31,$F31=1),Meilenstein_Markierung,\"\")),\"\")","v":""},{"$f":"IFERROR(IF(LEN(Meilensteine[[#This Row],[Anzahl Tage]])=0,\"\",IF(AND(AI$5=$E31,$F31=1),Meilenstein_Markierung,\"\")),\"\")","v":""},{"$f":"IFERROR(IF(LEN(Meilensteine[[#This Row],[Anzahl Tage]])=0,\"\",IF(AND(AJ$5=$E31,$F31=1),Meilenstein_Markierung,\"\")),\"\")","v":""},{"$f":"IFERROR(IF(LEN(Meilensteine[[#This Row],[Anzahl Tage]])=0,\"\",IF(AND(AK$5=$E31,$F31=1),Meilenstein_Markierung,\"\")),\"\")","v":""},{"$f":"IFERROR(IF(LEN(Meilensteine[[#This Row],[Anzahl Tage]])=0,\"\",IF(AND(AL$5=$E31,$F31=1),Meilenstein_Markierung,\"\")),\"\")","v":""},{"$f":"IFERROR(IF(LEN(Meilensteine[[#This Row],[Anzahl Tage]])=0,\"\",IF(AND(AM$5=$E31,$F31=1),Meilenstein_Markierung,\"\")),\"\")","v":""},{"$f":"IFERROR(IF(LEN(Meilensteine[[#This Row],[Anzahl Tage]])=0,\"\",IF(AND(AN$5=$E31,$F31=1),Meilenstein_Markierung,\"\")),\"\")","v":""},{"$f":"IFERROR(IF(LEN(Meilensteine[[#This Row],[Anzahl Tage]])=0,\"\",IF(AND(AO$5=$E31,$F31=1),Meilenstein_Markierung,\"\")),\"\")","v":""},{"$f":"IFERROR(IF(LEN(Meilensteine[[#This Row],[Anzahl Tage]])=0,\"\",IF(AND(AP$5=$E31,$F31=1),Meilenstein_Markierung,\"\")),\"\")","v":""},{"$f":"IFERROR(IF(LEN(Meilensteine[[#This Row],[Anzahl Tage]])=0,\"\",IF(AND(AQ$5=$E31,$F31=1),Meilenstein_Markierung,\"\")),\"\")","v":""},{"$f":"IFERROR(IF(LEN(Meilensteine[[#This Row],[Anzahl Tage]])=0,\"\",IF(AND(AR$5=$E31,$F31=1),Meilenstein_Markierung,\"\")),\"\")","v":""},{"$f":"IFERROR(IF(LEN(Meilensteine[[#This Row],[Anzahl Tage]])=0,\"\",IF(AND(AS$5=$E31,$F31=1),Meilenstein_Markierung,\"\")),\"\")","v":""},{"$f":"IFERROR(IF(LEN(Meilensteine[[#This Row],[Anzahl Tage]])=0,\"\",IF(AND(AT$5=$E31,$F31=1),Meilenstein_Markierung,\"\")),\"\")","v":""},{"$f":"IFERROR(IF(LEN(Meilensteine[[#This Row],[Anzahl Tage]])=0,\"\",IF(AND(AU$5=$E31,$F31=1),Meilenstein_Markierung,\"\")),\"\")","v":""},{"$f":"IFERROR(IF(LEN(Meilensteine[[#This Row],[Anzahl Tage]])=0,\"\",IF(AND(AV$5=$E31,$F31=1),Meilenstein_Markierung,\"\")),\"\")","v":""},{"$f":"IFERROR(IF(LEN(Meilensteine[[#This Row],[Anzahl Tage]])=0,\"\",IF(AND(AW$5=$E31,$F31=1),Meilenstein_Markierung,\"\")),\"\")","v":""},{"$f":"IFERROR(IF(LEN(Meilensteine[[#This Row],[Anzahl Tage]])=0,\"\",IF(AND(AX$5=$E31,$F31=1),Meilenstein_Markierung,\"\")),\"\")","v":""},{"$f":"IFERROR(IF(LEN(Meilensteine[[#This Row],[Anzahl Tage]])=0,\"\",IF(AND(AY$5=$E31,$F31=1),Meilenstein_Markierung,\"\")),\"\")","v":""},{"$f":"IFERROR(IF(LEN(Meilensteine[[#This Row],[Anzahl Tage]])=0,\"\",IF(AND(AZ$5=$E31,$F31=1),Meilenstein_Markierung,\"\")),\"\")","v":""},{"$f":"IFERROR(IF(LEN(Meilensteine[[#This Row],[Anzahl Tage]])=0,\"\",IF(AND(BA$5=$E31,$F31=1),Meilenstein_Markierung,\"\")),\"\")","v":""},{"$f":"IFERROR(IF(LEN(Meilensteine[[#This Row],[Anzahl Tage]])=0,\"\",IF(AND(BB$5=$E31,$F31=1),Meilenstein_Markierung,\"\")),\"\")","v":""},{"$f":"IFERROR(IF(LEN(Meilensteine[[#This Row],[Anzahl Tage]])=0,\"\",IF(AND(BC$5=$E31,$F31=1),Meilenstein_Markierung,\"\")),\"\")","v":""},{"$f":"IFERROR(IF(LEN(Meilensteine[[#This Row],[Anzahl Tage]])=0,\"\",IF(AND(BD$5=$E31,$F31=1),Meilenstein_Markierung,\"\")),\"\")","v":""},{"$f":"IFERROR(IF(LEN(Meilensteine[[#This Row],[Anzahl Tage]])=0,\"\",IF(AND(BE$5=$E31,$F31=1),Meilenstein_Markierung,\"\")),\"\")","v":""},{"$f":"IFERROR(IF(LEN(Meilensteine[[#This Row],[Anzahl Tage]])=0,\"\",IF(AND(BF$5=$E31,$F31=1),Meilenstein_Markierung,\"\")),\"\")","v":""},{"$f":"IFERROR(IF(LEN(Meilensteine[[#This Row],[Anzahl Tage]])=0,\"\",IF(AND(BG$5=$E31,$F31=1),Meilenstein_Markierung,\"\")),\"\")","v":""},{"$f":"IFERROR(IF(LEN(Meilensteine[[#This Row],[Anzahl Tage]])=0,\"\",IF(AND(BH$5=$E31,$F31=1),Meilenstein_Markierung,\"\")),\"\")","v":""},{"$f":"IFERROR(IF(LEN(Meilensteine[[#This Row],[Anzahl Tage]])=0,\"\",IF(AND(BI$5=$E31,$F31=1),Meilenstein_Markierung,\"\")),\"\")","v":""},{"$f":"IFERROR(IF(LEN(Meilensteine[[#This Row],[Anzahl Tage]])=0,\"\",IF(AND(BJ$5=$E31,$F31=1),Meilenstein_Markierung,\"\")),\"\")","v":""},{"$f":"IFERROR(IF(LEN(Meilensteine[[#This Row],[Anzahl Tage]])=0,\"\",IF(AND(BK$5=$E31,$F31=1),Meilenstein_Markierung,\"\")),\"\")","v":""}]
["Dies ist eine leere Zeile.",{"$nulls":6},{"$f":"IFERROR(IF(LEN(Meilensteine[[#This Row],[Anzahl Tage]])=0,\"\",IF(AND(H$5=$E32,$F32=1),Meilenstein_Markierung,\"\")),\"\")","v":""},{"$f":"IFERROR(IF(LEN(Meilensteine[[#This Row],[Anzahl Tage]])=0,\"\",IF(AND(I$5=$E32,$F32=1),Meilenstein_Markierung,\"\")),\"\")","v":""},{"$f":"IFERROR(IF(LEN(Meilensteine[[#This Row],[Anzahl Tage]])=0,\"\",IF(AND(J$5=$E32,$F32=1),Meilenstein_Markierung,\"\")),\"\")","v":""},{"$f":"IFERROR(IF(LEN(Meilensteine[[#This Row],[Anzahl Tage]])=0,\"\",IF(AND(K$5=$E32,$F32=1),Meilenstein_Markierung,\"\")),\"\")","v":""},{"$f":"IFERROR(IF(LEN(Meilensteine[[#This Row],[Anzahl Tage]])=0,\"\",IF(AND(L$5=$E32,$F32=1),Meilenstein_Markierung,\"\")),\"\")","v":""},{"$f":"IFERROR(IF(LEN(Meilensteine[[#This Row],[Anzahl Tage]])=0,\"\",IF(AND(M$5=$E32,$F32=1),Meilenstein_Markierung,\"\")),\"\")","v":""},{"$f":"IFERROR(IF(LEN(Meilensteine[[#This Row],[Anzahl Tage]])=0,\"\",IF(AND(N$5=$E32,$F32=1),Meilenstein_Markierung,\"\")),\"\")","v":""},{"$f":"IFERROR(IF(LEN(Meilensteine[[#This Row],[Anzahl Tage]])=0,\"\",IF(AND(O$5=$E32,$F32=1),Meilenstein_Markierung,\"\")),\"\")","v":""},{"$f":"IFERROR(IF(LEN(Meilensteine[[#This Row],[Anzahl Tage]])=0,\"\",IF(AND(P$5=$E32,$F32=1),Meilenstein_Markierung,\"\")),\"\")","v":""},{"$f":"IFERROR(IF(LEN(Meilensteine[[#This Row],[Anzahl Tage]])=0,\"\",IF(AND(Q$5=$E32,$F32=1),Meilenstein_Markierung,\"\")),\"\")","v":""},{"$f":"IFERROR(IF(LEN(Meilensteine[[#This Row],[Anzahl Tage]])=0,\"\",IF(AND(R$5=$E32,$F32=1),Meilenstein_Markierung,\"\")),\"\")","v":""},{"$f":"IFERROR(IF(LEN(Meilensteine[[#This Row],[Anzahl Tage]])=0,\"\",IF(AND(S$5=$E32,$F32=1),Meilenstein_Markierung,\"\")),\"\")","v":""},{"$f":"IFERROR(IF(LEN(Meilensteine[[#This Row],[Anzahl Tage]])=0,\"\",IF(AND(T$5=$E32,$F32=1),Meilenstein_Markierung,\"\")),\"\")","v":""},{"$f":"IFERROR(IF(LEN(Meilensteine[[#This Row],[Anzahl Tage]])=0,\"\",IF(AND(U$5=$E32,$F32=1),Meilenstein_Markierung,\"\")),\"\")","v":""},{"$f":"IFERROR(IF(LEN(Meilensteine[[#This Row],[Anzahl Tage]])=0,\"\",IF(AND(V$5=$E32,$F32=1),Meilenstein_Markierung,\"\")),\"\")","v":""},{"$f":"IFERROR(IF(LEN(Meilensteine[[#This Row],[Anzahl Tage]])=0,\"\",IF(AND(W$5=$E32,$F32=1),Meilenstein_Markierung,\"\")),\"\")","v":""},{"$f":"IFERROR(IF(LEN(Meilensteine[[#This Row],[Anzahl Tage]])=0,\"\",IF(AND(X$5=$E32,$F32=1),Meilenstein_Markierung,\"\")),\"\")","v":""},{"$f":"IFERROR(IF(LEN(Meilensteine[[#This Row],[Anzahl Tage]])=0,\"\",IF(AND(Y$5=$E32,$F32=1),Meilenstein_Markierung,\"\")),\"\")","v":""},{"$f":"IFERROR(IF(LEN(Meilensteine[[#This Row],[Anzahl Tage]])=0,\"\",IF(AND(Z$5=$E32,$F32=1),Meilenstein_Markierung,\"\")),\"\")","v":""},{"$f":"IFERROR(IF(LEN(Meilensteine[[#This Row],[Anzahl Tage]])=0,\"\",IF(AND(AA$5=$E32,$F32=1),Meilenstein_Markierung,\"\")),\"\")","v":""},{"$f":"IFERROR(IF(LEN(Meilensteine[[#This Row],[Anzahl Tage]])=0,\"\",IF(AND(AB$5=$E32,$F32=1),Meilenstein_Markierung,\"\")),\"\")","v":""},{"$f":"IFERROR(IF(LEN(Meilensteine[[#This Row],[Anzahl Tage]])=0,\"\",IF(AND(AC$5=$E32,$F32=1),Meilenstein_Markierung,\"\")),\"\")","v":""},{"$f":"IFERROR(IF(LEN(Meilensteine[[#This Row],[Anzahl Tage]])=0,\"\",IF(AND(AD$5=$E32,$F32=1),Meilenstein_Markierung,\"\")),\"\")","v":""},{"$f":"IFERROR(IF(LEN(Meilensteine[[#This Row],[Anzahl Tage]])=0,\"\",IF(AND(AE$5=$E32,$F32=1),Meilenstein_Markierung,\"\")),\"\")","v":""},{"$f":"IFERROR(IF(LEN(Meilensteine[[#This Row],[Anzahl Tage]])=0,\"\",IF(AND(AF$5=$E32,$F32=1),Meilenstein_Markierung,\"\")),\"\")","v":""},{"$f":"IFERROR(IF(LEN(Meilensteine[[#This Row],[Anzahl Tage]])=0,\"\",IF(AND(AG$5=$E32,$F32=1),Meilenstein_Markierung,\"\")),\"\")","v":""},{"$f":"IFERROR(IF(LEN(Meilensteine[[#This Row],[Anzahl Tage]])=0,\"\",IF(AND(AH$5=$E32,$F32=1),Meilenstein_Markierung,\"\")),\"\")","v":""},{"$f":"IFERROR(IF(LEN(Meilensteine[[#This Row],[Anzahl Tage]])=0,\"\",IF(AND(AI$5=$E32,$F32=1),Meilenstein_Markierung,\"\")),\"\")","v":""},{"$f":"IFERROR(IF(LEN(Meilensteine[[#This Row],[Anzahl Tage]])=0,\"\",IF(AND(AJ$5=$E32,$F32=1),Meilenstein_Markierung,\"\")),\"\")","v":""},{"$f":"IFERROR(IF(LEN(Meilensteine[[#This Row],[Anzahl Tage]])=0,\"\",IF(AND(AK$5=$E32,$F32=1),Meilenstein_Markierung,\"\")),\"\")","v":""},{"$f":"IFERROR(IF(LEN(Meilensteine[[#This Row],[Anzahl Tage]])=0,\"\",IF(AND(AL$5=$E32,$F32=1),Meilenstein_Markierung,\"\")),\"\")","v":""},{"$f":"IFERROR(IF(LEN(Meilensteine[[#This Row],[Anzahl Tage]])=0,\"\",IF(AND(AM$5=$E32,$F32=1),Meilenstein_Markierung,\"\")),\"\")","v":""},{"$f":"IFERROR(IF(LEN(Meilensteine[[#This Row],[Anzahl Tage]])=0,\"\",IF(AND(AN$5=$E32,$F32=1),Meilenstein_Markierung,\"\")),\"\")","v":""},{"$f":"IFERROR(IF(LEN(Meilensteine[[#This Row],[Anzahl Tage]])=0,\"\",IF(AND(AO$5=$E32,$F32=1),Meilenstein_Markierung,\"\")),\"\")","v":""},{"$f":"IFERROR(IF(LEN(Meilensteine[[#This Row],[Anzahl Tage]])=0,\"\",IF(AND(AP$5=$E32,$F32=1),Meilenstein_Markierung,\"\")),\"\")","v":""},{"$f":"IFERROR(IF(LEN(Meilensteine[[#This Row],[Anzahl Tage]])=0,\"\",IF(AND(AQ$5=$E32,$F32=1),Meilenstein_Markierung,\"\")),\"\")","v":""},{"$f":"IFERROR(IF(LEN(Meilensteine[[#This Row],[Anzahl Tage]])=0,\"\",IF(AND(AR$5=$E32,$F32=1),Meilenstein_Markierung,\"\")),\"\")","v":""},{"$f":"IFERROR(IF(LEN(Meilensteine[[#This Row],[Anzahl Tage]])=0,\"\",IF(AND(AS$5=$E32,$F32=1),Meilenstein_Markierung,\"\")),\"\")","v":""},{"$f":"IFERROR(IF(LEN(Meilensteine[[#This Row],[Anzahl Tage]])=0,\"\",IF(AND(AT$5=$E32,$F32=1),Meilenstein_Markierung,\"\")),\"\")","v":""},{"$f":"IFERROR(IF(LEN(Meilensteine[[#This Row],[Anzahl Tage]])=0,\"\",IF(AND(AU$5=$E32,$F32=1),Meilenstein_Markierung,\"\")),\"\")","v":""},{"$f":"IFERROR(IF(LEN(Meilensteine[[#This Row],[Anzahl Tage]])=0,\"\",IF(AND(AV$5=$E32,$F32=1),Meilenstein_Markierung,\"\")),\"\")","v":""},{"$f":"IFERROR(IF(LEN(Meilensteine[[#This Row],[Anzahl Tage]])=0,\"\",IF(AND(AW$5=$E32,$F32=1),Meilenstein_Markierung,\"\")),\"\")","v":""},{"$f":"IFERROR(IF(LEN(Meilensteine[[#This Row],[Anzahl Tage]])=0,\"\",IF(AND(AX$5=$E32,$F32=1),Meilenstein_Markierung,\"\")),\"\")","v":""},{"$f":"IFERROR(IF(LEN(Meilensteine[[#This Row],[Anzahl Tage]])=0,\"\",IF(AND(AY$5=$E32,$F32=1),Meilenstein_Markierung,\"\")),\"\")","v":""},{"$f":"IFERROR(IF(LEN(Meilensteine[[#This Row],[Anzahl Tage]])=0,\"\",IF(AND(AZ$5=$E32,$F32=1),Meilenstein_Markierung,\"\")),\"\")","v":""},{"$f":"IFERROR(IF(LEN(Meilensteine[[#This Row],[Anzahl Tage]])=0,\"\",IF(AND(BA$5=$E32,$F32=1),Meilenstein_Markierung,\"\")),\"\")","v":""},{"$f":"IFERROR(IF(LEN(Meilensteine[[#This Row],[Anzahl Tage]])=0,\"\",IF(AND(BB$5=$E32,$F32=1),Meilenstein_Markierung,\"\")),\"\")","v":""},{"$f":"IFERROR(IF(LEN(Meilensteine[[#This Row],[Anzahl Tage]])=0,\"\",IF(AND(BC$5=$E32,$F32=1),Meilenstein_Markierung,\"\")),\"\")","v":""},{"$f":"IFERROR(IF(LEN(Meilensteine[[#This Row],[Anzahl Tage]])=0,\"\",IF(AND(BD$5=$E32,$F32=1),Meilenstein_Markierung,\"\")),\"\")","v":""},{"$f":"IFERROR(IF(LEN(Meilensteine[[#This Row],[Anzahl Tage]])=0,\"\",IF(AND(BE$5=$E32,$F32=1),Meilenstein_Markierung,\"\")),\"\")","v":""},{"$f":"IFERROR(IF(LEN(Meilensteine[[#This Row],[Anzahl Tage]])=0,\"\",IF(AND(BF$5=$E32,$F32=1),Meilenstein_Markierung,\"\")),\"\")","v":""},{"$f":"IFERROR(IF(LEN(Meilensteine[[#This Row],[Anzahl Tage]])=0,\"\",IF(AND(BG$5=$E32,$F32=1),Meilenstein_Markierung,\"\")),\"\")","v":""},{"$f":"IFERROR(IF(LEN(Meilensteine[[#This Row],[Anzahl Tage]])=0,\"\",IF(AND(BH$5=$E32,$F32=1),Meilenstein_Markierung,\"\")),\"\")","v":""},{"$f":"IFERROR(IF(LEN(Meilensteine[[#This Row],[Anzahl Tage]])=0,\"\",IF(AND(BI$5=$E32,$F32=1),Meilenstein_Markierung,\"\")),\"\")","v":""},{"$f":"IFERROR(IF(LEN(Meilensteine[[#This Row],[Anzahl Tage]])=0,\"\",IF(AND(BJ$5=$E32,$F32=1),Meilenstein_Markierung,\"\")),\"\")","v":""},{"$f":"IFERROR(IF(LEN(Meilensteine[[#This Row],[Anzahl Tage]])=0,\"\",IF(AND(BK$5=$E32,$F32=1),Meilenstein_Markierung,\"\")),\"\")","v":""}]
["Diese Zeile markiert das Ende der Gantt-Meilensteindaten. Geben Sie in dieser Zeile NICHTS EIN. \nUm weitere Elemente hinzuzufügen, fügen Sie neue Zeilen über dieser ein.","Um weitere Daten hinzuzufügen, fügen Sie neue Zeilen ÜBER dieser ein."]

{"sheet":"Info","index":1,"n_rows":4,"n_cols":1,"rows_kept":4}
["Über diese Vorlage"]
["Diese Vorlage bietet eine einfache Möglichkeit, ein Gantt-Diagramm zu erstellen, um Ihr Projekt zu visualisieren und seine Nachverfolgung zu erleichtern. Geben Sie einfach Ihre Aufgabenbeschreibung, den Status als Prozentsatz der Fertigstellung der Aufgabe, ein Anfangsdatum und die Anzahl der Tage bis zur Fertigstellung der Aufgabe ein. Das Gantt-Diagramm wird automatisch aktualisiert. Eine Scrollleiste ermöglicht das Scrollen entlang der Zeitachse. Fügen Sie neue Aufgaben ein, indem Sie neue Zeilen einfügen.\n\nPassen Sie das Aussehen des Diagramms an, indem Sie die bedingten Formate bearbeiten. \n\nDatumswerte vor dem aktuellen Tag sind auf der Zeitachse grau dargestellt.\n"]
["Leitfaden für die Sprachausgabe"]
["Diese Arbeitsmappe enthält 2 Arbeitsblätter. \n\nGantt-Diagramm\nInfo\n\nDie Anweisungen für jedes Arbeitsblatt befinden sich in Spalte A ab Zelle A1 der einzelnen Arbeitsblätter. Sie sind in verborgenem Text geschrieben. Jeder Schritt führt Sie durch die Informationen in der betreffenden Zeile. Jeder nachfolgende Schritt fährt in den Zellen A2, A3 usw. fort, sofern nicht ausdrücklich anders angegeben. Beispielsweise kann der Anweisungstext etwa für den nächsten Schritt \"Mit Zelle 6 fortfahren\" besagen. \n\nDieser verborgene Text wird nicht gedruckt.\n\nUm diese Anweisungen vom Arbeitsblatt zu entfernen, löschen Sie einfach Spalte A."]